Workbook

Sheet Main
B10: 2019-10-27
B12: Sheet No. | C12: Template Name | D12: Summary
B13: 1 | C13: Future Intra | D13: For Intraday trading in F&O segment
B14: 2 | C14: Cash Intra | D14: For Intraday trading in cash market segment
B15: 3 | C15: Mid-cap Intra | D15: For Intraday trading in Mid-cap stocks
B16: 4 | C16: Bulk Deals | D16: Reveals Bulk Deals carried on NSE & BSE
B17: 5 | C17: Call Tracker
K27: `

Sheet Future Intra
M5: Back to Main Page
A6: FOR INTRA DAY TRADING | L6: =Main!B10 -> 2019-10-27
A9: Sr.no | B9: Sector | C9: Scrip | D9: CLOSE RATE | E9: Pivot Point | F9: Supports | I9: Resistances
B10: Sector | D10: Point | E10: Point | F10: S1 | G10: S2 | H10: S3 | I10: R1 | J10: R2 | K10: R3 | L10: HIGH | M10: LOW | N10: OI | O10: % Change in OI
A11: 1 | B11: Index | C11: BANKNIFTY | D11: 29431.85 | E11: 29274.82 | F11: 29069.63 | G11: 28707.42 | H11: 28502.23 | I11: 29637.03 | J11: 29842.22 | K11: 30204.43 | L11: 29480 | M11: 28912.6 | N11: 1349880 | O11: -15.67%
A12: 2 | B12: Index | C12: NIFTY | D12: 11608.95 | E12: 11583.85 | F12: 11527.70 | G12: 11446.45 | H12: 11390.30 | I12: 11665.10 | J12: 11721.25 | K12: 11802.50 | L12: 11640 | M12: 11502.6 | N12: 16290225 | O12: -1.41%
A13: 3 | B13: Index | C13: NIFTYIT | D13: 14965.00 | E13: 14915.67 | F13: 14832.33 | G13: 14699.67 | H13: 14616.33 | I13: 15048.33 | J13: 15131.67 | K13: 15264.33 | L13: 14999 | M13: 14783 | N13: 19600 | O13: -12.69%
A14: 4 | B14: Cement | C14: ACC | D14: 1523.00 | E14: 1517.68 | F14: 1507.37 | G14: 1491.73 | H14: 1481.42 | I14: 1533.32 | J14: 1543.63 | K14: 1559.27 | L14: 1528 | M14: 1502.05 | N14: 2362800 | O14: 1.97%
A15: 5 | B15: Others | C15: ADANIENT | D15: 181.15 | E15: 180.85 | F15: 177.90 | G15: 174.65 | H15: 171.70 | I15: 184.10 | J15: 187.05 | K15: 190.30 | L15: 183.8 | M15: 177.6 | N15: 34236000 | O15: -0.94%
A16: 6 | B16: Others | C16: ADANIPORTS | D16: 399.75 | E16: 399.73 | F16: 397.32 | G16: 394.88 | H16: 392.47 | I16: 402.17 | J16: 404.58 | K16: 407.02 | L16: 402.15 | M16: 397.3 | N16: 13112500 | O16: -2.05%
A17: 7 | B17: Power | C17: ADANIPOWER | D17: 64.35 | E17: 64.08 | F17: 63.37 | G17: 62.38 | H17: 61.67 | I17: 65.07 | J17: 65.78 | K17: 66.77 | L17: 64.8 | M17: 63.1 | N17: 96920000 | O17: 0.52%
A18: 8 | B18: Automobile | C18: AMARAJABAT | D18: 652.65 | E18: 655.08 | F18: 646.42 | G18: 640.18 | H18: 631.52 | I18: 661.32 | J18: 669.98 | K18: 676.22 | L18: 663.75 | M18: 648.85 | N18: 1831200 | O18: 7.43%
A19: 9 | B19: Cement | C19: AMBUJACEM | D19: 197.20 | E19: 197.07 | F19: 195.23 | G19: 193.27 | H19: 191.43 | I19: 199.03 | J19: 200.87 | K19: 202.83 | L19: 198.9 | M19: 195.1 | N19: 21117500 | O19: -1.63%
A20: 10 | B20: Others | C20: APOLLOHOSP | D20: 1521.80 | E20: 1524.58 | F20: 1505.22 | G20: 1488.63 | H20: 1469.27 | I20: 1541.17 | J20: 1560.53 | K20: 1577.12 | L20: 1543.95 | M20: 1508 | N20: 1329500 | O20: -0.60%
A21: 11 | B21: Automobile | C21: APOLLOTYRE | D21: 181.40 | E21: 181.47 | F21: 179.03 | G21: 176.67 | H21: 174.23 | I21: 183.83 | J21: 186.27 | K21: 188.63 | L21: 183.9 | M21: 179.1 | N21: 7569000 | O21: -1.18%
A22: 13 | B22: Automobile | C22: ASHOKLEY | D22: 74.90 | E22: 74.53 | F22: 73.57 | G22: 72.23 | H22: 71.27 | I22: 75.87 | J22: 76.83 | K22: 78.17 | L22: 75.5 | M22: 73.2 | N22: 66798000 | O22: 0.53%
A23: 14 | B23: FMCG | C23: ASIANPAINT | D23: 1794.05 | E23: 1795.10 | F23: 1781.20 | G23: 1768.35 | H23: 1754.45 | I23: 1807.95 | J23: 1821.85 | K23: 1834.70 | L23: 1809 | M23: 1782.25 | N23: 7989000 | O23: 0.06%
A24: 15 | B24: Pharma | C24: AUROPHARMA | D24: 471.15 | E24: 470.57 | F24: 464.63 | G24: 458.12 | H24: 452.18 | I24: 477.08 | J24: 483.02 | K24: 489.53 | L24: 476.5 | M24: 464.05 | N24: 18929000 | O24: -1.02%
A25: 16 | B25: Banking | C25: AXISBANK | D25: 709.35 | E25: 705.47 | F25: 699.73 | G25: 690.12 | H25: 684.38 | I25: 715.08 | J25: 720.82 | K25: 730.43 | L25: 711.2 | M25: 695.85 | N25: 57776400 | O25: -1.80%
A26: 17 | B26: Automobile | C26: BAJAJ-AUTO | D26: 3136.00 | E26: 3141.13 | F26: 3106.22 | G26: 3076.43 | H26: 3041.52 | I26: 3170.92 | J26: 3205.83 | K26: 3235.62 | L26: 3176.05 | M26: 3111.35 | N26: 2420250 | O26: -0.93%
A27: 18 | B27: Finance | C27: BAJAJFINSV | D27: 7984.75 | E27: 8006.88 | F27: 7834.92 | G27: 7685.08 | H27: 7513.12 | I27: 8156.72 | J27: 8328.68 | K27: 8478.52 | L27: 8178.85 | M27: 7857.05 | N27: 1346500 | O27: -2.03%
A28: 19 | B28: Finance | C28: BAJFINANCE | D28: 3996.25 | E28: 3989.98 | F28: 3911.97 | G28: 3827.68 | H28: 3749.67 | I28: 4074.27 | J28: 4152.28 | K28: 4236.57 | L28: 4068 | M28: 3905.7 | N28: 7242000 | O28: -0.43%
A29: 20 | B29: Automobile | C29: BALKRISIND | D29: 840.60 | E29: 838.07 | F29: 825.43 | G29: 810.27 | H29: 797.63 | I29: 853.23 | J29: 865.87 | K29: 881.03 | L29: 850.7 | M29: 822.9 | N29: 1660000 | O29: 2.02%
A30: 21 | B30: Banking | C30: BANKBARODA | D30: 91.80 | E30: 91.00 | F30: 89.60 | G30: 87.40 | H30: 86.00 | I30: 93.20 | J30: 94.60 | K30: 96.80 | L30: 92.4 | M30: 88.8 | N30: 72234000 | O30: 2.08%
A31: 22 | B31: Banking | C31: BANKINDIA | D31: 66.10 | E31: 65.27 | F31: 63.88 | G31: 61.67 | H31: 60.28 | I31: 67.48 | J31: 68.87 | K31: 71.08 | L31: 66.65 | M31: 63.05 | N31: 25278000 | O31: 5.17%
A32: 23 | B32: FMCG | C32: BATAINDIA | D32: 1766.45 | E32: 1773.27 | F32: 1749.53 | G32: 1732.62 | H32: 1708.88 | I32: 1790.18 | J32: 1813.92 | K32: 1830.83 | L32: 1797 | M32: 1756.35 | N32: 2855050 | O32: -1.70%
A33: 24 | B33: Capital_Goods | C33: BEL | D33: 116.45 | E33: 116.10 | F33: 114.85 | G33: 113.25 | H33: 112.00 | I33: 117.70 | J33: 118.95 | K33: 120.55 | L33: 117.35 | M33: 114.5 | N33: 25236000 | O33: 1.03%
A34: 25 | B34: FMCG | C34: BERGEPAINT | D34: 492.80 | E34: 493.27 | F34: 485.53 | G34: 478.27 | H34: 470.53 | I34: 500.53 | J34: 508.27 | K34: 515.53 | L34: 501 | M34: 486 | N34: 8808800 | O34: -0.05%
A35: 26 | B35: Automobile | C35: BHARATFORG | D35: 452.40 | E35: 451.13 | F35: 447.22 | G35: 442.03 | H35: 438.12 | I35: 456.32 | J35: 460.23 | K35: 465.42 | L35: 455.05 | M35: 445.95 | N35: 7636800 | O35: -2.02%
A36: 27 | B36: Telecom | C36: BHARTIARTL | D36: 376.05 | E36: 373.00 | F36: 366.45 | G36: 356.85 | H36: 350.30 | I36: 382.60 | J36: 389.15 | K36: 398.75 | L36: 379.55 | M36: 363.4 | N36: 45438348 | O36: -2.30%
A37: 28 | B37: Capital_Goods | C37: BHEL | D37: 51.00 | E37: 51.05 | F37: 49.70 | G37: 48.40 | H37: 47.05 | I37: 52.35 | J37: 53.70 | K37: 55.00 | L37: 52.4 | M37: 49.75 | N37: 60300000 | O37: -5.82%
A38: 29 | B38: Pharma | C38: BIOCON | D38: 242.00 | E38: 241.02 | F38: 237.63 | G38: 233.27 | H38: 229.88 | I38: 245.38 | J38: 248.77 | K38: 253.13 | L38: 244.4 | M38: 236.65 | N38: 14468400 | O38: -0.83%
A39: 30 | B39: Automobile | C39: BOSCHLTD | D39: 14548.25 | E39: 14572.48 | F39: 14390.82 | G39: 14233.38 | H39: 14051.72 | I39: 14729.92 | J39: 14911.58 | K39: 15069.02 | L39: 14754.15 | M39: 14415.05 | N39: 156540 | O39: -0.02%
A40: 31 | B40: Oil_Gas | C40: BPCL | D40: 525.10 | E40: 523.52 | F40: 512.58 | G40: 500.07 | H40: 489.13 | I40: 536.03 | J40: 546.97 | K40: 559.48 | L40: 534.45 | M40: 511 | N40: 24400800 | O40: -0.87%
A41: 32 | B41: FMCG | C41: BRITANNIA | D41: 3275.05 | E41: 3269.33 | F41: 3249.82 | G41: 3224.58 | H41: 3205.07 | I41: 3294.57 | J41: 3314.08 | K41: 3339.32 | L41: 3288.85 | M41: 3244.1 | N41: 2026000 | O41: -0.73%
A42: 34 | B42: Pharma | C42: CADILAHC | D42: 244.70 | E42: 244.52 | F42: 240.83 | G42: 236.97 | H42: 233.28 | I42: 248.38 | J42: 252.07 | K42: 255.93 | L42: 248.2 | M42: 240.65 | N42: 8499200 | O42: -0.26%
A43: 35 | B43: Banking | C43: CANBK | D43: 193.30 | E43: 191.13 | F43: 187.62 | G43: 181.93 | H43: 178.42 | I43: 196.82 | J43: 200.33 | K43: 206.02 | L43: 194.65 | M43: 185.45 | N43: 10762000 | O43: -3.67%
A44: 36 | B44: Oil_Gas | C44: CASTROLIND | D44: 152.90 | E44: 149.78 | F44: 146.12 | G44: 139.33 | H44: 135.67 | I44: 156.57 | J44: 160.23 | K44: 167.02 | L44: 153.45 | M44: 143 | N44: 7599000 | O44: 9.72%
A45: 37 | B45: Textile | C45: CENTURYTEX | D45: 412.60 | E45: 423.92 | F45: 395.73 | G45: 378.87 | H45: 350.68 | I45: 440.78 | J45: 468.97 | K45: 485.83 | L45: 452.1 | M45: 407.05 | N45: 2616000 | O45: 7.47%
A46: 38 | B46: Power | C46: CESC | D46: 799.20 | E46: 803.82 | F46: 792.73 | G46: 786.27 | H46: 775.18 | I46: 810.28 | J46: 821.37 | K46: 827.83 | L46: 814.9 | M46: 797.35 | N46: 740800 | O46: -2.42%
A47: 39 | B47: Finance | C47: CHOLAFIN | D47: 286.55 | E47: 285.98 | F47: 283.17 | G47: 279.78 | H47: 276.97 | I47: 289.37 | J47: 292.18 | K47: 295.57 | L47: 288.8 | M47: 282.6 | N47: 3647500 | O47: 4.66%
A48: 40 | B48: Pharma | C48: CIPLA | D48: 460.45 | E48: 455.07 | F48: 447.63 | G48: 434.82 | H48: 427.38 | I48: 467.88 | J48: 475.32 | K48: 488.13 | L48: 462.5 | M48: 442.25 | N48: 13813000 | O48: 5.07%
A49: 41 | B49: Others | C49: COALINDIA | D49: 206.30 | E49: 205.53 | F49: 203.87 | G49: 201.43 | H49: 199.77 | I49: 207.97 | J49: 209.63 | K49: 212.07 | L49: 207.2 | M49: 203.1 | N49: 32333400 | O49: -2.03%
A50: 42 | B50: FMCG | C50: COLPAL | D50: 1525.40 | E50: 1533.78 | F50: 1492.62 | G50: 1459.83 | H50: 1418.67 | I50: 1566.57 | J50: 1607.73 | K50: 1640.52 | L50: 1574.95 | M50: 1501 | N50: 1806000 | O50: -4.48%
A51: 43 | B51: Others | C51: CONCOR | D51: 589.50 | E51: 590.28 | F51: 582.32 | G51: 575.13 | H51: 567.17 | I51: 597.47 | J51: 605.43 | K51: 612.62 | L51: 598.25 | M51: 583.1 | N51: 6122271 | O51: -1.73%
A52: 44 | B52: Capital_Goods | C52: CUMMINSIND | D52: 543.20 | E52: 543.08 | F52: 531.12 | G52: 519.03 | H52: 507.07 | I52: 555.17 | J52: 567.13 | K52: 579.22 | L52: 555.05 | M52: 531 | N52: 2312100 | O52: 25.92%
A53: 45 | B53: FMCG | C53: DABUR | D53: 466.90 | E53: 468.42 | F53: 462.98 | G53: 459.07 | H53: 453.63 | I53: 472.33 | J53: 477.77 | K53: 481.68 | L53: 473.85 | M53: 464.5 | N53: 11701250 | O53: -1.35%
A54: 47 | B54: Media | C54: DISHTV | D54: 11.70 | E54: 11.48 | F54: 10.62 | G54: 9.53 | H54: 8.67 | I54: 12.57 | J54: 13.43 | K54: 14.52 | L54: 12.35 | M54: 10.4 | N54: 122304000 | O54: 18.58%
A55: 48 | B55: Pharma | C55: DIVISLAB | D55: 1760.55 | E55: 1761.17 | F55: 1747.38 | G55: 1734.22 | H55: 1720.43 | I55: 1774.33 | J55: 1788.12 | K55: 1801.28 | L55: 1774.95 | M55: 1748 | N55: 2345200 | O55: -2.02%
A56: 49 | B56: Realty | C56: DLF | D56: 181.00 | E56: 179.37 | F56: 176.33 | G56: 171.67 | H56: 168.63 | I56: 184.03 | J56: 187.07 | K56: 191.73 | L56: 182.4 | M56: 174.7 | N56: 40087600 | O56: 2.06%
A57: 50 | B57: Pharma | C57: DRREDDY | D57: 2799.85 | E57: 2796.70 | F57: 2780.35 | G57: 2760.85 | H57: 2744.50 | I57: 2816.20 | J57: 2832.55 | K57: 2852.05 | L57: 2813.05 | M57: 2777.2 | N57: 3067000 | O57: 0.66%
A58: 51 | B58: Automobile | C58: EICHERMOT | D58: 21357.65 | E58: 21250.88 | F58: 21071.77 | G58: 20785.88 | H58: 20606.77 | I58: 21536.77 | J58: 21715.88 | K58: 22001.77 | L58: 21430 | M58: 20965 | N58: 331700 | O58: -0.72%
A59: 53 | B59: Finance | C59: EQUITAS | D59: 96.80 | E59: 96.85 | F59: 95.50 | G59: 94.20 | H59: 92.85 | I59: 98.15 | J59: 99.50 | K59: 100.80 | L59: 98.2 | M59: 95.55 | N59: 10716000 | O59: -1.14%
A60: 54 | B60: Automobile | C60: ESCORTS | D60: 641.85 | E60: 641.62 | F60: 631.73 | G60: 621.62 | H60: 611.73 | I60: 651.73 | J60: 661.62 | K60: 671.73 | L60: 651.5 | M60: 631.5 | N60: 5683700 | O60: -0.27%
A61: 55 | B61: Automobile | C61: EXIDEIND | D61: 176.60 | E61: 176.35 | F61: 174.45 | G61: 172.30 | H61: 170.40 | I61: 178.50 | J61: 180.40 | K61: 182.55 | L61: 178.25 | M61: 174.2 | N61: 11894400 | O61: -4.40%
A62: 56 | B62: Banking | C62: FEDERALBNK | D62: 80.40 | E62: 80.50 | F62: 79.50 | G62: 78.60 | H62: 77.60 | I62: 81.40 | J62: 82.40 | K62: 83.30 | L62: 81.5 | M62: 79.6 | N62: 51275000 | O62: 2.12%
A63: 57 | B63: Oil_Gas | C63: GAIL | D63: 123.25 | E63: 123.60 | F63: 122.20 | G63: 121.15 | H63: 119.75 | I63: 124.65 | J63: 126.05 | K63: 127.10 | L63: 125 | M63: 122.55 | N63: 54214776 | O63: 6.26%
A64: 58 | B64: Pharma | C64: GLENMARK | D64: 310.30 | E64: 309.40 | F64: 304.35 | G64: 298.40 | H64: 293.35 | I64: 315.35 | J64: 320.40 | K64: 326.35 | L64: 314.45 | M64: 303.45 | N64: 6353000 | O64: 0.24%
A65: 59 | B65: Infrastructure | C65: GMRINFRA | D65: 19.90 | E65: 20.00 | F65: 19.55 | G65: 19.20 | H65: 18.75 | I65: 20.35 | J65: 20.80 | K65: 21.15 | L65: 20.45 | M65: 19.65 | N65: 151200000 | O65: -3.20%
A66: 60 | B66: FMCG | C66: GODREJCP | D66: 704.65 | E66: 706.97 | F66: 699.93 | G66: 695.22 | H66: 688.18 | I66: 711.68 | J66: 718.72 | K66: 723.43 | L66: 714 | M66: 702.25 | N66: 6232800 | O66: -1.07%
A67: 61 | B67: Cement | C67: GRASIM | D67: 711.65 | E67: 706.98 | F67: 695.22 | G67: 678.78 | H67: 667.02 | I67: 723.42 | J67: 735.18 | K67: 751.62 | L67: 718.75 | M67: 690.55 | N67: 18777000 | O67: 0.90%
A68: 62 | B68: Others | C68: HAVELLS | D68: 665.55 | E68: 664.73 | F68: 659.82 | G68: 654.08 | H68: 649.17 | I68: 670.47 | J68: 675.38 | K68: 681.12 | L68: 669.65 | M68: 659 | N68: 5955000 | O68: 0.42%
A69: 63 | B69: Technology | C69: HCLTECH | D69: 1132.00 | E69: 1121.77 | F69: 1108.58 | G69: 1085.17 | H69: 1071.98 | I69: 1145.18 | J69: 1158.37 | K69: 1181.78 | L69: 1134.95 | M69: 1098.35 | N69: 11470200 | O69: -5.80%
A70: 64 | B70: Finance | C70: HDFC | D70: 2105.75 | E70: 2115.43 | F70: 2076.87 | G70: 2047.98 | H70: 2009.42 | I70: 2144.32 | J70: 2182.88 | K70: 2211.77 | L70: 2154 | M70: 2086.55 | N70: 34734500 | O70: -0.17%
A71: 65 | B71: Banking | C71: HDFCBANK | D71: 1230.15 | E71: 1231.43 | F71: 1216.97 | G71: 1203.78 | H71: 1189.32 | I71: 1244.62 | J71: 1259.08 | K71: 1272.27 | L71: 1245.9 | M71: 1218.25 | N71: 30062000 | O71: -9.38%
A72: 66 | B72: Automobile | C72: HEROMOTOCO | D72: 2659.70 | E72: 2663.75 | F72: 2625.50 | G72: 2591.30 | H72: 2553.05 | I72: 2697.95 | J72: 2736.20 | K72: 2770.40 | L72: 2702 | M72: 2629.55 | N72: 3372600 | O72: 3.43%
A73: 67 | B73: Technology | C73: HEXAWARE | D73: 340.35 | E73: 339.37 | F73: 336.63 | G73: 332.92 | H73: 330.18 | I73: 343.08 | J73: 345.82 | K73: 349.53 | L73: 342.1 | M73: 335.65 | N73: 2289000 | O73: 3.88%
A74: 68 | B74: Metals | C74: HINDALCO | D74: 181.90 | E74: 182.15 | F74: 180.75 | G74: 179.60 | H74: 178.20 | I74: 183.30 | J74: 184.70 | K74: 185.85 | L74: 183.55 | M74: 181 | N74: 33813500 | O74: -2.60%
A75: 69 | B75: Oil_Gas | C75: HINDPETRO | D75: 301.55 | E75: 302.62 | F75: 297.83 | G75: 294.12 | H75: 289.33 | I75: 306.33 | J75: 311.12 | K75: 314.83 | L75: 307.4 | M75: 298.9 | N75: 25718700 | O75: 3.46%
A76: 70 | B76: FMCG | C76: HINDUNILVR | D76: 2143.75 | E76: 2142.58 | F76: 2130.47 | G76: 2117.18 | H76: 2105.07 | I76: 2155.87 | J76: 2167.98 | K76: 2181.27 | L76: 2154.7 | M76: 2129.3 | N76: 8954100 | O76: -1.43%
A77: 72 | B77: Finance | C77: IBULHSGFIN | D77: 184.95 | E77: 189.32 | F77: 175.73 | G77: 166.52 | H77: 152.93 | I77: 198.53 | J77: 212.12 | K77: 221.33 | L77: 202.9 | M77: 180.1 | N77: 27016000 | O77: 0.99%
A78: 73 | B78: Banking | C78: ICICIBANK | D78: 470.00 | E78: 465.37 | F78: 459.23 | G78: 448.47 | H78: 442.33 | I78: 476.13 | J78: 482.27 | K78: 493.03 | L78: 471.5 | M78: 454.6 | N78: 84475875 | O78: 7.32%
A79: 74 | B79: Finance | C79: ICICIPRULI | D79: 484.80 | E79: 482.27 | F79: 476.08 | G79: 467.37 | H79: 461.18 | I79: 490.98 | J79: 497.17 | K79: 505.88 | L79: 488.45 | M79: 473.55 | N79: 7686000 | O79: 12.32%
A80: 76 | B80: Telecom | C80: IDEA | D80: 4.15 | E80: 3.98 | F80: 3.77 | G80: 3.38 | H80: 3.17 | I80: 4.37 | J80: 4.58 | K80: 4.97 | L80: 4.2 | M80: 3.6 | N80: 594468000 | O80: -11.33%
A81: 77 | B81: Banking | C81: IDFCFIRSTB | D81: 40.50 | E81: 40.48 | F81: 39.12 | G81: 37.73 | H81: 36.37 | I81: 41.87 | J81: 43.23 | K81: 44.62 | L81: 41.85 | M81: 39.1 | N81: 274620000 | O81: -5.32%
A82: 78 | B82: Oil_Gas | C82: IGL | D82: 377.25 | E82: 377.22 | F82: 373.53 | G82: 369.82 | H82: 366.13 | I82: 380.93 | J82: 384.62 | K82: 388.33 | L82: 380.9 | M82: 373.5 | N82: 3522750 | O82: -5.11%
A83: 79 | B83: Others | C83: INDIGO | D83: 1473.00 | E83: 1524.70 | F83: 1404.40 | G83: 1335.80 | H83: 1215.50 | I83: 1593.30 | J83: 1713.60 | K83: 1782.20 | L83: 1645 | M83: 1456.1 | N83: 4411200 | O83: -1.84%
A84: 80 | B84: Banking | C84: INDUSINDBK | D84: 1272.80 | E84: 1273.12 | F84: 1257.98 | G84: 1243.17 | H84: 1228.03 | I84: 1287.93 | J84: 1303.07 | K84: 1317.88 | L84: 1288.25 | M84: 1258.3 | N84: 13954000 | O84: -2.09%
A85: 81 | B85: Telecom | C85: INFRATEL | D85: 214.40 | E85: 220.62 | F85: 205.23 | G85: 196.07 | H85: 180.68 | I85: 229.78 | J85: 245.17 | K85: 254.33 | L85: 236 | M85: 211.45 | N85: 15808000 | O85: 22.52%
A86: 82 | B86: Technology | C86: INFY | D86: 639.25 | E86: 643.30 | F86: 633.60 | G86: 627.95 | H86: 618.25 | I86: 648.95 | J86: 658.65 | K86: 664.30 | L86: 653 | M86: 637.65 | N86: 72214800 | O86: -1.51%
A87: 83 | B87: Oil_Gas | C87: IOC | D87: 142.35 | E87: 142.42 | F87: 140.18 | G87: 138.02 | H87: 135.78 | I87: 144.58 | J87: 146.82 | K87: 148.98 | L87: 144.65 | M87: 140.25 | N87: 49651000 | O87: 8.10%
A88: 84 | B88: FMCG | C88: ITC | D88: 248.30 | E88: 251.08 | F88: 244.72 | G88: 241.13 | H88: 234.77 | I88: 254.67 | J88: 261.03 | K88: 264.62 | L88: 257.45 | M88: 247.5 | N88: 114285600 | O88: 2.55%
A89: 85 | B89: Metals | C89: JINDALSTEL | D89: 105.00 | E89: 104.33 | F89: 102.62 | G89: 100.23 | H89: 98.52 | I89: 106.72 | J89: 108.43 | K89: 110.82 | L89: 106.05 | M89: 101.95 | N89: 35315200 | O89: 2.78%
A90: 86 | B90: Metals | C90: JSWSTEEL | D90: 217.50 | E90: 219.33 | F90: 214.17 | G90: 210.83 | H90: 205.67 | I90: 222.67 | J90: 227.83 | K90: 231.17 | L90: 224.5 | M90: 216 | N90: 52228000 | O90: -3.26%
A91: 87 | B91: Others | C91: JUBLFOOD | D91: 1526.90 | E91: 1521.27 | F91: 1502.68 | G91: 1478.47 | H91: 1459.88 | I91: 1545.48 | J91: 1564.07 | K91: 1588.28 | L91: 1539.85 | M91: 1497.05 | N91: 3213500 | O91: -3.30%
A92: 88 | B92: Others | C92: JUSTDIAL | D92: 629.80 | E92: 633.43 | F92: 618.92 | G92: 608.03 | H92: 593.52 | I92: 644.32 | J92: 658.83 | K92: 669.72 | L92: 647.95 | M92: 622.55 | N92: 2672600 | O92: 7.07%
A93: 90 | B93: Banking | C93: KOTAKBANK | D93: 1587.75 | E93: 1590.62 | F93: 1564.33 | G93: 1540.92 | H93: 1514.63 | I93: 1614.03 | J93: 1640.32 | K93: 1663.73 | L93: 1616.9 | M93: 1567.2 | N93: 8311600 | O93: -4.67%
A94: 91 | B94: Finance | C94: L&TFH | D94: 89.25 | E94: 88.75 | F94: 87.50 | G94: 85.75 | H94: 84.50 | I94: 90.50 | J94: 91.75 | K94: 93.50 | L94: 90 | M94: 87 | N94: 45274500 | O94: 4.98%
A95: 92 | B95: Finance | C95: LICHSGFIN | D95: 375.30 | E95: 375.42 | F95: 371.23 | G95: 367.17 | H95: 362.98 | I95: 379.48 | J95: 383.67 | K95: 387.73 | L95: 379.6 | M95: 371.35 | N95: 10661200 | O95: -3.38%
A96: 93 | B96: Capital_Goods | C96: LT | D96: 1428.20 | E96: 1431.58 | F96: 1418.47 | G96: 1408.73 | H96: 1395.62 | I96: 1441.32 | J96: 1454.43 | K96: 1464.17 | L96: 1444.7 | M96: 1421.85 | N96: 13464000 | O96: 0.34%
A97: 94 | B97: Pharma | C97: LUPIN | D97: 736.30 | E97: 733.93 | F97: 728.87 | G97: 721.43 | H97: 716.37 | I97: 741.37 | J97: 746.43 | K97: 753.87 | L97: 739 | M97: 726.5 | N97: 7385700 | O97: -0.49%
A98: 95 | B98: Automobile | C98: M&M | D98: 578.60 | E98: 577.97 | F98: 572.38 | G98: 566.17 | H98: 560.58 | I98: 584.18 | J98: 589.77 | K98: 595.98 | L98: 583.55 | M98: 571.75 | N98: 21576000 | O98: -0.54%
A99: 96 | B99: Finance | C99: M&MFIN | D99: 337.75 | E99: 335.17 | F99: 330.98 | G99: 324.22 | H99: 320.03 | I99: 341.93 | J99: 346.12 | K99: 352.88 | L99: 339.35 | M99: 328.4 | N99: 13116250 | O99: 0.46%
A100: 97 | B100: Finance | C100: MANAPPURAM | D100: 163.85 | E100: 163.55 | F100: 161.60 | G100: 159.35 | H100: 157.40 | I100: 165.80 | J100: 167.75 | K100: 170.00 | L100: 165.5 | M100: 161.3 | N100: 12348000 | O100: -3.38%
A101: 98 | B101: FMCG | C101: MARICO | D101: 393.25 | E101: 391.28 | F101: 387.17 | G101: 381.08 | H101: 376.97 | I101: 397.37 | J101: 401.48 | K101: 407.57 | L101: 395.4 | M101: 385.2 | N101: 11934000 | O101: -0.76%
A102: 99 | B102: Automobile | C102: MARUTI | D102: 7477.45 | E102: 7452.72 | F102: 7390.43 | G102: 7303.42 | H102: 7241.13 | I102: 7539.73 | J102: 7602.02 | K102: 7689.03 | L102: 7515 | M102: 7365.7 | N102: 2680425 | O102: -2.39%
A103: 100 | B103: FMCG | C103: MCDOWELL-N | D103: 628.50 | E103: 625.72 | F103: 612.43 | G103: 596.37 | H103: 583.08 | I103: 641.78 | J103: 655.07 | K103: 671.13 | L103: 639 | M103: 609.65 | N103: 11331250 | O103: -2.26%
A104: 102 | B104: Finance | C104: MFSL | D104: 403.95 | E104: 409.23 | F104: 396.17 | G104: 388.38 | H104: 375.32 | I104: 417.02 | J104: 430.08 | K104: 437.87 | L104: 422.3 | M104: 401.45 | N104: 2452800 | O104: -8.50%
A105: 103 | B105: Oil_Gas | C105: MGL | D105: 970.60 | E105: 966.35 | F105: 956.00 | G105: 941.40 | H105: 931.05 | I105: 980.95 | J105: 991.30 | K105: 1005.90 | L105: 976.7 | M105: 951.75 | N105: 1577400 | O105: 6.27%
A106: 104 | B106: Technology | C106: MINDTREE | D106: 720.40 | E106: 717.72 | F106: 712.98 | G106: 705.57 | H106: 700.83 | I106: 725.13 | J106: 729.87 | K106: 737.28 | L106: 722.45 | M106: 710.3 | N106: 1479000 | O106: -6.45%
A107: 105 | B107: Automobile | C107: MOTHERSUMI | D107: 110.90 | E107: 111.17 | F107: 109.03 | G107: 107.17 | H107: 105.03 | I107: 113.03 | J107: 115.17 | K107: 117.03 | L107: 113.3 | M107: 109.3 | N107: 32409300 | O107: 0.53%
A108: 106 | B108: Automobile | C108: MRF | D108: 63343.55 | E108: 63464.48 | F108: 62980.07 | G108: 62616.58 | H108: 62132.17 | I108: 63827.97 | J108: 64312.38 | K108: 64675.87 | L108: 63948.9 | M108: 63101 | N108: 19060 | O108: 4.78%
A109: 107 | B109: Finance | C109: MUTHOOTFIN | D109: 664.25 | E109: 666.37 | F109: 658.13 | G109: 652.02 | H109: 643.78 | I109: 672.48 | J109: 680.72 | K109: 686.83 | L109: 674.6 | M109: 660.25 | N109: 2700000 | O109: 10.91%
A110: 108 | B110: Metals | C110: NATIONALUM | D110: 42.50 | E110: 42.75 | F110: 41.90 | G110: 41.30 | H110: 40.45 | I110: 43.35 | J110: 44.20 | K110: 44.80 | L110: 43.6 | M110: 42.15 | N110: 59990000 | O110: -0.70%
A111: 109 | B111: Infrastructure | C111: NBCC | D111: 33.45 | E111: 33.72 | F111: 32.53 | G111: 31.62 | H111: 30.43 | I111: 34.63 | J111: 35.82 | K111: 36.73 | L111: 34.9 | M111: 32.8 | N111: 36057000 | O111: 4.15%
A112: 110 | B112: Infrastructure | C112: NCC | D112: 53.55 | E112: 53.55 | F112: 52.10 | G112: 50.65 | H112: 49.20 | I112: 55.00 | J112: 56.45 | K112: 57.90 | L112: 55 | M112: 52.1 | N112: 40496000 | O112: -0.35%
A113: 111 | B113: FMCG | C113: NESTLEIND | D113: 14812.20 | E113: 14736.23 | F113: 14572.47 | G113: 14332.73 | H113: 14168.97 | I113: 14975.97 | J113: 15139.73 | K113: 15379.47 | L113: 14900 | M113: 14496.5 | N113: 567450 | O113: -2.05%
A114: 112 | B114: Technology | C114: NIITTECH | D114: 1502.05 | E114: 1485.68 | F114: 1462.37 | G114: 1422.68 | H114: 1399.37 | I114: 1525.37 | J114: 1548.68 | K114: 1588.37 | L114: 1509 | M114: 1446 | N114: 747000 | O114: -2.54%
A115: 113 | B115: Metals | C115: NMDC | D115: 107.20 | E115: 106.63 | F115: 105.47 | G115: 103.73 | H115: 102.57 | I115: 108.37 | J115: 109.53 | K115: 111.27 | L115: 107.8 | M115: 104.9 | N115: 23436000 | O115: -6.44%
A116: 114 | B116: Power | C116: NTPC | D116: 118.65 | E116: 119.12 | F116: 117.93 | G116: 117.22 | H116: 116.03 | I116: 119.83 | J116: 121.02 | K116: 121.73 | L116: 120.3 | M116: 118.4 | N116: 55430400 | O116: -3.64%
A117: 116 | B117: Oil_Gas | C117: OIL | D117: 164.15 | E117: 165.07 | F117: 162.63 | G117: 161.12 | H117: 158.68 | I117: 166.58 | J117: 169.02 | K117: 170.53 | L117: 167.5 | M117: 163.55 | N117: 9738135 | O117: -1.14%
A118: 117 | B118: Oil_Gas | C118: ONGC | D118: 139.90 | E118: 139.92 | F118: 138.33 | G118: 136.77 | H118: 135.18 | I118: 141.48 | J118: 143.07 | K118: 144.63 | L118: 141.5 | M118: 138.35 | N118: 62891250 | O118: -1.80%
A119: 118 | B119: Textile | C119: PAGEIND | D119: 23309.15 | E119: 23162.37 | F119: 22826.78 | G119: 22344.42 | H119: 22008.83 | I119: 23644.73 | J119: 23980.32 | K119: 24462.68 | L119: 23497.95 | M119: 22680 | N119: 194900 | O119: 1.50%
A120: 119 | B120: Pharma | C120: PEL | D120: 1587.95 | E120: 1578.62 | F120: 1420.43 | G120: 1252.92 | H120: 1094.73 | I120: 1746.13 | J120: 1904.32 | K120: 2071.83 | L120: 1736.8 | M120: 1411.1 | N120: 7008212 | O120: -7.53%
A121: 120 | B121: Oil_Gas | C121: PETRONET | D121: 271.20 | E121: 271.13 | F121: 269.12 | G121: 267.03 | H121: 265.02 | I121: 273.22 | J121: 275.23 | K121: 277.32 | L121: 273.15 | M121: 269.05 | N121: 22971000 | O121: 4.62%
A122: 121 | B122: Finance | C122: PFC | D122: 106.00 | E122: 105.17 | F122: 103.83 | G122: 101.67 | H122: 100.33 | I122: 107.33 | J122: 108.67 | K122: 110.83 | L122: 106.5 | M122: 103 | N122: 37088400 | O122: -0.53%
A123: 122 | B123: FMCG | C123: PIDILITIND | D123: 1343.30 | E123: 1354.05 | F123: 1326.50 | G123: 1309.70 | H123: 1282.15 | I123: 1370.85 | J123: 1398.40 | K123: 1415.20 | L123: 1381.6 | M123: 1337.25 | N123: 3970000 | O123: 0.24%
A124: 123 | B124: Banking | C124: PNB | D124: 60.90 | E124: 60.38 | F124: 59.32 | G124: 57.73 | H124: 56.67 | I124: 61.97 | J124: 63.03 | K124: 64.62 | L124: 61.45 | M124: 58.8 | N124: 105602000 | O124: 1.99%
A125: 124 | B125: Power | C125: POWERGRID | D125: 203.20 | E125: 203.05 | F125: 201.55 | G125: 199.90 | H125: 198.40 | I125: 204.70 | J125: 206.20 | K125: 207.85 | L125: 204.55 | M125: 201.4 | N125: 29172000 | O125: -1.29%
A126: 125 | B126: Media | C126: PVR | D126: 1785.15 | E126: 1791.40 | F126: 1768.75 | G126: 1752.35 | H126: 1729.70 | I126: 1807.80 | J126: 1830.45 | K126: 1846.85 | L126: 1814.05 | M126: 1775 | N126: 1290000 | O126: 1.77%
A127: 126 | B127: Cement | C127: RAMCOCEM | D127: 752.50 | E127: 748.80 | F127: 740.80 | G127: 729.10 | H127: 721.10 | I127: 760.50 | J127: 768.50 | K127: 780.20 | L127: 756.8 | M127: 737.1 | N127: 1704000 | O127: 9.29%
A128: 128 | B128: Banking | C128: RBLBANK | D128: 260.65 | E128: 257.62 | F128: 251.33 | G128: 242.02 | H128: 235.73 | I128: 266.93 | J128: 273.22 | K128: 282.53 | L128: 263.9 | M128: 248.3 | N128: 17364000 | O128: 10.23%
A129: 129 | B129: Power | C129: RECLTD | D129: 136.30 | E129: 135.32 | F129: 133.88 | G129: 131.47 | H129: 130.03 | I129: 137.73 | J129: 139.17 | K129: 141.58 | L129: 136.75 | M129: 132.9 | N129: 27054000 | O129: 2.04%
A130: 131 | B130: Oil_Gas | C130: RELIANCE | D130: 1433.35 | E130: 1430.15 | F130: 1416.60 | G130: 1399.85 | H130: 1386.30 | I130: 1446.90 | J130: 1460.45 | K130: 1477.20 | L130: 1443.7 | M130: 1413.4 | N130: 54108500 | O130: -1.30%
A131: 133 | B131: Metals | C131: SAIL | D131: 34.95 | E131: 34.73 | F131: 34.27 | G131: 33.58 | H131: 33.12 | I131: 35.42 | J131: 35.88 | K131: 36.57 | L131: 35.2 | M131: 34.05 | N131: 87264000 | O131: -3.63%
A132: 134 | B132: Banking | C132: SBIN | D132: 282.40 | E132: 276.83 | F132: 269.27 | G132: 256.13 | H132: 248.57 | I132: 289.97 | J132: 297.53 | K132: 310.67 | L132: 284.4 | M132: 263.7 | N132: 120726000 | O132: -6.19%
A133: 135 | B133: Cement | C133: SHREECEM | D133: 20165.80 | E133: 20241.37 | F133: 19967.73 | G133: 19769.67 | H133: 19496.03 | I133: 20439.43 | J133: 20713.07 | K133: 20911.13 | L133: 20515 | M133: 20043.3 | N133: 169000 | O133: -1.86%
A134: 136 | B134: Capital_Goods | C134: SIEMENS | D134: 1624.80 | E134: 1617.62 | F134: 1603.53 | G134: 1582.27 | H134: 1568.18 | I134: 1638.88 | J134: 1652.97 | K134: 1674.23 | L134: 1631.7 | M134: 1596.35 | N134: 1711600 | O134: -6.18%
A135: 137 | B135: Textile | C135: SRF | D135: 2851.35 | E135: 2874.37 | F135: 2811.98 | G135: 2772.62 | H135: 2710.23 | I135: 2913.73 | J135: 2976.12 | K135: 3015.48 | L135: 2936.75 | M135: 2835 | N135: 956000 | O135: 1.97%
A136: 138 | B136: Finance | C136: SRTRANSFIN | D136: 1126.60 | E136: 1108.42 | F136: 1086.08 | G136: 1045.57 | H136: 1023.23 | I136: 1148.93 | J136: 1171.27 | K136: 1211.78 | L136: 1130.75 | M136: 1067.9 | N136: 4028400 | O136: 2.10%
A137: 139 | B137: Pharma | C137: STAR | D137: 373.35 | E137: 365.05 | F137: 352.30 | G137: 331.25 | H137: 318.50 | I137: 386.10 | J137: 398.85 | K137: 419.90 | L137: 377.8 | M137: 344 | N137: 1950000 | O137: 4.10%
A138: 140 | B138: Pharma | C138: SUNPHARMA | D138: 416.85 | E138: 413.27 | F138: 406.78 | G138: 396.72 | H138: 390.23 | I138: 423.33 | J138: 429.82 | K138: 439.88 | L138: 419.75 | M138: 403.2 | N138: 61514200 | O138: -0.56%
A139: 141 | B139: Media | C139: SUNTV | D139: 527.50 | E139: 525.22 | F139: 518.18 | G139: 508.87 | H139: 501.83 | I139: 534.53 | J139: 541.57 | K139: 550.88 | L139: 532.25 | M139: 515.9 | N139: 3114000 | O139: 6.28%
A140: 142 | B140: Fertilisers | C140: TATACHEM | D140: 610.90 | E140: 611.12 | F140: 605.83 | G140: 600.77 | H140: 595.48 | I140: 616.18 | J140: 621.47 | K140: 626.53 | L140: 616.4 | M140: 606.05 | N140: 2001600 | O140: 5.70%
A141: 143 | B141: Technology | C141: TATAELXSI | D141: 761.75 | E141: 757.43 | F141: 750.37 | G141: 738.98 | H141: 731.92 | I141: 768.82 | J141: 775.88 | K141: 787.27 | L141: 764.5 | M141: 746.05 | N141: 1435800 | O141: -11.83%
A142: 144 | B142: FMCG | C142: TATAGLOBAL | D142: 279.90 | E142: 279.93 | F142: 277.32 | G142: 274.73 | H142: 272.12 | I142: 282.52 | J142: 285.13 | K142: 287.72 | L142: 282.55 | M142: 277.35 | N142: 10262700 | O142: 6.89%
A143: 145 | B143: Automobile | C143: TATAMOTORS | D143: 126.95 | E143: 128.55 | F143: 124.10 | G143: 121.25 | H143: 116.80 | I143: 131.40 | J143: 135.85 | K143: 138.70 | L143: 133 | M143: 125.7 | N143: 66606000 | O143: 9.28%
A144: 146 | B144: Automobile | C144: TATAMTRDVR | D144: 57.55 | E144: 57.98 | F144: 56.27 | G144: 54.98 | H144: 53.27 | I144: 59.27 | J144: 60.98 | K144: 62.27 | L144: 59.7 | M144: 56.7 | N144: 43698000 | O144: 4.34%
A145: 147 | B145: Power | C145: TATAPOWER | D145: 57.75 | E145: 58.35 | F145: 56.70 | G145: 55.65 | H145: 54.00 | I145: 59.40 | J145: 61.05 | K145: 62.10 | L145: 60 | M145: 57.3 | N145: 54522000 | O145: 6.41%
A146: 148 | B146: Metals | C146: TATASTEEL | D146: 360.85 | E146: 361.82 | F146: 355.33 | G146: 349.82 | H146: 343.33 | I146: 367.33 | J146: 373.82 | K146: 379.33 | L146: 368.3 | M146: 356.3 | N146: 27673002 | O146: -0.80%
A147: 149 | B147: Technology | C147: TCS | D147: 2124.20 | E147: 2109.85 | F147: 2090.55 | G147: 2056.90 | H147: 2037.60 | I147: 2143.50 | J147: 2162.80 | K147: 2196.45 | L147: 2129.15 | M147: 2076.2 | N147: 18535500 | O147: -0.37%
A148: 150 | B148: Technology | C148: TECHM | D148: 722.90 | E148: 718.33 | F148: 706.67 | G148: 690.43 | H148: 678.77 | I148: 734.57 | J148: 746.23 | K148: 762.47 | L148: 730 | M148: 702.1 | N148: 17112000 | O148: 6.04%
A149: 151 | B149: FMCG | C149: TITAN | D149: 1338.80 | E149: 1354.42 | F149: 1319.63 | G149: 1300.47 | H149: 1265.68 | I149: 1373.58 | J149: 1408.37 | K149: 1427.53 | L149: 1389.2 | M149: 1335.25 | N149: 10206750 | O149: -0.15%
A150: 152 | B150: Pharma | C150: TORNTPHARM | D150: 1747.80 | E150: 1753.12 | F150: 1734.68 | G150: 1721.57 | H150: 1703.13 | I150: 1766.23 | J150: 1784.67 | K150: 1797.78 | L150: 1771.55 | M150: 1740 | N150: 489000 | O150: -2.98%
A151: 153 | B151: Power | C151: TORNTPOWER | D151: 276.10 | E151: 277.48 | F151: 273.77 | G151: 271.43 | H151: 267.72 | I151: 279.82 | J151: 283.53 | K151: 285.87 | L151: 281.2 | M151: 275.15 | N151: 4338000 | O151: 8.97%
A152: 154 | B152: Automobile | C152: TVSMOTOR | D152: 461.95 | E152: 459.63 | F152: 454.32 | G152: 446.68 | H152: 441.37 | I152: 467.27 | J152: 472.58 | K152: 480.22 | L152: 464.95 | M152: 452 | N152: 10138700 | O152: 4.56%
A153: 155 | B153: FMCG | C153: UBL | D153: 1340.60 | E153: 1347.38 | F153: 1328.82 | G153: 1317.03 | H153: 1298.47 | I153: 1359.17 | J153: 1377.73 | K153: 1389.52 | L153: 1365.95 | M153: 1335.6 | N153: 1654100 | O153: 2.96%
A154: 156 | B154: Finance | C154: UJJIVAN | D154: 279.20 | E154: 281.60 | F154: 270.70 | G154: 262.20 | H154: 251.30 | I154: 290.10 | J154: 301.00 | K154: 309.50 | L154: 292.5 | M154: 273.1 | N154: 9491200 | O154: -0.72%
A155: 157 | B155: Cement | C155: ULTRACEMCO | D155: 4206.00 | E155: 4236.43 | F155: 4156.87 | G155: 4107.73 | H155: 4028.17 | I155: 4285.57 | J155: 4365.13 | K155: 4414.27 | L155: 4316 | M155: 4187.3 | N155: 2480000 | O155: 3.26%
A156: 158 | B156: Banking | C156: UNIONBANK | D156: 53.60 | E156: 52.75 | F156: 51.65 | G156: 49.70 | H156: 48.60 | I156: 54.70 | J156: 55.80 | K156: 57.75 | L156: 53.85 | M156: 50.8 | N156: 36008000 | O156: -6.35%
A157: 159 | B157: Fertilisers | C157: UPL | D157: 595.85 | E157: 595.60 | F157: 589.60 | G157: 583.35 | H157: 577.35 | I157: 601.85 | J157: 607.85 | K157: 614.10 | L157: 601.6 | M157: 589.35 | N157: 14465700 | O157: 0.43%
A158: 160 | B158: Metals | C158: VEDL | D158: 142.45 | E158: 143.82 | F158: 140.48 | G158: 138.52 | H158: 135.18 | I158: 145.78 | J158: 149.12 | K158: 151.08 | L158: 147.15 | M158: 141.85 | N158: 61575000 | O158: 1.59%
A159: 161 | B159: Capital_Goods | C159: VOLTAS | D159: 700.80 | E159: 702.60 | F159: 692.40 | G159: 684.00 | H159: 673.80 | I159: 711.00 | J159: 721.20 | K159: 729.60 | L159: 712.8 | M159: 694.2 | N159: 2317000 | O159: -2.11%
A160: 162 | B160: Technology | C160: WIPRO | D160: 253.45 | E160: 252.23 | F160: 250.37 | G160: 247.28 | H160: 245.42 | I160: 255.32 | J160: 257.18 | K160: 260.27 | L160: 254.1 | M160: 249.15 | N160: 26912000 | O160: 3.23%
A161: 163 | B161: Banking | C161: YESBANK | D161: 52.45 | E161: 50.82 | F161: 47.18 | G161: 41.92 | H161: 38.28 | I161: 56.08 | J161: 59.72 | K161: 64.98 | L161: 54.45 | M161: 45.55 | N161: 181181000 | O161: 12.32%
A162: 164 | B162: Media | C162: ZEEL | D162: 240.25 | E162: 239.33 | F162: 234.22 | G162: 228.18 | H162: 223.07 | I162: 245.37 | J162: 250.48 | K162: 256.52 | L162: 244.45 | M162: 233.3 | N162: 29870100 | O162: 1.51%
A178: Pivot Point: This is trigger point for intra day buy/sell based on the price range of the previous day
A179: As per the tool,the trader should take BUY position just above Pivot and keep the stop loss of pivot point and the first target would be Resistance 1(R1)
A180: If R1 is crossed then R2 becomes the next target with stop loss of at R1
A181: Similarly if price goes below pivot point then the trader should sell and keep a stop loss of pivot point and the first target would be S1
A182: If S1 is crossed then S2 becomes the next target with stop loss of at S1
A184: Disclaimer:
A185: This document has been prepared by the Retail Research Desk of Asit C Mehta
A186: Investment Intermediates Ltd. and is meant for use of the recipient only
A187: and is not for circulation. This document is not to be reported or
A188: copied or made available to others. It should not be considered to be
A189: taken as an offer to sell or a solicitation to buy any security. The
A190: information contained herein is from sources believed reliable. We do
A191: not represent that it is accurate or complete and it should not be
A192: relied upon as such. We may from time to time have positions in and buy
A193: and sell securities referred to herein

Sheet Cash Intra
M5: Back to Main Page
A6: FOR INTRA DAY TRADING | K6: =Main!B10 -> 2019-10-27
A8: Sr.no | B8: Scrip | C8: CLOSE RATE | D8: Pivot Point | E8: Supports | H8: Resistances
C9: Point | E9: S1 | F9: S2 | G9: S3 | H9: R1 | I9: R2 | J9: R3 | K9: HIGH | L9: LOW | M9: Total Trade Quanity in Lakhs
A10: 1 | B10: Nifty 50 | C10: 11583.9 | D10: 11573.85 | E10: 11500.80 | F10: 11417.70 | G10: 11344.65 | H10: 11656.95 | I10: 11730.00 | J10: 11813.10 | K10: 11646.9 | L10: 11490.75
A11: 2 | B11: Nifty Bank | C11: 29395.95 | D11: 29257.28 | E11: 29062.47 | F11: 28728.98 | G11: 28534.17 | H11: 29590.77 | I11: 29785.58 | J11: 30119.07 | K11: 29452.1 | L11: 28923.8
A12: 3 | B12: Nifty CPSE | C12: 2011.25 | D12: 2012.18 | E12: 1996.67 | F12: 1982.08 | G12: 1966.57 | H12: 2026.77 | I12: 2042.28 | J12: 2056.87 | K12: 2027.7 | L12: 1997.6
A13: 4 | B13: Nifty Infra | C13: 3253.1 | D13: 3256.23 | E13: 3232.82 | F13: 3212.53 | G13: 3189.12 | H13: 3276.52 | I13: 3299.93 | J13: 3320.22 | K13: 3279.65 | L13: 3235.95
A14: 5 | B14: Nifty IT | C14: 14898.85 | D14: 14854.48 | E14: 14765.22 | F14: 14631.58 | G14: 14542.32 | H14: 14988.12 | I14: 15077.38 | J14: 15211.02 | K14: 14943.75 | L14: 14720.85
A15: 6 | B15: Nifty PSE | C15: 3351.65 | D15: 3348.28 | E15: 3326.32 | F15: 3300.98 | G15: 3279.02 | H15: 3373.62 | I15: 3395.58 | J15: 3420.92 | K15: 3370.25 | L15: 3322.95
A16: 7 | B16: Nifty Midcap 50 | C16: 4447.3 | D16: 4445.55 | E16: 4421.15 | F16: 4395.00 | G16: 4370.60 | H16: 4471.70 | I16: 4496.10 | J16: 4522.25 | K16: 4469.95 | L16: 4419.4
A17: 8 | B17: ACC | C17: 1518.4 | D17: 1514.78 | E17: 1504.62 | F17: 1490.83 | G17: 1480.67 | H17: 1528.57 | I17: 1538.73 | J17: 1552.52 | K17: 1524.95 | L17: 1501 | M17: 6.45397
A18: 9 | B18: AUBANK | C18: 688.4 | D18: 685.45 | E18: 675.95 | F18: 663.50 | G18: 654.00 | H18: 697.90 | I18: 707.40 | J18: 719.85 | K18: 694.95 | L18: 673 | M18: 4.86059
A19: 10 | B19: ADANIPORTS | C19: 398.95 | D19: 399.58 | E19: 396.22 | F19: 393.48 | G19: 390.12 | H19: 402.32 | I19: 405.68 | J19: 408.42 | K19: 402.95 | L19: 396.85 | M19: 32.72059
A20: 11 | B20: ADANIPOWER | C20: 64.2 | D20: 64.12 | E20: 63.23 | F20: 62.27 | G20: 61.38 | H20: 65.08 | I20: 65.97 | J20: 66.93 | K20: 65 | L20: 63.15 | M20: 67.67043
A21: 12 | B21: ABCAPITAL | C21: 79.05 | D21: 79.83 | E21: 77.97 | F21: 76.88 | G21: 75.02 | H21: 80.92 | I21: 82.78 | J21: 83.87 | K21: 81.7 | L21: 78.75 | M21: 13.65709
A22: 13 | B22: ABFRL | C22: 203.95 | D22: 203.55 | E22: 201.70 | F22: 199.45 | G22: 197.60 | H22: 205.80 | I22: 207.65 | J22: 209.90 | K22: 205.4 | L22: 201.3 | M22: 2.77592
A23: 14 | B23: AJANTPHARM | C23: 990.5 | D23: 993.38 | E23: 979.82 | F23: 969.13 | G23: 955.57 | H23: 1004.07 | I23: 1017.63 | J23: 1028.32 | K23: 1006.95 | L23: 982.7 | M23: 0.29239
A24: 15 | B24: ALKEM | C24: 1960.2 | D24: 1966.08 | E24: 1942.22 | F24: 1924.23 | G24: 1900.37 | H24: 1984.07 | I24: 2007.93 | J24: 2025.92 | K24: 1989.95 | L24: 1948.1 | M24: 0.13429
A25: 16 | B25: ALBK | C25: 25.25 | D25: 25.37 | E25: 24.88 | F25: 24.52 | G25: 24.03 | H25: 25.73 | I25: 26.22 | J25: 26.58 | K25: 25.85 | L25: 25 | M25: 6.38143
A26: 17 | B26: AMARAJABAT | C26: 651.35 | D26: 654.48 | E26: 645.57 | F26: 639.78 | G26: 630.87 | H26: 660.27 | I26: 669.18 | J26: 674.97 | K26: 663.4 | L26: 648.7 | M26: 1.72095
A27: 18 | B27: AMBUJACEM | C27: 197.45 | D27: 197.28 | E27: 195.47 | F27: 193.48 | G27: 191.67 | H27: 199.27 | I27: 201.08 | J27: 203.07 | K27: 199.1 | L27: 195.3 | M27: 28.75494
A28: 19 | B28: APOLLOHOSP | C28: 1519.35 | D28: 1523.33 | E28: 1503.37 | F28: 1487.38 | G28: 1467.42 | H28: 1539.32 | I28: 1559.28 | J28: 1575.27 | K28: 1543.3 | L28: 1507.35 | M28: 2.8934
A29: 20 | B29: APOLLOTYRE | C29: 181 | D29: 181.38 | E29: 178.57 | F29: 176.13 | G29: 173.32 | H29: 183.82 | I29: 186.63 | J29: 189.07 | K29: 184.2 | L29: 178.95 | M29: 25.41205
A30: 21 | B30: ASHOKLEY | C30: 74.7 | D30: 74.50 | E30: 73.35 | F30: 72.00 | G30: 70.85 | H30: 75.85 | I30: 77.00 | J30: 78.35 | K30: 75.65 | L30: 73.15 | M30: 215.9491
A31: 22 | B31: ASIANPAINT | C31: 1796.3 | D31: 1796.58 | E31: 1784.77 | F31: 1773.23 | G31: 1761.42 | H31: 1808.12 | I31: 1819.93 | J31: 1831.47 | K31: 1808.4 | L31: 1785.05 | M31: 12.02154
A32: 23 | B32: AUROPHARMA | C32: 470.75 | D32: 469.58 | E32: 464.17 | F32: 457.58 | G32: 452.17 | H32: 476.17 | I32: 481.58 | J32: 488.17 | K32: 475 | L32: 463 | M32: 31.81241
A33: 24 | B33: DMART | C33: 1883.95 | D33: 1885.58 | E33: 1869.37 | F33: 1854.78 | G33: 1838.57 | H33: 1900.17 | I33: 1916.38 | J33: 1930.97 | K33: 1901.8 | L33: 1871 | M33: 1.62703
A34: 25 | B34: AXISBANK | C34: 708.6 | D34: 704.87 | E34: 698.73 | F34: 688.87 | G34: 682.73 | H34: 714.73 | I34: 720.87 | J34: 730.73 | K34: 711 | L34: 695 | M34: 82.26456
A35: 26 | B35: BAJAJ-AUTO | C35: 3129.65 | D35: 3142.27 | E35: 3097.38 | F35: 3065.12 | G35: 3020.23 | H35: 3174.53 | I35: 3219.42 | J35: 3251.68 | K35: 3187.15 | L35: 3110 | M35: 3.6973
A36: 27 | B36: BAJFINANCE | C36: 3987.25 | D36: 3983.70 | E36: 3903.55 | F36: 3819.85 | G36: 3739.70 | H36: 4067.40 | I36: 4147.55 | J36: 4231.25 | K36: 4063.85 | L36: 3900 | M36: 17.58098
A37: 28 | B37: BAJAJFINSV | C37: 7972.15 | D37: 7994.72 | E37: 7829.43 | F37: 7686.72 | G37: 7521.43 | H37: 8137.43 | I37: 8302.72 | J37: 8445.43 | K37: 8160 | L37: 7852 | M37: 3.54844
A38: 29 | B38: BAJAJHLDNG | C38: 3651.2 | D38: 3666.07 | E38: 3616.13 | F38: 3581.07 | G38: 3531.13 | H38: 3701.13 | I38: 3751.07 | J38: 3786.13 | K38: 3716 | L38: 3631 | M38: 0.11937
A39: 30 | B39: BALKRISIND | C39: 839.65 | D39: 838.22 | E39: 826.43 | F39: 813.22 | G39: 801.43 | H39: 851.43 | I39: 863.22 | J39: 876.43 | K39: 850 | L39: 825 | M39: 5.46606
A40: 31 | B40: BANDHANBNK | C40: 594.85 | D40: 590.30 | E40: 581.60 | F40: 568.35 | G40: 559.65 | H40: 603.55 | I40: 612.25 | J40: 625.50 | K40: 599 | L40: 577.05 | M40: 25.12565
A41: 32 | B41: BANKBARODA | C41: 91.55 | D41: 90.80 | E41: 89.45 | F41: 87.35 | G41: 86.00 | H41: 92.90 | I41: 94.25 | J41: 96.35 | K41: 92.15 | L41: 88.7 | M41: 317.67476
A42: 33 | B42: BANKINDIA | C42: 65.85 | D42: 65.12 | E42: 63.78 | F42: 61.72 | G42: 60.38 | H42: 67.18 | I42: 68.52 | J42: 70.58 | K42: 66.45 | L42: 63.05 | M42: 84.63208
A43: 34 | B43: BATAINDIA | C43: 1763.5 | D43: 1771.68 | E43: 1746.37 | F43: 1729.23 | G43: 1703.92 | H43: 1788.82 | I43: 1814.13 | J43: 1831.27 | K43: 1797 | L43: 1754.55 | M43: 5.94439
A44: 35 | B44: BERGEPAINT | C44: 492.1 | D44: 493.48 | E44: 485.02 | F44: 477.93 | G44: 469.47 | H44: 500.57 | I44: 509.03 | J44: 516.12 | K44: 501.95 | L44: 486.4 | M44: 25.57982
A45: 36 | B45: BEL | C45: 116.7 | D45: 116.20 | E45: 115.15 | F45: 113.60 | G45: 112.55 | H45: 117.75 | I45: 118.80 | J45: 120.35 | K45: 117.25 | L45: 114.65 | M45: 75.75021
A46: 37 | B46: BHARATFORG | C46: 451.8 | D46: 451.13 | E46: 447.37 | F46: 442.93 | G46: 439.17 | H46: 455.57 | I46: 459.33 | J46: 463.77 | K46: 454.9 | L46: 446.7 | M46: 8.90806
A47: 38 | B47: BHEL | C47: 50.95 | D47: 51.00 | E47: 49.60 | F47: 48.25 | G47: 46.85 | H47: 52.35 | I47: 53.75 | J47: 55.10 | K47: 52.4 | L47: 49.65 | M47: 284.7402
A48: 39 | B48: BPCL | C48: 524.15 | D48: 522.37 | E48: 511.53 | F48: 498.92 | G48: 488.08 | H48: 534.98 | I48: 545.82 | J48: 558.43 | K48: 533.2 | L48: 509.75 | M48: 133.81183
A49: 40 | B49: BHARTIARTL | C49: 375.15 | D49: 372.05 | E49: 365.70 | F49: 356.25 | G49: 349.90 | H49: 381.50 | I49: 387.85 | J49: 397.30 | K49: 378.4 | L49: 362.6 | M49: 277.54837
A50: 41 | B50: INFRATEL | C50: 217 | D50: 222.65 | E50: 207.30 | F50: 197.60 | G50: 182.25 | H50: 232.35 | I50: 247.70 | J50: 257.40 | K50: 238 | L50: 212.95 | M50: 215.36622
A51: 42 | B51: BIOCON | C51: 241.65 | D51: 240.95 | E51: 236.85 | F51: 232.05 | G51: 227.95 | H51: 245.75 | I51: 249.85 | J51: 254.65 | K51: 245.05 | L51: 236.15 | M51: 80.84796
A52: 43 | B52: BBTC | C52: 1168.25 | D52: 1174.92 | E52: 1153.43 | F52: 1138.62 | G52: 1117.13 | H52: 1189.73 | I52: 1211.22 | J52: 1226.03 | K52: 1196.4 | L52: 1160.1 | M52: 0.89312
A53: 44 | B53: BOSCHLTD | C53: 14501.65 | D53: 14575.20 | E53: 14373.40 | F53: 14245.15 | G53: 14043.35 | H53: 14703.45 | I53: 14905.25 | J53: 15033.50 | K53: 14777 | L53: 14446.95 | M53: 0.10698
A54: 45 | B54: BRITANNIA | C54: 3267.1 | D54: 3270.98 | E54: 3243.12 | F54: 3219.13 | G54: 3191.27 | H54: 3294.97 | I54: 3322.83 | J54: 3346.82 | K54: 3298.85 | L54: 3247 | M54: 2.13353
A55: 46 | B55: CESC | C55: 796.55 | D55: 802.18 | E55: 789.37 | F55: 782.18 | G55: 769.37 | H55: 809.37 | I55: 822.18 | J55: 829.37 | K55: 815 | L55: 795 | M55: 2.75544
A56: 47 | B56: CADILAHC | C56: 244.7 | D56: 244.60 | E56: 240.80 | F56: 236.90 | G56: 233.10 | H56: 248.50 | I56: 252.30 | J56: 256.20 | K56: 248.4 | L56: 240.7 | M56: 9.23146
A57: 48 | B57: CANBK | C57: 192.7 | D57: 190.75 | E57: 187.60 | F57: 182.50 | G57: 179.35 | H57: 195.85 | I57: 199.00 | J57: 204.10 | K57: 193.9 | L57: 185.65 | M57: 75.65309
A58: 49 | B58: CASTROLIND | C58: 154.1 | D58: 150.73 | E58: 146.47 | F58: 138.83 | G58: 134.57 | H58: 158.37 | I58: 162.63 | J58: 170.27 | K58: 155 | L58: 143.1 | M58: 68.13343
A59: 50 | B59: CHOLAFIN | C59: 285.9 | D59: 287.47 | E59: 281.18 | F59: 276.47 | G59: 270.18 | H59: 292.18 | I59: 298.47 | J59: 303.18 | K59: 293.75 | L59: 282.75 | M59: 20.51702
A60: 51 | B60: CIPLA | C60: 459.85 | D60: 454.35 | E60: 447.25 | F60: 434.65 | G60: 427.55 | H60: 466.95 | I60: 474.05 | J60: 486.65 | K60: 461.45 | L60: 441.75 | M60: 26.47759
A61: 52 | B61: CUB | C61: 209.6 | D61: 209.12 | E61: 205.58 | F61: 201.57 | G61: 198.03 | H61: 213.13 | I61: 216.67 | J61: 220.68 | K61: 212.65 | L61: 205.1 | M61: 19.6272
A62: 53 | B62: COALINDIA | C62: 205.85 | D62: 205.27 | E62: 203.58 | F62: 201.32 | G62: 199.63 | H62: 207.53 | I62: 209.22 | J62: 211.48 | K62: 206.95 | L62: 203 | M62: 53.68529
A63: 54 | B63: COLPAL | C63: 1519.55 | D63: 1528.47 | E63: 1487.93 | F63: 1456.32 | G63: 1415.78 | H63: 1560.08 | I63: 1600.62 | J63: 1632.23 | K63: 1569 | L63: 1496.85 | M63: 13.52011
A64: 55 | B64: CONCOR | C64: 588.25 | D64: 589.98 | E64: 581.97 | F64: 575.68 | G64: 567.67 | H64: 596.27 | I64: 604.28 | J64: 610.57 | K64: 598 | L64: 583.7 | M64: 10.76084
A65: 56 | B65: COROMANDEL | C65: 478.8 | D65: 474.35 | E65: 466.50 | F65: 454.20 | G65: 446.35 | H65: 486.65 | I65: 494.50 | J65: 506.80 | K65: 482.2 | L65: 462.05 | M65: 3.51323
A66: 57 | B66: CROMPTON | C66: 254.75 | D66: 254.15 | E66: 251.35 | F66: 247.95 | G66: 245.15 | H66: 257.55 | I66: 260.35 | J66: 263.75 | K66: 256.95 | L66: 250.75 | M66: 17.81939
A67: 58 | B67: CUMMINSIND | C67: 541.15 | D67: 542.37 | E67: 530.98 | F67: 520.82 | G67: 509.43 | H67: 552.53 | I67: 563.92 | J67: 574.08 | K67: 553.75 | L67: 532.2 | M67: 19.69631
A68: 59 | B68: DLF | C68: 181 | D68: 179.22 | E68: 176.43 | F68: 171.87 | G68: 169.08 | H68: 183.78 | I68: 186.57 | J68: 191.13 | K68: 182 | L68: 174.65 | M68: 94.32267
A69: 60 | B69: DABUR | C69: 465.55 | D69: 467.12 | E69: 461.43 | F69: 457.32 | G69: 451.63 | H69: 471.23 | I69: 476.92 | J69: 481.03 | K69: 472.8 | L69: 463 | M69: 6.49773
A70: 61 | B70: DALBHARAT | C70: 808.1 | D70: 817.67 | E70: 796.53 | F70: 784.97 | G70: 763.83 | H70: 829.23 | I70: 850.37 | J70: 861.93 | K70: 838.8 | L70: 806.1 | M70: 0.91957
A71: 62 | B71: DIVISLAB | C71: 1759.15 | D71: 1760.23 | E71: 1746.47 | F71: 1733.78 | G71: 1720.02 | H71: 1772.92 | I71: 1786.68 | J71: 1799.37 | K71: 1774 | L71: 1747.55 | M71: 1.99141
A72: 63 | B72: DRREDDY | C72: 2794.95 | D72: 2799.63 | E72: 2775.27 | F72: 2755.58 | G72: 2731.22 | H72: 2819.32 | I72: 2843.68 | J72: 2863.37 | K72: 2824 | L72: 2779.95 | M72: 5.00795
A73: 64 | B73: EDELWEISS | C73: 82.65 | D73: 84.10 | E73: 81.20 | F73: 79.75 | G73: 76.85 | H73: 85.55 | I73: 88.45 | J73: 89.90 | K73: 87 | L73: 82.65 | M73: 16.58505
A74: 65 | B74: EICHERMOT | C74: 21321.75 | D74: 21228.93 | E74: 21042.87 | F74: 20763.98 | G74: 20577.92 | H74: 21507.82 | I74: 21693.88 | J74: 21972.77 | K74: 21415 | L74: 20950.05 | M74: 1.50522
A75: 66 | B75: EMAMILTD | C75: 325.95 | D75: 327.08 | E75: 318.37 | F75: 310.78 | G75: 302.07 | H75: 334.67 | I75: 343.38 | J75: 350.97 | K75: 335.8 | L75: 319.5 | M75: 4.73236
A76: 67 | B76: ENDURANCE | C76: 998.95 | D76: 1002.32 | E76: 990.63 | F76: 982.32 | G76: 970.63 | H76: 1010.63 | I76: 1022.32 | J76: 1030.63 | K76: 1014 | L76: 994 | M76: 0.04778
A77: 68 | B77: ENGINERSIN | C77: 109.3 | D77: 109.48 | E77: 108.37 | F77: 107.43 | G77: 106.32 | H77: 110.42 | I77: 111.53 | J77: 112.47 | K77: 110.6 | L77: 108.55 | M77: 6.34448
A78: 69 | B78: ESCORTS | C78: 640 | D78: 640.73 | E78: 630.47 | F78: 620.93 | G78: 610.67 | H78: 650.27 | I78: 660.53 | J78: 670.07 | K78: 651 | L78: 631.2 | M78: 19.95407
A79: 70 | B79: EXIDEIND | C79: 176.6 | D79: 176.23 | E79: 174.67 | F79: 172.73 | G79: 171.17 | H79: 178.17 | I79: 179.73 | J79: 181.67 | K79: 177.8 | L79: 174.3 | M79: 20.17819
A80: 71 | B80: FEDERALBNK | C80: 80.25 | D80: 80.45 | E80: 79.50 | F80: 78.75 | G80: 77.80 | H80: 81.20 | I80: 82.15 | J80: 82.90 | K80: 81.4 | L80: 79.7 | M80: 151.35361
A81: 72 | B81: FCONSUMER | C81: 22.85 | D81: 22.77 | E81: 21.63 | F81: 20.42 | G81: 19.28 | H81: 23.98 | I81: 25.12 | J81: 26.33 | K81: 23.9 | L81: 21.55 | M81: 15.48922
A82: 73 | B82: FRETAIL | C82: 379.95 | D82: 380.22 | E82: 377.93 | F82: 375.92 | G82: 373.63 | H82: 382.23 | I82: 384.52 | J82: 386.53 | K82: 382.5 | L82: 378.2 | M82: 1.0095
A83: 74 | B83: GAIL | C83: 123.05 | D83: 123.40 | E83: 122.00 | F83: 120.95 | G83: 119.55 | H83: 124.45 | I83: 125.85 | J83: 126.90 | K83: 124.8 | L83: 122.35 | M83: 80.2678
A84: 75 | B84: GMRINFRA | C84: 19.85 | D84: 19.98 | E84: 19.47 | F84: 19.08 | G84: 18.57 | H84: 20.37 | I84: 20.88 | J84: 21.27 | K84: 20.5 | L84: 19.6 | M84: 162.57834
A85: 76 | B85: GICRE | C85: 273.1 | D85: 265.43 | E85: 251.67 | F85: 230.23 | G85: 216.47 | H85: 286.87 | I85: 300.63 | J85: 322.07 | K85: 279.2 | L85: 244 | M85: 16.66284
A86: 77 | B86: GLENMARK | C86: 310.75 | D86: 309.47 | E86: 304.43 | F86: 298.12 | G86: 293.08 | H86: 315.78 | I86: 320.82 | J86: 327.13 | K86: 314.5 | L86: 303.15 | M86: 20.25089
A87: 78 | B87: GODREJAGRO | C87: 506.45 | D87: 504.37 | E87: 497.48 | F87: 488.52 | G87: 481.63 | H87: 513.33 | I87: 520.22 | J87: 529.18 | K87: 511.25 | L87: 495.4 | M87: 0.31253
A88: 79 | B88: GODREJCP | C88: 702.6 | D88: 707.10 | E88: 695.50 | F88: 688.40 | G88: 676.80 | H88: 714.20 | I88: 725.80 | J88: 732.90 | K88: 718.7 | L88: 700 | M88: 10.76799
A89: 80 | B89: GODREJIND | C89: 402 | D89: 401.58 | E89: 396.47 | F89: 390.93 | G89: 385.82 | H89: 407.12 | I89: 412.23 | J89: 417.77 | K89: 406.7 | L89: 396.05 | M89: 1.16463
A90: 81 | B90: GODREJPROP | C90: 975.35 | D90: 976.15 | E90: 964.20 | F90: 953.05 | G90: 941.10 | H90: 987.30 | I90: 999.25 | J90: 1010.40 | K90: 988.1 | L90: 965 | M90: 0.94507
A91: 82 | B91: GRAPHITE | C91: 278.95 | D91: 281.47 | E91: 273.63 | F91: 268.32 | G91: 260.48 | H91: 286.78 | I91: 294.62 | J91: 299.93 | K91: 289.3 | L91: 276.15 | M91: 10.93455
A92: 83 | B92: GRASIM | C92: 709.95 | D92: 705.28 | E92: 693.77 | F92: 677.58 | G92: 666.07 | H92: 721.47 | I92: 732.98 | J92: 749.17 | K92: 716.8 | L92: 689.1 | M92: 29.14804
A93: 84 | B93: GSPL | C93: 207.7 | D93: 208.18 | E93: 205.92 | F93: 204.13 | G93: 201.87 | H93: 209.97 | I93: 212.23 | J93: 214.02 | K93: 210.45 | L93: 206.4 | M93: 7.50457
A94: 85 | B94: HEG | C94: 984.05 | D94: 991.35 | E94: 967.70 | F94: 951.35 | G94: 927.70 | H94: 1007.70 | I94: 1031.35 | J94: 1047.70 | K94: 1015 | L94: 975 | M94: 3.20694
A95: 86 | B95: HCLTECH | C95: 1134.05 | D95: 1123.13 | E95: 1109.02 | F95: 1083.98 | G95: 1069.87 | H95: 1148.17 | I95: 1162.28 | J95: 1187.32 | K95: 1137.25 | L95: 1098.1 | M95: 22.9361
A96: 87 | B96: HDFCAMC | C96: 2898.55 | D96: 2927.53 | E96: 2853.02 | F96: 2807.48 | G96: 2732.97 | H96: 2973.07 | I96: 3047.58 | J96: 3093.12 | K96: 3002.05 | L96: 2882 | M96: 4.53274
A97: 88 | B97: HDFCBANK | C97: 1229 | D97: 1231.95 | E97: 1217.05 | F97: 1205.10 | G97: 1190.20 | H97: 1243.90 | I97: 1258.80 | J97: 1270.75 | K97: 1246.85 | L97: 1220 | M97: 64.96771
A98: 89 | B98: HDFCLIFE | C98: 610.5 | D98: 612.80 | E98: 605.80 | F98: 601.10 | G98: 594.10 | H98: 617.50 | I98: 624.50 | J98: 629.20 | K98: 619.8 | L98: 608.1 | M98: 19.8225
A99: 90 | B99: HAVELLS | C99: 664.8 | D99: 661.18 | E99: 653.62 | F99: 642.43 | G99: 634.87 | H99: 672.37 | I99: 679.93 | J99: 691.12 | K99: 668.75 | L99: 650 | M99: 9.31283
A100: 91 | B100: HEROMOTOCO | C100: 2657.55 | D100: 2665.18 | E100: 2622.37 | F100: 2587.18 | G100: 2544.37 | H100: 2700.37 | I100: 2743.18 | J100: 2778.37 | K100: 2708 | L100: 2630 | M100: 7.99469
A101: 92 | B101: HEXAWARE | C101: 339.35 | D101: 338.80 | E101: 335.10 | F101: 330.85 | G101: 327.15 | H101: 343.05 | I101: 346.75 | J101: 351.00 | K101: 342.5 | L101: 334.55 | M101: 11.00511
A102: 93 | B102: HINDALCO | C102: 181.75 | D102: 182.05 | E102: 180.70 | F102: 179.65 | G102: 178.30 | H102: 183.10 | I102: 184.45 | J102: 185.50 | K102: 183.4 | L102: 181 | M102: 59.56396
A103: 94 | B103: HINDPETRO | C103: 301.05 | D103: 301.87 | E103: 297.33 | F103: 293.62 | G103: 289.08 | H103: 305.58 | I103: 310.12 | J103: 313.83 | K103: 306.4 | L103: 298.15 | M103: 42.32379
A104: 95 | B104: HINDUNILVR | C104: 2145.1 | D104: 2143.63 | E104: 2130.77 | F104: 2116.43 | G104: 2103.57 | H104: 2157.97 | I104: 2170.83 | J104: 2185.17 | K104: 2156.5 | L104: 2129.3 | M104: 16.12038
A105: 96 | B105: HINDZINC | C105: 211.1 | D105: 211.82 | E105: 209.43 | F105: 207.77 | G105: 205.38 | H105: 213.48 | I105: 215.87 | J105: 217.53 | K105: 214.2 | L105: 210.15 | M105: 2.94829
A106: 97 | B106: HUDCO | C106: 35.25 | D106: 35.55 | E106: 34.80 | F106: 34.35 | G106: 33.60 | H106: 36.00 | I106: 36.75 | J106: 37.20 | K106: 36.3 | L106: 35.1 | M106: 6.05057
A107: 98 | B107: HDFC | C107: 2101.55 | D107: 2113.42 | E107: 2073.38 | F107: 2045.22 | G107: 2005.18 | H107: 2141.58 | I107: 2181.62 | J107: 2209.78 | K107: 2153.45 | L107: 2085.25 | M107: 30.9919
A108: 99 | B108: ICICIBANK | C108: 469.1 | D108: 464.72 | E108: 458.78 | F108: 448.47 | G108: 442.53 | H108: 475.03 | I108: 480.97 | J108: 491.28 | K108: 470.65 | L108: 454.4 | M108: 343.97573
A109: 100 | B109: ICICIGI | C109: 1329.25 | D109: 1335.08 | E109: 1305.27 | F109: 1281.28 | G109: 1251.47 | H109: 1359.07 | I109: 1388.88 | J109: 1412.87 | K109: 1364.9 | L109: 1311.1 | M109: 4.64205
A110: 101 | B110: ICICIPRULI | C110: 483.9 | D110: 481.90 | E110: 476.00 | F110: 468.10 | G110: 462.20 | H110: 489.80 | I110: 495.70 | J110: 503.60 | K110: 487.8 | L110: 474 | M110: 19.15211
A111: 102 | B111: IDBI | C111: 30.75 | D111: 30.70 | E111: 30.40 | F111: 30.05 | G111: 29.75 | H111: 31.05 | I111: 31.35 | J111: 31.70 | K111: 31 | L111: 30.35 | M111: 9.99028
A112: 103 | B112: IDFCFIRSTB | C112: 40.65 | D112: 40.80 | E112: 39.60 | F112: 38.55 | G112: 37.35 | H112: 41.85 | I112: 43.05 | J112: 44.10 | K112: 42 | L112: 39.75 | M112: 380.15186
A113: 104 | B113: ITC | C113: 247.7 | D113: 250.63 | E113: 244.07 | F113: 240.43 | G113: 233.87 | H113: 254.27 | I113: 260.83 | J113: 264.47 | K113: 257.2 | L113: 247 | M113: 325.91192
A114: 105 | B114: IBULHSGFIN | C114: 186.15 | D114: 191.30 | E114: 176.20 | F114: 166.25 | G114: 151.15 | H114: 201.25 | I114: 216.35 | J114: 226.30 | K114: 206.4 | L114: 181.35 | M114: 425.07989
A115: 106 | B115: IBVENTURES | C115: 96.8 | D115: 94.85 | E115: 91.85 | F115: 86.90 | G115: 83.90 | H115: 99.80 | I115: 102.80 | J115: 107.75 | K115: 97.85 | L115: 89.9 | M115: 8.48354
A116: 107 | B116: INDIANB | C116: 125.55 | D116: 124.67 | E116: 121.93 | F116: 118.32 | G116: 115.58 | H116: 128.28 | I116: 131.02 | J116: 134.63 | K116: 127.4 | L116: 121.05 | M116: 26.15312
A117: 108 | B117: INDHOTEL | C117: 150.85 | D117: 150.87 | E117: 149.48 | F117: 148.12 | G117: 146.73 | H117: 152.23 | I117: 153.62 | J117: 154.98 | K117: 152.25 | L117: 149.5 | M117: 7.76488
A118: 109 | B118: IOC | C118: 142.1 | D118: 142.18 | E118: 139.97 | F118: 137.83 | G118: 135.62 | H118: 144.32 | I118: 146.53 | J118: 148.67 | K118: 144.4 | L118: 140.05 | M118: 97.77982
A119: 110 | B119: IGL | C119: 377.05 | D119: 377.20 | E119: 373.05 | F119: 369.05 | G119: 364.90 | H119: 381.20 | I119: 385.35 | J119: 389.35 | K119: 381.35 | L119: 373.2 | M119: 15.69987
A120: 111 | B120: INDUSINDBK | C120: 1272.05 | D120: 1273.38 | E120: 1258.77 | F120: 1245.48 | G120: 1230.87 | H120: 1286.67 | I120: 1301.28 | J120: 1314.57 | K120: 1288 | L120: 1260.1 | M120: 41.41541
A121: 112 | B121: NAUKRI | C121: 2264.75 | D121: 2276.05 | E121: 2234.10 | F121: 2203.45 | G121: 2161.50 | H121: 2306.70 | I121: 2348.65 | J121: 2379.30 | K121: 2318 | L121: 2245.4 | M121: 1.33698
A122: 113 | B122: INFY | C122: 637.45 | D122: 641.98 | E122: 631.47 | F122: 625.48 | G122: 614.97 | H122: 647.97 | I122: 658.48 | J122: 664.47 | K122: 652.5 | L122: 636 | M122: 165.49337
A123: 114 | B123: INDIGO | C123: 1467.8 | D123: 1521.55 | E123: 1398.80 | F123: 1329.80 | G123: 1207.05 | H123: 1590.55 | I123: 1713.30 | J123: 1782.30 | K123: 1644.3 | L123: 1452.55 | M123: 112.29256
A124: 115 | B124: IPCALAB | C124: 977.45 | D124: 970.17 | E124: 959.33 | F124: 941.22 | G124: 930.38 | H124: 988.28 | I124: 999.12 | J124: 1017.23 | K124: 981 | L124: 952.05 | M124: 3.70049
A125: 116 | B125: JSWENERGY | C125: 67.4 | D125: 67.43 | E125: 66.47 | F125: 65.53 | G125: 64.57 | H125: 68.37 | I125: 69.33 | J125: 70.27 | K125: 68.4 | L125: 66.5 | M125: 1.9366
A126: 117 | B126: JSWSTEEL | C126: 217.35 | D126: 219.20 | E126: 214.25 | F126: 211.15 | G126: 206.20 | H126: 222.30 | I126: 227.25 | J126: 230.35 | K126: 224.15 | L126: 216.1 | M126: 86.1244
A127: 118 | B127: JINDALSTEL | C127: 104.85 | D127: 104.13 | E127: 102.47 | F127: 100.08 | G127: 98.42 | H127: 106.52 | I127: 108.18 | J127: 110.57 | K127: 105.8 | L127: 101.75 | M127: 175.13992
A128: 119 | B128: JUBLFOOD | C128: 1523 | D128: 1518.00 | E128: 1498.00 | F128: 1473.00 | G128: 1453.00 | H128: 1543.00 | I128: 1563.00 | J128: 1588.00 | K128: 1538 | L128: 1493 | M128: 12.71804
A129: 120 | B129: JUBILANT | C129: 561.65 | D129: 565.75 | E129: 547.70 | F129: 533.75 | G129: 515.70 | H129: 579.70 | I129: 597.75 | J129: 611.70 | K129: 583.8 | L129: 551.8 | M129: 5.49099
A130: 121 | B130: KOTAKBANK | C130: 1588.6 | D130: 1590.53 | E130: 1567.22 | F130: 1545.83 | G130: 1522.52 | H130: 1611.92 | I130: 1635.23 | J130: 1656.62 | K130: 1613.85 | L130: 1569.15 | M130: 28.6702
A131: 122 | B131: L&TFH | C131: 89.15 | D131: 88.67 | E131: 87.48 | F131: 85.82 | G131: 84.63 | H131: 90.33 | I131: 91.52 | J131: 93.18 | K131: 89.85 | L131: 87 | M131: 81.4232
A132: 123 | B132: LTTS | C132: 1460.35 | D132: 1457.62 | E132: 1446.83 | F132: 1433.32 | G132: 1422.53 | H132: 1471.13 | I132: 1481.92 | J132: 1495.43 | K132: 1468.4 | L132: 1444.1 | M132: 1.11259
A133: 124 | B133: LICHSGFIN | C133: 374.4 | D133: 374.68 | E133: 370.97 | F133: 367.53 | G133: 363.82 | H133: 378.12 | I133: 381.83 | J133: 385.27 | K133: 378.4 | L133: 371.25 | M133: 25.95807
A134: 125 | B134: LTI | C134: 1673.1 | D134: 1665.83 | E134: 1651.72 | F134: 1630.33 | G134: 1616.22 | H134: 1687.22 | I134: 1701.33 | J134: 1722.72 | K134: 1679.95 | L134: 1644.45 | M134: 0.77683
A135: 126 | B135: LT | C135: 1425 | D135: 1428.93 | E135: 1416.17 | F135: 1407.33 | G135: 1394.57 | H135: 1437.77 | I135: 1450.53 | J135: 1459.37 | K135: 1441.7 | L135: 1420.1 | M135: 20.13793
A136: 127 | B136: LUPIN | C136: 734.1 | D136: 732.08 | E136: 727.02 | F136: 719.93 | G136: 714.87 | H136: 739.17 | I136: 744.23 | J136: 751.32 | K136: 737.15 | L136: 725 | M136: 9.71238
A137: 128 | B137: MRF | C137: 63285.6 | D137: 63430.32 | E137: 62880.63 | F137: 62475.67 | G137: 61925.98 | H137: 63835.28 | I137: 64384.97 | J137: 64789.93 | K137: 63980 | L137: 63025.35 | M137: 0.05263
A138: 129 | B138: MGL | C138: 971.8 | D138: 965.60 | E138: 953.20 | F138: 934.60 | G138: 922.20 | H138: 984.20 | I138: 996.60 | J138: 1015.20 | K138: 978 | L138: 947 | M138: 12.50943
A139: 130 | B139: M&MFIN | C139: 337.25 | D139: 334.37 | E139: 330.23 | F139: 323.22 | G139: 319.08 | H139: 341.38 | I139: 345.52 | J139: 352.53 | K139: 338.5 | L139: 327.35 | M139: 21.41364
A140: 131 | B140: M&M | C140: 577.7 | D140: 577.88 | E140: 570.07 | F140: 562.43 | G140: 554.62 | H140: 585.52 | I140: 593.33 | J140: 600.97 | K140: 585.7 | L140: 570.25 | M140: 22.84548
A141: 132 | B141: MANAPPURAM | C141: 164.3 | D141: 164.47 | E141: 162.43 | F141: 160.57 | G141: 158.53 | H141: 166.33 | I141: 168.37 | J141: 170.23 | K141: 166.5 | L141: 162.6 | M141: 53.10669
A142: 133 | B142: MRPL | C142: 48.5 | D142: 48.72 | E142: 48.03 | F142: 47.57 | G142: 46.88 | H142: 49.18 | I142: 49.87 | J142: 50.33 | K142: 49.4 | L142: 48.25 | M142: 5.25243
A143: 134 | B143: MARICO | C143: 393.8 | D143: 391.93 | E143: 387.87 | F143: 381.93 | G143: 377.87 | H143: 397.87 | I143: 401.93 | J143: 407.87 | K143: 396 | L143: 386 | M143: 21.73362
A144: 135 | B144: MARUTI | C144: 7471.15 | D144: 7444.67 | E144: 7380.33 | F144: 7289.52 | G144: 7225.18 | H144: 7535.48 | I144: 7599.82 | J144: 7690.63 | K144: 7509 | L144: 7353.85 | M144: 13.53615
A145: 136 | B145: MFSL | C145: 404.65 | D145: 409.73 | E145: 396.67 | F145: 388.68 | G145: 375.62 | H145: 417.72 | I145: 430.78 | J145: 438.77 | K145: 422.8 | L145: 401.75 | M145: 10.12573
A146: 137 | B146: MINDTREE | C146: 718.7 | D146: 715.58 | E146: 710.97 | F146: 703.23 | G146: 698.62 | H146: 723.32 | I146: 727.93 | J146: 735.67 | K146: 720.2 | L146: 707.85 | M146: 3.03587
A147: 138 | B147: MOTHERSUMI | C147: 111 | D147: 111.30 | E147: 109.10 | F147: 107.20 | G147: 105.00 | H147: 113.20 | I147: 115.40 | J147: 117.30 | K147: 113.5 | L147: 109.4 | M147: 74.43723
A148: 139 | B148: MPHASIS | C148: 944.75 | D148: 938.23 | E148: 927.52 | F148: 910.28 | G148: 899.57 | H148: 955.47 | I148: 966.18 | J148: 983.42 | K148: 948.95 | L148: 921 | M148: 1.22543
A149: 140 | B149: MUTHOOTFIN | C149: 662.25 | D149: 665.22 | E149: 656.58 | F149: 650.92 | G149: 642.28 | H149: 670.88 | I149: 679.52 | J149: 685.18 | K149: 673.85 | L149: 659.55 | M149: 3.43226
A150: 141 | B150: NATCOPHARM | C150: 577.8 | D150: 580.23 | E150: 571.57 | F150: 565.33 | G150: 556.67 | H150: 586.47 | I150: 595.13 | J150: 601.37 | K150: 588.9 | L150: 574 | M150: 4.88078
A151: 142 | B151: NBCC | C151: 33.4 | D151: 33.70 | E151: 32.50 | F151: 31.60 | G151: 30.40 | H151: 34.60 | I151: 35.80 | J151: 36.70 | K151: 34.9 | L151: 32.8 | M151: 121.81131
A152: 143 | B152: NHPC | C152: 23.8 | D152: 23.67 | E152: 23.38 | F152: 22.97 | G152: 22.68 | H152: 24.08 | I152: 24.37 | J152: 24.78 | K152: 23.95 | L152: 23.25 | M152: 20.48306
A153: 144 | B153: NMDC | C153: 107.2 | D153: 106.50 | E153: 104.80 | F153: 102.40 | G153: 100.70 | H153: 108.90 | I153: 110.60 | J153: 113.00 | K153: 108.2 | L153: 104.1 | M153: 55.58552
A154: 145 | B154: NTPC | C154: 118.5 | D154: 119.18 | E154: 117.52 | F154: 116.53 | G154: 114.87 | H154: 120.17 | I154: 121.83 | J154: 122.82 | K154: 120.85 | L154: 118.2 | M154: 85.05881
A155: 146 | B155: NATIONALUM | C155: 42.55 | D155: 42.83 | E155: 42.02 | F155: 41.48 | G155: 40.67 | H155: 43.37 | I155: 44.18 | J155: 44.72 | K155: 43.65 | L155: 42.3 | M155: 61.59961
A156: 147 | B156: NESTLEIND | C156: 14803.35 | D156: 14721.57 | E156: 14543.13 | F156: 14282.92 | G156: 14104.48 | H156: 14981.78 | I156: 15160.22 | J156: 15420.43 | K156: 14900 | L156: 14461.35 | M156: 1.31479
A157: 148 | B157: OBEROIRLTY | C157: 504.8 | D157: 499.90 | E157: 491.10 | F157: 477.40 | G157: 468.60 | H157: 513.60 | I157: 522.40 | J157: 536.10 | K157: 508.7 | L157: 486.2 | M157: 4.38618
A158: 149 | B158: ONGC | C158: 139.55 | D158: 139.75 | E158: 137.90 | F158: 136.25 | G158: 134.40 | H158: 141.40 | I158: 143.25 | J158: 144.90 | K158: 141.6 | L158: 138.1 | M158: 66.36201
A159: 150 | B159: OIL | C159: 163.75 | D159: 165.28 | E159: 161.67 | F159: 159.58 | G159: 155.97 | H159: 167.37 | I159: 170.98 | J159: 173.07 | K159: 168.9 | L159: 163.2 | M159: 6.44794
A160: 151 | B160: OFSS | C160: 3065.45 | D160: 3065.82 | E160: 3039.63 | F160: 3013.82 | G160: 2987.63 | H160: 3091.63 | I160: 3117.82 | J160: 3143.63 | K160: 3092 | L160: 3040 | M160: 0.08116
A161: 152 | B161: ORIENTBANK | C161: 50.55 | D161: 50.52 | E161: 49.78 | F161: 49.02 | G161: 48.28 | H161: 51.28 | I161: 52.02 | J161: 52.78 | K161: 51.25 | L161: 49.75 | M161: 6.83502
A162: 153 | B162: PIIND | C162: 1369.85 | D162: 1388.48 | E162: 1341.37 | F162: 1312.88 | G162: 1265.77 | H162: 1416.97 | I162: 1464.08 | J162: 1492.57 | K162: 1435.6 | L162: 1360 | M162: 1.24354
A163: 154 | B163: PNBHOUSING | C163: 490.5 | D163: 503.07 | E163: 453.43 | F163: 416.37 | G163: 366.73 | H163: 540.13 | I163: 589.77 | J163: 626.83 | K163: 552.7 | L163: 466 | M163: 84.92557
A164: 155 | B164: PAGEIND | C164: 23415.85 | D164: 23267.22 | E164: 22948.63 | F164: 22481.42 | G164: 22162.83 | H164: 23734.43 | I164: 24053.02 | J164: 24520.23 | K164: 23585.8 | L164: 22800 | M164: 0.34026
A165: 156 | B165: PETRONET | C165: 271.25 | D165: 270.88 | E165: 268.87 | F165: 266.48 | G165: 264.47 | H165: 273.27 | I165: 275.28 | J165: 277.67 | K165: 272.9 | L165: 268.5 | M165: 21.39789
A166: 157 | B166: PFIZER | C166: 3493.15 | D166: 3484.30 | E166: 3433.60 | F166: 3374.05 | G166: 3323.35 | H166: 3543.85 | I166: 3594.55 | J166: 3654.10 | K166: 3535 | L166: 3424.75 | M166: 0.67779
A167: 158 | B167: PIDILITIND | C167: 1338.75 | D167: 1350.55 | E167: 1321.20 | F167: 1303.65 | G167: 1274.30 | H167: 1368.10 | I167: 1397.45 | J167: 1415.00 | K167: 1379.9 | L167: 1333 | M167: 9.57873
A168: 159 | B168: PEL | C168: 1592.35 | D168: 1588.12 | E168: 1434.23 | F168: 1276.12 | G168: 1122.23 | H168: 1746.23 | I168: 1900.12 | J168: 2058.23 | K168: 1742 | L168: 1430 | M168: 74.92214
A169: 160 | B169: PFC | C169: 106.1 | D169: 105.25 | E169: 103.90 | F169: 101.70 | G169: 100.35 | H169: 107.45 | I169: 108.80 | J169: 111.00 | K169: 106.6 | L169: 103.05 | M169: 55.19811
A170: 161 | B170: POWERGRID | C170: 202.95 | D170: 203.17 | E170: 200.93 | F170: 198.92 | G170: 196.68 | H170: 205.18 | I170: 207.42 | J170: 209.43 | K170: 205.4 | L170: 201.15 | M170: 22.4641
A171: 162 | B171: PRESTIGE | C171: 299.8 | D171: 301.23 | E171: 296.62 | F171: 293.43 | G171: 288.82 | H171: 304.42 | I171: 309.03 | J171: 312.22 | K171: 305.85 | L171: 298.05 | M171: 0.68124
A172: 163 | B172: PGHH | C172: 12126.25 | D172: 12162.30 | E172: 11879.65 | F172: 11633.05 | G172: 11350.40 | H172: 12408.90 | I172: 12691.55 | J172: 12938.15 | K172: 12444.95 | L172: 11915.7 | M172: 0.0488
A173: 164 | B173: PNB | C173: 60.7 | D173: 60.22 | E173: 59.18 | F173: 57.67 | G173: 56.63 | H173: 61.73 | I173: 62.77 | J173: 64.28 | K173: 61.25 | L173: 58.7 | M173: 265.81062
A174: 165 | B174: QUESS | C174: 471.2 | D174: 469.72 | E174: 464.43 | F174: 457.67 | G174: 452.38 | H174: 476.48 | I174: 481.77 | J174: 488.53 | K174: 475 | L174: 462.95 | M174: 0.50015
A175: 166 | B175: RBLBANK | C175: 260.35 | D175: 257.12 | E175: 251.23 | F175: 242.12 | G175: 236.23 | H175: 266.23 | I175: 272.12 | J175: 281.23 | K175: 263 | L175: 248 | M175: 124.91819
A176: 167 | B176: RECLTD | C176: 136.35 | D176: 135.32 | E176: 133.83 | F176: 131.32 | G176: 129.83 | H176: 137.83 | I176: 139.32 | J176: 141.83 | K176: 136.8 | L176: 132.8 | M176: 26.23464
A177: 168 | B177: RAJESHEXPO | C177: 671.45 | D177: 673.43 | E177: 667.07 | F177: 662.68 | G177: 656.32 | H177: 677.82 | I177: 684.18 | J177: 688.57 | K177: 679.8 | L177: 669.05 | M177: 3.13837
A178: 169 | B178: RELIANCE | C178: 1431.2 | D178: 1427.97 | E178: 1414.48 | F178: 1397.77 | G178: 1384.28 | H178: 1444.68 | I178: 1458.17 | J178: 1474.88 | K178: 1441.45 | L178: 1411.25 | M178: 61.90013
A179: 170 | B179: RNAM | C179: 316.1 | D179: 318.98 | E179: 304.67 | F179: 293.23 | G179: 278.92 | H179: 330.42 | I179: 344.73 | J179: 356.17 | K179: 333.3 | L179: 307.55 | M179: 39.25301
A180: 171 | B180: SBILIFE | C180: 982.15 | D180: 982.47 | E180: 964.93 | F180: 947.72 | G180: 930.18 | H180: 999.68 | I180: 1017.22 | J180: 1034.43 | K180: 1000 | L180: 965.25 | M180: 9.75234
A181: 172 | B181: SRF | C181: 2851.1 | D181: 2872.03 | E181: 2814.07 | F181: 2777.03 | G181: 2719.07 | H181: 2909.07 | I181: 2967.03 | J181: 3004.07 | K181: 2930 | L181: 2835 | M181: 5.01355
A182: 173 | B182: SHREECEM | C182: 20130.75 | D182: 20204.88 | E182: 19950.87 | F182: 19770.98 | G182: 19516.97 | H182: 20384.77 | I182: 20638.78 | J182: 20818.67 | K182: 20458.9 | L182: 20025 | M182: 0.1373
A183: 174 | B183: SRTRANSFIN | C183: 1125.15 | D183: 1107.95 | E183: 1082.60 | F183: 1040.05 | G183: 1014.70 | H183: 1150.50 | I183: 1175.85 | J183: 1218.40 | K183: 1133.3 | L183: 1065.4 | M183: 13.62681
A184: 175 | B184: SIEMENS | C184: 1620.6 | D184: 1614.77 | E184: 1598.33 | F184: 1576.07 | G184: 1559.63 | H184: 1637.03 | I184: 1653.47 | J184: 1675.73 | K184: 1631.2 | L184: 1592.5 | M184: 5.93215
A185: 176 | B185: SBIN | C185: 281.55 | D185: 276.42 | E185: 268.68 | F185: 255.82 | G185: 248.08 | H185: 289.28 | I185: 297.02 | J185: 309.88 | K185: 284.15 | L185: 263.55 | M185: 1055.1818
A186: 177 | B186: SAIL | C186: 34.9 | D186: 34.70 | E186: 34.25 | F186: 33.60 | G186: 33.15 | H186: 35.35 | I186: 35.80 | J186: 36.45 | K186: 35.15 | L186: 34.05 | M186: 238.78498
A187: 178 | B187: STRTECH | C187: 124.85 | D187: 128.72 | E187: 114.78 | F187: 104.72 | G187: 90.78 | H187: 138.78 | I187: 152.72 | J187: 162.78 | K187: 142.65 | L187: 118.65 | M187: 68.37136
A188: 179 | B188: SUNPHARMA | C188: 417.5 | D188: 412.68 | E188: 405.87 | F188: 394.23 | G188: 387.42 | H188: 424.32 | I188: 431.13 | J188: 442.77 | K188: 419.5 | L188: 401.05 | M188: 48.45146
A189: 180 | B189: SUNTV | C189: 531.6 | D189: 529.27 | E189: 522.78 | F189: 513.97 | G189: 507.48 | H189: 538.08 | I189: 544.57 | J189: 553.38 | K189: 535.75 | L189: 520.45 | M189: 13.63039
A190: 181 | B190: SYNGENE | C190: 330 | D190: 330.47 | E190: 326.73 | F190: 323.47 | G190: 319.73 | H190: 333.73 | I190: 337.47 | J190: 340.73 | K190: 334.2 | L190: 327.2 | M190: 0.69511
A191: 182 | B191: TVSMOTOR | C191: 464.95 | D191: 461.43 | E191: 455.87 | F191: 446.78 | G191: 441.22 | H191: 470.52 | I191: 476.08 | J191: 485.17 | K191: 467 | L191: 452.35 | M191: 17.73165
A192: 183 | B192: TATACHEM | C192: 609.65 | D192: 611.00 | E192: 605.15 | F192: 600.65 | G192: 594.80 | H192: 615.50 | I192: 621.35 | J192: 625.85 | K192: 616.85 | L192: 606.5 | M192: 2.44921
A193: 184 | B193: TCS | C193: 2124.95 | D193: 2110.00 | E193: 2090.00 | F193: 2055.05 | G193: 2035.05 | H193: 2144.95 | I193: 2164.95 | J193: 2199.90 | K193: 2130 | L193: 2075.05 | M193: 39.54245
A194: 185 | B194: TATAGLOBAL | C194: 279.6 | D194: 279.63 | E194: 277.32 | F194: 275.03 | G194: 272.72 | H194: 281.92 | I194: 284.23 | J194: 286.52 | K194: 281.95 | L194: 277.35 | M194: 13.38263
A195: 186 | B195: TATAMTRDVR | C195: 57.55 | D195: 57.98 | E195: 56.27 | F195: 54.98 | G195: 53.27 | H195: 59.27 | I195: 60.98 | J195: 62.27 | K195: 59.7 | L195: 56.7 | M195: 79.43819
A196: 187 | B196: TATAMOTORS | C196: 126.85 | D196: 128.52 | E196: 124.03 | F196: 121.22 | G196: 116.73 | H196: 131.33 | I196: 135.82 | J196: 138.63 | K196: 133 | L196: 125.7 | M196: 428.68958
A197: 188 | B197: TATAPOWER | C197: 57.6 | D197: 58.17 | E197: 56.68 | F197: 55.77 | G197: 54.28 | H197: 59.08 | I197: 60.57 | J197: 61.48 | K197: 59.65 | L197: 57.25 | M197: 46.57499
A198: 189 | B198: TATASTEEL | C198: 362.25 | D198: 362.42 | E198: 355.88 | F198: 349.52 | G198: 342.98 | H198: 368.78 | I198: 375.32 | J198: 381.68 | K198: 368.95 | L198: 356.05 | M198: 149.96692
A199: 190 | B199: TECHM | C199: 720.95 | D199: 717.68 | E199: 704.47 | F199: 687.98 | G199: 674.77 | H199: 734.17 | I199: 747.38 | J199: 763.87 | K199: 730.9 | L199: 701.2 | M199: 27.85014
A200: 191 | B200: NIACL | C200: 141.6 | D200: 136.43 | E200: 131.27 | F200: 120.93 | G200: 115.77 | H200: 146.77 | I200: 151.93 | J200: 162.27 | K200: 141.6 | L200: 126.1 | M200: 7.01639
A201: 192 | B201: RAMCOCEM | C201: 755.35 | D201: 751.35 | E201: 744.60 | F201: 733.85 | G201: 727.10 | H201: 762.10 | I201: 768.85 | J201: 779.60 | K201: 758.1 | L201: 740.6 | M201: 2.35224
A202: 193 | B202: TITAN | C202: 1335 | D202: 1352.03 | E202: 1314.12 | F202: 1293.23 | G202: 1255.32 | H202: 1372.92 | I202: 1410.83 | J202: 1431.72 | K202: 1389.95 | L202: 1331.15 | M202: 39.34315
A203: 194 | B203: TORNTPHARM | C203: 1743.8 | D203: 1748.50 | E203: 1729.25 | F203: 1714.70 | G203: 1695.45 | H203: 1763.05 | I203: 1782.30 | J203: 1796.85 | K203: 1767.75 | L203: 1733.95 | M203: 2.0989
A204: 195 | B204: TORNTPOWER | C204: 275.75 | D204: 276.98 | E204: 273.27 | F204: 270.78 | G204: 267.07 | H204: 279.47 | I204: 283.18 | J204: 285.67 | K204: 280.7 | L204: 274.5 | M204: 5.38926
A205: 196 | B205: UPL | C205: 594.6 | D205: 595.48 | E205: 589.02 | F205: 583.43 | G205: 576.97 | H205: 601.07 | I205: 607.53 | J205: 613.12 | K205: 601.95 | L205: 589.9 | M205: 21.74674
... 30 more rows

Sheet MidCap Intra
L5: Back To Main Page
A6: FOR INTRA DAY TRADING | K6: =Main!B10 -> 2019-10-27
A9: Sr.no | B9: Scrip | C9: CLOSE RATE | D9: Pivot Point | E9: Supports | H9: Resistances
C10: Point | E10: S1 | F10: S2 | G10: S3 | H10: R1 | I10: R2 | J10: R3 | K10: HIGH | L10: LOW | M10: Total Trade Quanity in Lakhs
A11: 1 | B11: 3MINDIA | C11: 21898.1 | D11: 21621.75 | E11: 21178.50 | F11: 20458.90 | G11: 20015.65 | H11: 22341.35 | I11: 22784.60 | J11: 23504.20 | K11: 22065 | L11: 20902.15 | M11: 0.04425
A12: 2 | B12: ACC | C12: 1518.4 | D12: 1514.78 | E12: 1504.62 | F12: 1490.83 | G12: 1480.67 | H12: 1528.57 | I12: 1538.73 | J12: 1552.52 | K12: 1524.95 | L12: 1501 | M12: 6.45397
A13: 3 | B13: AIAENG | C13: 1672.7 | D13: 1664.80 | E13: 1648.90 | F13: 1625.10 | G13: 1609.20 | H13: 1688.60 | I13: 1704.50 | J13: 1728.30 | K13: 1680.7 | L13: 1641 | M13: 0.15163
A14: 4 | B14: APLAPOLLO | C14: 1388.05 | D14: 1387.68 | E14: 1375.37 | F14: 1362.68 | G14: 1350.37 | H14: 1400.37 | I14: 1412.68 | J14: 1425.37 | K14: 1400 | L14: 1375 | M14: 0.09331
A15: 5 | B15: AUBANK | C15: 688.4 | D15: 685.45 | E15: 675.95 | F15: 663.50 | G15: 654.00 | H15: 697.90 | I15: 707.40 | J15: 719.85 | K15: 694.95 | L15: 673 | M15: 4.86059
A16: 6 | B16: AAVAS | C16: 1624.1 | D16: 1622.93 | E16: 1586.87 | F16: 1549.63 | G16: 1513.57 | H16: 1660.17 | I16: 1696.23 | J16: 1733.47 | K16: 1659 | L16: 1585.7 | M16: 0.49684
A17: 7 | B17: ABBOTINDIA | C17: 11407.25 | D17: 11342.42 | E17: 11190.83 | F17: 10974.42 | G17: 10822.83 | H17: 11558.83 | I17: 11710.42 | J17: 11926.83 | K17: 11494 | L17: 11126 | M17: 0.15152
A18: 8 | B18: ADANIGAS | C18: 146.75 | D18: 146.98 | E18: 144.52 | F18: 142.28 | G18: 139.82 | H18: 149.22 | I18: 151.68 | J18: 153.92 | K18: 149.45 | L18: 144.75 | M18: 7.12618
A19: 9 | B19: ADANIGREEN | C19: 88.95 | D19: 89.02 | E19: 84.93 | F19: 80.92 | G19: 76.83 | H19: 93.03 | I19: 97.12 | J19: 101.13 | K19: 93.1 | L19: 85 | M19: 31.9258
A20: 10 | B20: ADANIPORTS | C20: 398.95 | D20: 399.58 | E20: 396.22 | F20: 393.48 | G20: 390.12 | H20: 402.32 | I20: 405.68 | J20: 408.42 | K20: 402.95 | L20: 396.85 | M20: 32.72059
A21: 11 | B21: ADANIPOWER | C21: 64.2 | D21: 64.12 | E21: 63.23 | F21: 62.27 | G21: 61.38 | H21: 65.08 | I21: 65.97 | J21: 66.93 | K21: 65 | L21: 63.15 | M21: 67.67043
A22: 12 | B22: ADANITRANS | C22: 262.55 | D22: 265.75 | E22: 257.80 | F22: 253.05 | G22: 245.10 | H22: 270.50 | I22: 278.45 | J22: 283.20 | K22: 273.7 | L22: 261 | M22: 3.5467
A23: 13 | B23: ABCAPITAL | C23: 79.05 | D23: 79.83 | E23: 77.97 | F23: 76.88 | G23: 75.02 | H23: 80.92 | I23: 82.78 | J23: 83.87 | K23: 81.7 | L23: 78.75 | M23: 13.65709
A24: 14 | B24: ABFRL | C24: 203.95 | D24: 203.55 | E24: 201.70 | F24: 199.45 | G24: 197.60 | H24: 205.80 | I24: 207.65 | J24: 209.90 | K24: 205.4 | L24: 201.3 | M24: 2.77592
A25: 15 | B25: ADVENZYMES | C25: 160.75 | D25: 160.15 | E25: 157.65 | F25: 154.55 | G25: 152.05 | H25: 163.25 | I25: 165.75 | J25: 168.85 | K25: 162.65 | L25: 157.05 | M25: 0.50262
A26: 16 | B26: AEGISCHEM | C26: 164.15 | D26: 166.87 | E26: 159.28 | F26: 154.42 | G26: 146.83 | H26: 171.73 | I26: 179.32 | J26: 184.18 | K26: 174.45 | L26: 162 | M26: 1.86877
A27: 17 | B27: AJANTPHARM | C27: 990.5 | D27: 993.38 | E27: 979.82 | F27: 969.13 | G27: 955.57 | H27: 1004.07 | I27: 1017.63 | J27: 1028.32 | K27: 1006.95 | L27: 982.7 | M27: 0.29239
A28: 18 | B28: AKZOINDIA | C28: 2031.35 | D28: 2027.73 | E28: 2006.52 | F28: 1981.68 | G28: 1960.47 | H28: 2052.57 | I28: 2073.78 | J28: 2098.62 | K28: 2048.95 | L28: 2002.9 | M28: 0.07649
A29: 19 | B29: APLLTD | C29: 539.65 | D29: 545.40 | E29: 526.80 | F29: 513.95 | G29: 495.35 | H29: 558.25 | I29: 576.85 | J29: 589.70 | K29: 564 | L29: 532.55 | M29: 9.3542
A30: 20 | B30: ALKEM | C30: 1960.2 | D30: 1966.08 | E30: 1942.22 | F30: 1924.23 | G30: 1900.37 | H30: 1984.07 | I30: 2007.93 | J30: 2025.92 | K30: 1989.95 | L30: 1948.1 | M30: 0.13429
A31: 21 | B31: ALBK | C31: 25.25 | D31: 25.37 | E31: 24.88 | F31: 24.52 | G31: 24.03 | H31: 25.73 | I31: 26.22 | J31: 26.58 | K31: 25.85 | L31: 25 | M31: 6.38143
A32: 22 | B32: ALLCARGO | C32: 98.45 | D32: 98.70 | E32: 97.65 | F32: 96.85 | G32: 95.80 | H32: 99.50 | I32: 100.55 | J32: 101.35 | K32: 99.75 | L32: 97.9 | M32: 0.58826
A33: 23 | B33: AMARAJABAT | C33: 651.35 | D33: 654.48 | E33: 645.57 | F33: 639.78 | G33: 630.87 | H33: 660.27 | I33: 669.18 | J33: 674.97 | K33: 663.4 | L33: 648.7 | M33: 1.72095
A34: 24 | B34: AMBER | C34: 991 | D34: 998.35 | E34: 972.70 | F34: 954.40 | G34: 928.75 | H34: 1016.65 | I34: 1042.30 | J34: 1060.60 | K34: 1024 | L34: 980.05 | M34: 0.56031
A35: 25 | B35: AMBUJACEM | C35: 197.45 | D35: 197.28 | E35: 195.47 | F35: 193.48 | G35: 191.67 | H35: 199.27 | I35: 201.08 | J35: 203.07 | K35: 199.1 | L35: 195.3 | M35: 28.75494
A36: 26 | B36: ANDHRABANK | C36: 16.1 | D36: 16.15 | E36: 16.00 | F36: 15.90 | G36: 15.75 | H36: 16.25 | I36: 16.40 | J36: 16.50 | K36: 16.3 | L36: 16.05 | M36: 2.47562
A37: 27 | B37: APOLLOHOSP | C37: 1519.35 | D37: 1523.33 | E37: 1503.37 | F37: 1487.38 | G37: 1467.42 | H37: 1539.32 | I37: 1559.28 | J37: 1575.27 | K37: 1543.3 | L37: 1507.35 | M37: 2.8934
A38: 28 | B38: APOLLOTYRE | C38: 181 | D38: 181.38 | E38: 178.57 | F38: 176.13 | G38: 173.32 | H38: 183.82 | I38: 186.63 | J38: 189.07 | K38: 184.2 | L38: 178.95 | M38: 25.41205
A39: 29 | B39: ARVINDFASN | C39: 451.4 | D39: 450.13 | E39: 440.27 | F39: 429.13 | G39: 419.27 | H39: 461.27 | I39: 471.13 | J39: 482.27 | K39: 460 | L39: 439 | M39: 0.18357
A40: 30 | B40: ASHOKLEY | C40: 74.7 | D40: 74.50 | E40: 73.35 | F40: 72.00 | G40: 70.85 | H40: 75.85 | I40: 77.00 | J40: 78.35 | K40: 75.65 | L40: 73.15 | M40: 215.9491
A41: 31 | B41: ASHOKA | C41: 105.15 | D41: 104.70 | E41: 102.60 | F41: 100.05 | G41: 97.95 | H41: 107.25 | I41: 109.35 | J41: 111.90 | K41: 106.8 | L41: 102.15 | M41: 2.05353
A42: 32 | B42: ASIANPAINT | C42: 1796.3 | D42: 1796.58 | E42: 1784.77 | F42: 1773.23 | G42: 1761.42 | H42: 1808.12 | I42: 1819.93 | J42: 1831.47 | K42: 1808.4 | L42: 1785.05 | M42: 12.02154
A43: 33 | B43: ASTERDM | C43: 125.55 | D43: 125.10 | E43: 124.20 | F43: 122.85 | G43: 121.95 | H43: 126.45 | I43: 127.35 | J43: 128.70 | K43: 126 | L43: 123.75 | M43: 0.33737
A44: 34 | B44: ASTRAZEN | C44: 2504.4 | D44: 2497.80 | E44: 2460.60 | F44: 2416.80 | G44: 2379.60 | H44: 2541.60 | I44: 2578.80 | J44: 2622.60 | K44: 2535 | L44: 2454 | M44: 0.11174
A45: 35 | B45: ASTRAL | C45: 1123.8 | D45: 1142.93 | E45: 1100.87 | F45: 1077.93 | G45: 1035.87 | H45: 1165.87 | I45: 1207.93 | J45: 1230.87 | K45: 1185 | L45: 1120 | M45: 2.43013
A46: 36 | B46: ATUL | C46: 4251.6 | D46: 4273.27 | E46: 4199.53 | F46: 4147.47 | G46: 4073.73 | H46: 4325.33 | I46: 4399.07 | J46: 4451.13 | K46: 4347 | L46: 4221.2 | M46: 0.39154
A47: 37 | B47: AUROPHARMA | C47: 470.75 | D47: 469.58 | E47: 464.17 | F47: 457.58 | G47: 452.17 | H47: 476.17 | I47: 481.58 | J47: 488.17 | K47: 475 | L47: 463 | M47: 31.81241
A48: 38 | B48: AVANTIFEED | C48: 440.9 | D48: 442.83 | E48: 434.77 | F48: 428.63 | G48: 420.57 | H48: 448.97 | I48: 457.03 | J48: 463.17 | K48: 450.9 | L48: 436.7 | M48: 2.27282
A49: 39 | B49: DMART | C49: 1883.95 | D49: 1885.58 | E49: 1869.37 | F49: 1854.78 | G49: 1838.57 | H49: 1900.17 | I49: 1916.38 | J49: 1930.97 | K49: 1901.8 | L49: 1871 | M49: 1.62703
A50: 40 | B50: AXISBANK | C50: 708.6 | D50: 704.87 | E50: 698.73 | F50: 688.87 | G50: 682.73 | H50: 714.73 | I50: 720.87 | J50: 730.73 | K50: 711 | L50: 695 | M50: 82.26456
A51: 41 | B51: BASF | C51: 954.45 | D51: 958.07 | E51: 947.43 | F51: 940.42 | G51: 929.78 | H51: 965.08 | I51: 975.72 | J51: 982.73 | K51: 968.7 | L51: 951.05 | M51: 0.05738
A52: 42 | B52: BEML | C52: 946.1 | D52: 950.13 | E52: 932.27 | F52: 918.43 | G52: 900.57 | H52: 963.97 | I52: 981.83 | J52: 995.67 | K52: 968 | L52: 936.3 | M52: 6.37168
A53: 43 | B53: BSE | C53: 542.4 | D53: 545.90 | E53: 537.80 | F53: 533.20 | G53: 525.10 | H53: 550.50 | I53: 558.60 | J53: 563.20 | K53: 554 | L53: 541.3 | M53: 0.39006
A54: 44 | B54: BAJAJ-AUTO | C54: 3129.65 | D54: 3142.27 | E54: 3097.38 | F54: 3065.12 | G54: 3020.23 | H54: 3174.53 | I54: 3219.42 | J54: 3251.68 | K54: 3187.15 | L54: 3110 | M54: 3.6973
A55: 45 | B55: BAJAJCON | C55: 239.05 | D55: 240.82 | E55: 235.23 | F55: 231.42 | G55: 225.83 | H55: 244.63 | I55: 250.22 | J55: 254.03 | K55: 246.4 | L55: 237 | M55: 3.29242
A56: 46 | B56: BAJAJELEC | C56: 375.7 | D56: 377.53 | E56: 368.17 | F56: 360.63 | G56: 351.27 | H56: 385.07 | I56: 394.43 | J56: 401.97 | K56: 386.9 | L56: 370 | M56: 0.89674
A57: 47 | B57: BAJFINANCE | C57: 3987.25 | D57: 3983.70 | E57: 3903.55 | F57: 3819.85 | G57: 3739.70 | H57: 4067.40 | I57: 4147.55 | J57: 4231.25 | K57: 4063.85 | L57: 3900 | M57: 17.58098
A58: 48 | B58: BAJAJFINSV | C58: 7972.15 | D58: 7994.72 | E58: 7829.43 | F58: 7686.72 | G58: 7521.43 | H58: 8137.43 | I58: 8302.72 | J58: 8445.43 | K58: 8160 | L58: 7852 | M58: 3.54844
A59: 49 | B59: BAJAJHLDNG | C59: 3651.2 | D59: 3666.07 | E59: 3616.13 | F59: 3581.07 | G59: 3531.13 | H59: 3701.13 | I59: 3751.07 | J59: 3786.13 | K59: 3716 | L59: 3631 | M59: 0.11937
A60: 50 | B60: BALKRISIND | C60: 839.65 | D60: 838.22 | E60: 826.43 | F60: 813.22 | G60: 801.43 | H60: 851.43 | I60: 863.22 | J60: 876.43 | K60: 850 | L60: 825 | M60: 5.46606
A61: 51 | B61: BALMLAWRIE | C61: 181.5 | D61: 182.23 | E61: 179.62 | F61: 177.73 | G61: 175.12 | H61: 184.12 | I61: 186.73 | J61: 188.62 | K61: 184.85 | L61: 180.35 | M61: 0.62226
A62: 52 | B62: BALRAMCHIN | C62: 153.75 | D62: 154.88 | E62: 151.12 | F62: 148.48 | G62: 144.72 | H62: 157.52 | I62: 161.28 | J62: 163.92 | K62: 158.65 | L62: 152.25 | M62: 4.9608
A63: 53 | B63: BANDHANBNK | C63: 594.85 | D63: 590.30 | E63: 581.60 | F63: 568.35 | G63: 559.65 | H63: 603.55 | I63: 612.25 | J63: 625.50 | K63: 599 | L63: 577.05 | M63: 25.12565
A64: 54 | B64: BANKBARODA | C64: 91.55 | D64: 90.80 | E64: 89.45 | F64: 87.35 | G64: 86.00 | H64: 92.90 | I64: 94.25 | J64: 96.35 | K64: 92.15 | L64: 88.7 | M64: 317.67476
A65: 55 | B65: BANKINDIA | C65: 65.85 | D65: 65.12 | E65: 63.78 | F65: 61.72 | G65: 60.38 | H65: 67.18 | I65: 68.52 | J65: 70.58 | K65: 66.45 | L65: 63.05 | M65: 84.63208
A66: 56 | B66: MAHABANK | C66: 10.75 | D66: 10.78 | E66: 10.62 | F66: 10.48 | G66: 10.32 | H66: 10.92 | I66: 11.08 | J66: 11.22 | K66: 10.95 | L66: 10.65 | M66: 3.62288
A67: 57 | B67: BATAINDIA | C67: 1763.5 | D67: 1771.68 | E67: 1746.37 | F67: 1729.23 | G67: 1703.92 | H67: 1788.82 | I67: 1814.13 | J67: 1831.27 | K67: 1797 | L67: 1754.55 | M67: 5.94439
A68: 58 | B68: BAYERCROP | C68: 3252 | D68: 3278.67 | E68: 3199.33 | F68: 3146.67 | G68: 3067.33 | H68: 3331.33 | I68: 3410.67 | J68: 3463.33 | K68: 3358 | L68: 3226 | M68: 0.04517
A69: 59 | B69: BERGEPAINT | C69: 492.1 | D69: 493.48 | E69: 485.02 | F69: 477.93 | G69: 469.47 | H69: 500.57 | I69: 509.03 | J69: 516.12 | K69: 501.95 | L69: 486.4 | M69: 25.57982
A70: 60 | B70: BDL | C70: 296.75 | D70: 294.93 | E70: 289.92 | F70: 283.08 | G70: 278.07 | H70: 301.77 | I70: 306.78 | J70: 313.62 | K70: 299.95 | L70: 288.1 | M70: 0.37571
A71: 61 | B71: BEL | C71: 116.7 | D71: 116.20 | E71: 115.15 | F71: 113.60 | G71: 112.55 | H71: 117.75 | I71: 118.80 | J71: 120.35 | K71: 117.25 | L71: 114.65 | M71: 75.75021
A72: 62 | B72: BHARATFORG | C72: 451.8 | D72: 451.13 | E72: 447.37 | F72: 442.93 | G72: 439.17 | H72: 455.57 | I72: 459.33 | J72: 463.77 | K72: 454.9 | L72: 446.7 | M72: 8.90806
A73: 63 | B73: BHEL | C73: 50.95 | D73: 51.00 | E73: 49.60 | F73: 48.25 | G73: 46.85 | H73: 52.35 | I73: 53.75 | J73: 55.10 | K73: 52.4 | L73: 49.65 | M73: 284.7402
A74: 64 | B74: BPCL | C74: 524.15 | D74: 522.37 | E74: 511.53 | F74: 498.92 | G74: 488.08 | H74: 534.98 | I74: 545.82 | J74: 558.43 | K74: 533.2 | L74: 509.75 | M74: 133.81183
A75: 65 | B75: BHARTIARTL | C75: 375.15 | D75: 372.05 | E75: 365.70 | F75: 356.25 | G75: 349.90 | H75: 381.50 | I75: 387.85 | J75: 397.30 | K75: 378.4 | L75: 362.6 | M75: 277.54837
A76: 66 | B76: INFRATEL | C76: 217 | D76: 222.65 | E76: 207.30 | F76: 197.60 | G76: 182.25 | H76: 232.35 | I76: 247.70 | J76: 257.40 | K76: 238 | L76: 212.95 | M76: 215.36622
A77: 67 | B77: BIOCON | C77: 241.65 | D77: 240.95 | E77: 236.85 | F77: 232.05 | G77: 227.95 | H77: 245.75 | I77: 249.85 | J77: 254.65 | K77: 245.05 | L77: 236.15 | M77: 80.84796
A78: 68 | B78: BIRLACORPN | C78: 566 | D78: 571.80 | E78: 556.35 | F78: 546.70 | G78: 531.25 | H78: 581.45 | I78: 596.90 | J78: 606.55 | K78: 587.25 | L78: 562.15 | M78: 0.27477
A79: 69 | B79: BSOFT | C79: 70.15 | D79: 70.25 | E79: 68.60 | F79: 67.05 | G79: 65.40 | H79: 71.80 | I79: 73.45 | J79: 75.00 | K79: 71.9 | L79: 68.7 | M79: 2.92706
A80: 70 | B80: BLISSGVS | C80: 136.05 | D80: 135.95 | E80: 132.95 | F80: 129.85 | G80: 126.85 | H80: 139.05 | I80: 142.05 | J80: 145.15 | K80: 138.95 | L80: 132.85 | M80: 0.59841
A81: 71 | B81: BLUEDART | C81: 2389.05 | D81: 2363.02 | E81: 2316.13 | F81: 2243.22 | G81: 2196.33 | H81: 2435.93 | I81: 2482.82 | J81: 2555.73 | K81: 2409.9 | L81: 2290.1 | M81: 0.03537
A82: 72 | B82: BLUESTARCO | C82: 842.75 | D82: 837.75 | E82: 821.50 | F82: 800.25 | G82: 784.00 | H82: 859.00 | I82: 875.25 | J82: 896.50 | K82: 854 | L82: 816.5 | M82: 0.46509
A83: 73 | B83: BBTC | C83: 1168.25 | D83: 1174.92 | E83: 1153.43 | F83: 1138.62 | G83: 1117.13 | H83: 1189.73 | I83: 1211.22 | J83: 1226.03 | K83: 1196.4 | L83: 1160.1 | M83: 0.89312
A84: 74 | B84: BOMDYEING | C84: 77.65 | D84: 77.92 | E84: 76.13 | F84: 74.62 | G84: 72.83 | H84: 79.43 | I84: 81.22 | J84: 82.73 | K84: 79.7 | L84: 76.4 | M84: 9.04852
A85: 75 | B85: BOSCHLTD | C85: 14501.65 | D85: 14575.20 | E85: 14373.40 | F85: 14245.15 | G85: 14043.35 | H85: 14703.45 | I85: 14905.25 | J85: 15033.50 | K85: 14777 | L85: 14446.95 | M85: 0.10698
A86: 76 | B86: BRIGADE | C86: 190.45 | D86: 190.28 | E86: 186.67 | F86: 182.88 | G86: 179.27 | H86: 194.07 | I86: 197.68 | J86: 201.47 | K86: 193.9 | L86: 186.5 | M86: 0.40113
A87: 77 | B87: BRITANNIA | C87: 3267.1 | D87: 3270.98 | E87: 3243.12 | F87: 3219.13 | G87: 3191.27 | H87: 3294.97 | I87: 3322.83 | J87: 3346.82 | K87: 3298.85 | L87: 3247 | M87: 2.13353
A88: 78 | B88: CARERATING | C88: 535.25 | D88: 538.45 | E88: 528.15 | F88: 521.05 | G88: 510.75 | H88: 545.55 | I88: 555.85 | J88: 562.95 | K88: 548.75 | L88: 531.35 | M88: 1.37553
A89: 79 | B89: CCL | C89: 198.85 | D89: 198.58 | E89: 194.77 | F89: 190.68 | G89: 186.87 | H89: 202.67 | I89: 206.48 | J89: 210.57 | K89: 202.4 | L89: 194.5 | M89: 0.89627
A90: 80 | B90: CESC | C90: 796.55 | D90: 802.18 | E90: 789.37 | F90: 782.18 | G90: 769.37 | H90: 809.37 | I90: 822.18 | J90: 829.37 | K90: 815 | L90: 795 | M90: 2.75544
A91: 81 | B91: CGPOWER | C91: 14.65 | D91: 14.60 | E91: 14.25 | F91: 13.85 | G91: 13.50 | H91: 15.00 | I91: 15.35 | J91: 15.75 | K91: 14.95 | L91: 14.2 | M91: 5.01468
A92: 82 | B92: CRISIL | C92: 1375.4 | D92: 1371.38 | E92: 1364.32 | F92: 1353.23 | G92: 1346.17 | H92: 1382.47 | I92: 1389.53 | J92: 1400.62 | K92: 1378.45 | L92: 1360.3 | M92: 0.0652
A93: 83 | B93: CADILAHC | C93: 244.7 | D93: 244.60 | E93: 240.80 | F93: 236.90 | G93: 233.10 | H93: 248.50 | I93: 252.30 | J93: 256.20 | K93: 248.4 | L93: 240.7 | M93: 9.23146
A94: 84 | B94: CANFINHOME | C94: 395.2 | D94: 396.88 | E94: 383.47 | F94: 371.73 | G94: 358.32 | H94: 408.62 | I94: 422.03 | J94: 433.77 | K94: 410.3 | L94: 385.15 | M94: 3.58132
A95: 85 | B95: CANBK | C95: 192.7 | D95: 190.75 | E95: 187.60 | F95: 182.50 | G95: 179.35 | H95: 195.85 | I95: 199.00 | J95: 204.10 | K95: 193.9 | L95: 185.65 | M95: 75.65309
A96: 86 | B96: CAPLIPOINT | C96: 375.75 | D96: 375.90 | E96: 369.85 | F96: 363.95 | G96: 357.90 | H96: 381.80 | I96: 387.85 | J96: 393.75 | K96: 381.95 | L96: 370 | M96: 0.22697
A97: 87 | B97: CGCL | C97: 202.6 | D97: 201.57 | E97: 195.13 | F97: 187.67 | G97: 181.23 | H97: 209.03 | I97: 215.47 | J97: 222.93 | K97: 208 | L97: 194.1 | M97: 1.38787
A98: 88 | B98: CARBORUNIV | C98: 296 | D98: 299.83 | E98: 290.67 | F98: 285.33 | G98: 276.17 | H98: 305.17 | I98: 314.33 | J98: 319.67 | K98: 309 | L98: 294.5 | M98: 1.4021
A99: 89 | B99: CASTROLIND | C99: 154.1 | D99: 150.73 | E99: 146.47 | F99: 138.83 | G99: 134.57 | H99: 158.37 | I99: 162.63 | J99: 170.27 | K99: 155 | L99: 143.1 | M99: 68.13343
A100: 90 | B100: CEATLTD | C100: 946.1 | D100: 947.50 | E100: 933.65 | F100: 921.20 | G100: 907.35 | H100: 959.95 | I100: 973.80 | J100: 986.25 | K100: 961.35 | L100: 935.05 | M100: 1.01955
A101: 91 | B101: CENTRALBK | C101: 17.3 | D101: 17.38 | E101: 16.87 | F101: 16.43 | G101: 15.92 | H101: 17.82 | I101: 18.33 | J101: 18.77 | K101: 17.9 | L101: 16.95 | M101: 4.29882
A102: 92 | B102: CDSL | C102: 208.2 | D102: 208.30 | E102: 205.20 | F102: 202.20 | G102: 199.10 | H102: 211.30 | I102: 214.40 | J102: 217.40 | K102: 211.4 | L102: 205.3 | M102: 1.39732
A103: 93 | B103: CENTURYPLY | C103: 160 | D103: 160.60 | E103: 157.35 | F103: 154.70 | G103: 151.45 | H103: 163.25 | I103: 166.50 | J103: 169.15 | K103: 163.85 | L103: 157.95 | M103: 0.71506
A104: 94 | B104: CERA | C104: 2541.4 | D104: 2547.88 | E104: 2515.52 | F104: 2489.63 | G104: 2457.27 | H104: 2573.77 | I104: 2606.13 | J104: 2632.02 | K104: 2580.25 | L104: 2522 | M104: 0.01679
A105: 95 | B105: CHALET | C105: 330.25 | D105: 332.95 | E105: 322.30 | F105: 314.35 | G105: 303.70 | H105: 340.90 | I105: 351.55 | J105: 359.50 | K105: 343.6 | L105: 325 | M105: 0.00935
A106: 96 | B106: CHAMBLFERT | C106: 160.1 | D106: 159.32 | E106: 157.03 | F106: 153.97 | G106: 151.68 | H106: 162.38 | I106: 164.67 | J106: 167.73 | K106: 161.6 | L106: 156.25 | M106: 1.89661
A107: 97 | B107: CHENNPETRO | C107: 154.3 | D107: 154.95 | E107: 153.00 | F107: 151.70 | G107: 149.75 | H107: 156.25 | I107: 158.20 | J107: 159.50 | K107: 156.9 | L107: 153.65 | M107: 0.85036
A108: 98 | B108: CHOLAHLDNG | C108: 446.6 | D108: 448.47 | E108: 439.43 | F108: 432.27 | G108: 423.23 | H108: 455.63 | I108: 464.67 | J108: 471.83 | K108: 457.5 | L108: 441.3 | M108: 0.22512
A109: 99 | B109: CHOLAFIN | C109: 285.9 | D109: 287.47 | E109: 281.18 | F109: 276.47 | G109: 270.18 | H109: 292.18 | I109: 298.47 | J109: 303.18 | K109: 293.75 | L109: 282.75 | M109: 20.51702
A110: 100 | B110: CIPLA | C110: 459.85 | D110: 454.35 | E110: 447.25 | F110: 434.65 | G110: 427.55 | H110: 466.95 | I110: 474.05 | J110: 486.65 | K110: 461.45 | L110: 441.75 | M110: 26.47759
A111: 101 | B111: CUB | C111: 209.6 | D111: 209.12 | E111: 205.58 | F111: 201.57 | G111: 198.03 | H111: 213.13 | I111: 216.67 | J111: 220.68 | K111: 212.65 | L111: 205.1 | M111: 19.6272
A112: 102 | B112: COALINDIA | C112: 205.85 | D112: 205.27 | E112: 203.58 | F112: 201.32 | G112: 199.63 | H112: 207.53 | I112: 209.22 | J112: 211.48 | K112: 206.95 | L112: 203 | M112: 53.68529
A113: 103 | B113: COCHINSHIP | C113: 374.15 | D113: 370.33 | E113: 358.77 | F113: 343.38 | G113: 331.82 | H113: 385.72 | I113: 397.28 | J113: 412.67 | K113: 381.9 | L113: 354.95 | M113: 4.55161
A114: 104 | B114: COFFEEDAY | C114: 29 | D114: 29.00 | E114: 27.55 | F114: 26.10 | G114: 24.65 | H114: 30.45 | I114: 31.90 | J114: 33.35 | K114: 30.45 | L114: 27.55 | M114: 28.70616
A115: 105 | B115: COLPAL | C115: 1519.55 | D115: 1528.47 | E115: 1487.93 | F115: 1456.32 | G115: 1415.78 | H115: 1560.08 | I115: 1600.62 | J115: 1632.23 | K115: 1569 | L115: 1496.85 | M115: 13.52011
A116: 106 | B116: CONCOR | C116: 588.25 | D116: 589.98 | E116: 581.97 | F116: 575.68 | G116: 567.67 | H116: 596.27 | I116: 604.28 | J116: 610.57 | K116: 598 | L116: 583.7 | M116: 10.76084
A117: 107 | B117: COROMANDEL | C117: 478.8 | D117: 474.35 | E117: 466.50 | F117: 454.20 | G117: 446.35 | H117: 486.65 | I117: 494.50 | J117: 506.80 | K117: 482.2 | L117: 462.05 | M117: 3.51323
A118: 108 | B118: CORPBANK | C118: 14.25 | D118: 14.25 | E118: 14.00 | F118: 13.75 | G118: 13.50 | H118: 14.50 | I118: 14.75 | J118: 15.00 | K118: 14.5 | L118: 14 | M118: 1.08489
A119: 109 | B119: COX&KINGS | C119: 1.9 | D119: 1.90 | E119: 1.90 | F119: 1.90 | G119: 1.90 | H119: 1.90 | I119: 1.90 | J119: 1.90 | K119: 1.9 | L119: 1.9 | M119: 2.44832
A120: 110 | B120: CREDITACC | C120: 646.4 | D120: 647.13 | E120: 625.27 | F120: 604.13 | G120: 582.27 | H120: 668.27 | I120: 690.13 | J120: 711.27 | K120: 669 | L120: 626 | M120: 1.4069
A121: 111 | B121: CROMPTON | C121: 254.75 | D121: 254.15 | E121: 251.35 | F121: 247.95 | G121: 245.15 | H121: 257.55 | I121: 260.35 | J121: 263.75 | K121: 256.95 | L121: 250.75 | M121: 17.81939
A122: 112 | B122: CUMMINSIND | C122: 541.15 | D122: 542.37 | E122: 530.98 | F122: 520.82 | G122: 509.43 | H122: 552.53 | I122: 563.92 | J122: 574.08 | K122: 553.75 | L122: 532.2 | M122: 19.69631
A123: 113 | B123: CYIENT | C123: 400.9 | D123: 402.25 | E123: 395.50 | F123: 390.10 | G123: 383.35 | H123: 407.65 | I123: 414.40 | J123: 419.80 | K123: 409 | L123: 396.85 | M123: 2.6855
A124: 114 | B124: DBCORP | C124: 160.05 | D124: 159.28 | E124: 157.57 | F124: 155.08 | G124: 153.37 | H124: 161.77 | I124: 163.48 | J124: 165.97 | K124: 161 | L124: 156.8 | M124: 0.71749
A125: 115 | B125: DCBBANK | C125: 175.1 | D125: 175.85 | E125: 172.25 | F125: 169.40 | G125: 165.80 | H125: 178.70 | I125: 182.30 | J125: 185.15 | K125: 179.45 | L125: 173 | M125: 5.91844
A126: 116 | B126: DCMSHRIRAM | C126: 374.5 | D126: 379.17 | E126: 368.33 | F126: 362.17 | G126: 351.33 | H126: 385.33 | I126: 396.17 | J126: 402.33 | K126: 390 | L126: 373 | M126: 0.98347
A127: 117 | B127: DLF | C127: 181 | D127: 179.22 | E127: 176.43 | F127: 171.87 | G127: 169.08 | H127: 183.78 | I127: 186.57 | J127: 191.13 | K127: 182 | L127: 174.65 | M127: 94.32267
A128: 118 | B128: DABUR | C128: 465.55 | D128: 467.12 | E128: 461.43 | F128: 457.32 | G128: 451.63 | H128: 471.23 | I128: 476.92 | J128: 481.03 | K128: 472.8 | L128: 463 | M128: 6.49773
A129: 119 | B129: DALBHARAT | C129: 808.1 | D129: 817.67 | E129: 796.53 | F129: 784.97 | G129: 763.83 | H129: 829.23 | I129: 850.37 | J129: 861.93 | K129: 838.8 | L129: 806.1 | M129: 0.91957
A130: 120 | B130: DEEPAKNTR | C130: 340.65 | D130: 346.03 | E130: 332.07 | F130: 323.48 | G130: 309.52 | H130: 354.62 | I130: 368.58 | J130: 377.17 | K130: 360 | L130: 337.45 | M130: 16.12017
A131: 121 | B131: DELTACORP | C131: 193.1 | D131: 193.70 | E131: 190.65 | F131: 188.20 | G131: 185.15 | H131: 196.15 | I131: 199.20 | J131: 201.65 | K131: 196.75 | L131: 191.25 | M131: 6.07707
A132: 122 | B132: DEN | C132: 47.45 | D132: 48.15 | E132: 46.40 | F132: 45.35 | G132: 43.60 | H132: 49.20 | I132: 50.95 | J132: 52.00 | K132: 49.9 | L132: 47.1 | M132: 0.18016
A133: 123 | B133: DHFL | C133: 17.55 | D133: 17.55 | E133: 17.55 | F133: 17.55 | G133: 17.55 | H133: 17.55 | I133: 17.55 | J133: 17.55 | K133: 17.55 | L133: 17.55 | M133: 3.13231
A134: 124 | B134: DBL | C134: 390.45 | D134: 396.72 | E134: 381.73 | F134: 373.02 | G134: 358.03 | H134: 405.43 | I134: 420.42 | J134: 429.13 | K134: 411.7 | L134: 388 | M134: 2.16558
A135: 125 | B135: DISHTV | C135: 11.7 | D135: 11.48 | E135: 10.62 | F135: 9.53 | G135: 8.67 | H135: 12.57 | I135: 13.43 | J135: 14.52 | K135: 12.35 | L135: 10.4 | M135: 469.1042
A136: 126 | B136: DCAL | C136: 115.7 | D136: 118.52 | E136: 106.88 | F136: 98.07 | G136: 86.43 | H136: 127.33 | I136: 138.97 | J136: 147.78 | K136: 130.15 | L136: 109.7 | M136: 9.58812
A137: 127 | B137: DIVISLAB | C137: 1759.15 | D137: 1760.23 | E137: 1746.47 | F137: 1733.78 | G137: 1720.02 | H137: 1772.92 | I137: 1786.68 | J137: 1799.37 | K137: 1774 | L137: 1747.55 | M137: 1.99141
A138: 128 | B138: DIXON | C138: 2981.8 | D138: 3010.62 | E138: 2941.18 | F138: 2900.57 | G138: 2831.13 | H138: 3051.23 | I138: 3120.67 | J138: 3161.28 | K138: 3080.05 | L138: 2970 | M138: 0.17794
A139: 129 | B139: LALPATHLAB | C139: 1519.5 | D139: 1511.33 | E139: 1488.67 | F139: 1457.83 | G139: 1435.17 | H139: 1542.17 | I139: 1564.83 | J139: 1595.67 | K139: 1534 | L139: 1480.5 | M139: 1.01012
A140: 130 | B140: DRREDDY | C140: 2794.95 | D140: 2799.63 | E140: 2775.27 | F140: 2755.58 | G140: 2731.22 | H140: 2819.32 | I140: 2843.68 | J140: 2863.37 | K140: 2824 | L140: 2779.95 | M140: 5.00795
A141: 131 | B141: EIDPARRY | C141: 165.65 | D141: 166.22 | E141: 163.43 | F141: 161.22 | G141: 158.43 | H141: 168.43 | I141: 171.22 | J141: 173.43 | K141: 169 | L141: 164 | M141: 1.41025
A142: 132 | B142: EIHOTEL | C142: 170.75 | D142: 171.83 | E142: 168.42 | F142: 166.08 | G142: 162.67 | H142: 174.17 | I142: 177.58 | J142: 179.92 | K142: 175.25 | L142: 169.5 | M142: 0.57906
A143: 133 | B143: EDELWEISS | C143: 82.65 | D143: 84.10 | E143: 81.20 | F143: 79.75 | G143: 76.85 | H143: 85.55 | I143: 88.45 | J143: 89.90 | K143: 87 | L143: 82.65 | M143: 16.58505
A144: 134 | B144: EICHERMOT | C144: 21321.75 | D144: 21228.93 | E144: 21042.87 | F144: 20763.98 | G144: 20577.92 | H144: 21507.82 | I144: 21693.88 | J144: 21972.77 | K144: 21415 | L144: 20950.05 | M144: 1.50522
A145: 135 | B145: ELGIEQUIP | C145: 273.2 | D145: 272.05 | E145: 269.30 | F145: 265.40 | G145: 262.65 | H145: 275.95 | I145: 278.70 | J145: 282.60 | K145: 274.8 | L145: 268.15 | M145: 0.04251
A146: 136 | B146: EMAMILTD | C146: 325.95 | D146: 327.08 | E146: 318.37 | F146: 310.78 | G146: 302.07 | H146: 334.67 | I146: 343.38 | J146: 350.97 | K146: 335.8 | L146: 319.5 | M146: 4.73236
A147: 137 | B147: ENDURANCE | C147: 998.95 | D147: 1002.32 | E147: 990.63 | F147: 982.32 | G147: 970.63 | H147: 1010.63 | I147: 1022.32 | J147: 1030.63 | K147: 1014 | L147: 994 | M147: 0.04778
A148: 138 | B148: ENGINERSIN | C148: 109.3 | D148: 109.48 | E148: 108.37 | F148: 107.43 | G148: 106.32 | H148: 110.42 | I148: 111.53 | J148: 112.47 | K148: 110.6 | L148: 108.55 | M148: 6.34448
A149: 139 | B149: EQUITAS | C149: 96.75 | D149: 96.82 | E149: 95.33 | F149: 93.92 | G149: 92.43 | H149: 98.23 | I149: 99.72 | J149: 101.13 | K149: 98.3 | L149: 95.4 | M149: 16.71227
A150: 140 | B150: ERIS | C150: 426.35 | D150: 427.82 | E150: 415.63 | F150: 404.92 | G150: 392.73 | H150: 438.53 | I150: 450.72 | J150: 461.43 | K150: 440 | L150: 417.1 | M150: 4.7607
A151: 141 | B151: ESCORTS | C151: 640 | D151: 640.73 | E151: 630.47 | F151: 620.93 | G151: 610.67 | H151: 650.27 | I151: 660.53 | J151: 670.07 | K151: 651 | L151: 631.2 | M151: 19.95407
A152: 142 | B152: ESSELPACK | C152: 108.55 | D152: 108.17 | E152: 105.53 | F152: 102.52 | G152: 99.88 | H152: 111.18 | I152: 113.82 | J152: 116.83 | K152: 110.8 | L152: 105.15 | M152: 3.85637
A153: 143 | B153: EXIDEIND | C153: 176.6 | D153: 176.23 | E153: 174.67 | F153: 172.73 | G153: 171.17 | H153: 178.17 | I153: 179.73 | J153: 181.67 | K153: 177.8 | L153: 174.3 | M153: 20.17819
A154: 144 | B154: FDC | C154: 168.3 | D154: 166.12 | E154: 162.43 | F154: 156.57 | G154: 152.88 | H154: 171.98 | I154: 175.67 | J154: 181.53 | K154: 169.8 | L154: 160.25 | M154: 0.8147
A155: 145 | B155: FEDERALBNK | C155: 80.25 | D155: 80.45 | E155: 79.50 | F155: 78.75 | G155: 77.80 | H155: 81.20 | I155: 82.15 | J155: 82.90 | K155: 81.4 | L155: 79.7 | M155: 151.35361
A156: 146 | B156: FMGOETZE | C156: 550.45 | D156: 554.47 | E156: 540.13 | F156: 529.82 | G156: 515.48 | H156: 564.78 | I156: 579.12 | J156: 589.43 | K156: 568.8 | L156: 544.15 | M156: 0.01636
A157: 147 | B157: FINEORG | C157: 1901.75 | D157: 1903.37 | E157: 1861.78 | F157: 1821.82 | G157: 1780.23 | H157: 1943.33 | I157: 1984.92 | J157: 2024.88 | K157: 1944.95 | L157: 1863.4 | M157: 0.09542
A158: 148 | B158: FINCABLES | C158: 376 | D158: 377.95 | E158: 373.05 | F158: 370.10 | G158: 365.20 | H158: 380.90 | I158: 385.80 | J158: 388.75 | K158: 382.85 | L158: 375 | M158: 0.2514
A159: 149 | B159: FINPIPE | C159: 607.3 | D159: 604.82 | E159: 599.63 | F159: 591.97 | G159: 586.78 | H159: 612.48 | I159: 617.67 | J159: 625.33 | K159: 610 | L159: 597.15 | M159: 0.16781
A160: 150 | B160: FSL | C160: 50.35 | D160: 50.18 | E160: 49.57 | F160: 48.78 | G160: 48.17 | H160: 50.97 | I160: 51.58 | J160: 52.37 | K160: 50.8 | L160: 49.4 | M160: 9.55565
A161: 151 | B161: FORTIS | C161: 137.65 | D161: 137.67 | E161: 136.48 | F161: 135.32 | G161: 134.13 | H161: 138.83 | I161: 140.02 | J161: 141.18 | K161: 138.85 | L161: 136.5 | M161: 4.25425
A162: 152 | B162: FCONSUMER | C162: 22.85 | D162: 22.77 | E162: 21.63 | F162: 20.42 | G162: 19.28 | H162: 23.98 | I162: 25.12 | J162: 26.33 | K162: 23.9 | L162: 21.55 | M162: 15.48922
A163: 153 | B163: FLFL | C163: 400.45 | D163: 402.80 | E163: 393.65 | F163: 386.85 | G163: 377.70 | H163: 409.60 | I163: 418.75 | J163: 425.55 | K163: 411.95 | L163: 396 | M163: 0.19297
A164: 154 | B164: FRETAIL | C164: 379.95 | D164: 380.22 | E164: 377.93 | F164: 375.92 | G164: 373.63 | H164: 382.23 | I164: 384.52 | J164: 386.53 | K164: 382.5 | L164: 378.2 | M164: 1.0095
A165: 155 | B165: GAIL | C165: 123.05 | D165: 123.40 | E165: 122.00 | F165: 120.95 | G165: 119.55 | H165: 124.45 | I165: 125.85 | J165: 126.90 | K165: 124.8 | L165: 122.35 | M165: 80.2678
A166: 156 | B166: GEPIL | C166: 707.15 | D166: 707.48 | E166: 699.72 | F166: 692.28 | G166: 684.52 | H166: 714.92 | I166: 722.68 | J166: 730.12 | K166: 715.25 | L166: 700.05 | M166: 0.04961
A167: 157 | B167: GET&D | C167: 179.6 | D167: 180.27 | E167: 176.93 | F167: 174.27 | G167: 170.93 | H167: 182.93 | I167: 186.27 | J167: 188.93 | K167: 183.6 | L167: 177.6 | M167: 0.13608
A168: 158 | B168: GHCL | C168: 211.45 | D168: 212.53 | E168: 209.12 | F168: 206.78 | G168: 203.37 | H168: 214.87 | I168: 218.28 | J168: 220.62 | K168: 215.95 | L168: 210.2 | M168: 0.725
A169: 159 | B169: GMRINFRA | C169: 19.85 | D169: 19.98 | E169: 19.47 | F169: 19.08 | G169: 18.57 | H169: 20.37 | I169: 20.88 | J169: 21.27 | K169: 20.5 | L169: 19.6 | M169: 162.57834
A170: 160 | B170: GALAXYSURF | C170: 1545.45 | D170: 1539.67 | E170: 1529.33 | F170: 1513.22 | G170: 1502.88 | H170: 1555.78 | I170: 1566.12 | J170: 1582.23 | K170: 1550 | L170: 1523.55 | M170: 0.12958
A171: 161 | B171: GARFIBRES | C171: 1148.05 | D171: 1148.35 | E171: 1139.70 | F171: 1131.35 | G171: 1122.70 | H171: 1156.70 | I171: 1165.35 | J171: 1173.70 | K171: 1157 | L171: 1140 | M171: 0.0131
A172: 162 | B172: GAYAPROJ | C172: 130.25 | D172: 128.52 | E172: 126.23 | F172: 122.22 | G172: 119.93 | H172: 132.53 | I172: 134.82 | J172: 138.83 | K172: 130.8 | L172: 124.5 | M172: 1.86377
A173: 163 | B173: GICRE | C173: 273.1 | D173: 265.43 | E173: 251.67 | F173: 230.23 | G173: 216.47 | H173: 286.87 | I173: 300.63 | J173: 322.07 | K173: 279.2 | L173: 244 | M173: 16.66284
A174: 164 | B174: GILLETTE | C174: 7837.55 | D174: 7874.53 | E174: 7784.07 | F174: 7730.58 | G174: 7640.12 | H174: 7928.02 | I174: 8018.48 | J174: 8071.97 | K174: 7965 | L174: 7821.05 | M174: 0.04239
A175: 165 | B175: GLAXO | C175: 1516.65 | D175: 1508.70 | E175: 1482.40 | F175: 1448.15 | G175: 1421.85 | H175: 1542.95 | I175: 1569.25 | J175: 1603.50 | K175: 1535 | L175: 1474.45 | M175: 0.42785
A176: 166 | B176: GLENMARK | C176: 310.75 | D176: 309.47 | E176: 304.43 | F176: 298.12 | G176: 293.08 | H176: 315.78 | I176: 320.82 | J176: 327.13 | K176: 314.5 | L176: 303.15 | M176: 20.25089
A177: 167 | B177: GODFRYPHLP | C177: 1070.55 | D177: 1077.35 | E177: 1056.70 | F177: 1042.85 | G177: 1022.20 | H177: 1091.20 | I177: 1111.85 | J177: 1125.70 | K177: 1098 | L177: 1063.5 | M177: 0.2911
A178: 168 | B178: GODREJAGRO | C178: 506.45 | D178: 504.37 | E178: 497.48 | F178: 488.52 | G178: 481.63 | H178: 513.33 | I178: 520.22 | J178: 529.18 | K178: 511.25 | L178: 495.4 | M178: 0.31253
A179: 169 | B179: GODREJCP | C179: 702.6 | D179: 707.10 | E179: 695.50 | F179: 688.40 | G179: 676.80 | H179: 714.20 | I179: 725.80 | J179: 732.90 | K179: 718.7 | L179: 700 | M179: 10.76799
A180: 170 | B180: GODREJIND | C180: 402 | D180: 401.58 | E180: 396.47 | F180: 390.93 | G180: 385.82 | H180: 407.12 | I180: 412.23 | J180: 417.77 | K180: 406.7 | L180: 396.05 | M180: 1.16463
A181: 171 | B181: GODREJPROP | C181: 975.35 | D181: 976.15 | E181: 964.20 | F181: 953.05 | G181: 941.10 | H181: 987.30 | I181: 999.25 | J181: 1010.40 | K181: 988.1 | L181: 965 | M181: 0.94507
A182: 172 | B182: GRANULES | C182: 124.2 | D182: 125.18 | E182: 121.12 | F182: 118.03 | G182: 113.97 | H182: 128.27 | I182: 132.33 | J182: 135.42 | K182: 129.25 | L182: 122.1 | M182: 26.8741
A183: 173 | B183: GRAPHITE | C183: 278.95 | D183: 281.47 | E183: 273.63 | F183: 268.32 | G183: 260.48 | H183: 286.78 | I183: 294.62 | J183: 299.93 | K183: 289.3 | L183: 276.15 | M183: 10.93455
A184: 174 | B184: GRASIM | C184: 709.95 | D184: 705.28 | E184: 693.77 | F184: 677.58 | G184: 666.07 | H184: 721.47 | I184: 732.98 | J184: 749.17 | K184: 716.8 | L184: 689.1 | M184: 29.14804
A185: 175 | B185: GESHIP | C185: 299.5 | D185: 303.20 | E185: 291.30 | F185: 283.10 | G185: 271.20 | H185: 311.40 | I185: 323.30 | J185: 331.50 | K185: 315.1 | L185: 295 | M185: 2.59054
A186: 176 | B186: GREAVESCOT | C186: 133.3 | D186: 132.93 | E186: 131.87 | F186: 130.43 | G186: 129.37 | H186: 134.37 | I186: 135.43 | J186: 136.87 | K186: 134 | L186: 131.5 | M186: 1.16434
A187: 177 | B187: GRINDWELL | C187: 597.15 | D187: 601.38 | E187: 590.92 | F187: 584.68 | G187: 574.22 | H187: 607.62 | I187: 618.08 | J187: 624.32 | K187: 611.85 | L187: 595.15 | M187: 0.0334
A188: 178 | B188: GUJALKALI | C188: 434.15 | D188: 437.93 | E188: 428.72 | F188: 423.28 | G188: 414.07 | H188: 443.37 | I188: 452.58 | J188: 458.02 | K188: 447.15 | L188: 432.5 | M188: 0.20569
A189: 179 | B189: GUJGASLTD | C189: 178 | D189: 178.62 | E189: 175.83 | F189: 173.67 | G189: 170.88 | H189: 180.78 | I189: 183.57 | J189: 185.73 | K189: 181.4 | L189: 176.45 | M189: 2.281
A190: 180 | B190: GMDCLTD | C190: 57.65 | D190: 57.80 | E190: 57.35 | F190: 57.05 | G190: 56.60 | H190: 58.10 | I190: 58.55 | J190: 58.85 | K190: 58.25 | L190: 57.5 | M190: 0.85817
A191: 181 | B191: GNFC | C191: 202.2 | D191: 204.15 | E191: 199.30 | F191: 196.40 | G191: 191.55 | H191: 207.05 | I191: 211.90 | J191: 214.80 | K191: 209 | L191: 201.25 | M191: 3.04606
A192: 182 | B192: GPPL | C192: 81 | D192: 81.43 | E192: 79.97 | F192: 78.93 | G192: 77.47 | H192: 82.47 | I192: 83.93 | J192: 84.97 | K192: 82.9 | L192: 80.4 | M192: 7.33514
A193: 183 | B193: GSFC | C193: 75.9 | D193: 75.92 | E193: 74.13 | F193: 72.37 | G193: 70.58 | H193: 77.68 | I193: 79.47 | J193: 81.23 | K193: 77.7 | L193: 74.15 | M193: 5.88498
A194: 184 | B194: GSPL | C194: 207.7 | D194: 208.18 | E194: 205.92 | F194: 204.13 | G194: 201.87 | H194: 209.97 | I194: 212.23 | J194: 214.02 | K194: 210.45 | L194: 206.4 | M194: 7.50457
A195: 185 | B195: GULFOILLUB | C195: 852.55 | D195: 856.50 | E195: 846.05 | F195: 839.55 | G195: 829.10 | H195: 863.00 | I195: 873.45 | J195: 879.95 | K195: 866.95 | L195: 850 | M195: 0.01967
A196: 186 | B196: HEG | C196: 984.05 | D196: 991.35 | E196: 967.70 | F196: 951.35 | G196: 927.70 | H196: 1007.70 | I196: 1031.35 | J196: 1047.70 | K196: 1015 | L196: 975 | M196: 3.20694
A197: 187 | B197: HCLTECH | C197: 1134.05 | D197: 1123.13 | E197: 1109.02 | F197: 1083.98 | G197: 1069.87 | H197: 1148.17 | I197: 1162.28 | J197: 1187.32 | K197: 1137.25 | L197: 1098.1 | M197: 22.9361
A198: 188 | B198: HDFCAMC | C198: 2898.55 | D198: 2927.53 | E198: 2853.02 | F198: 2807.48 | G198: 2732.97 | H198: 2973.07 | I198: 3047.58 | J198: 3093.12 | K198: 3002.05 | L198: 2882 | M198: 4.53274
A199: 189 | B199: HDFCBANK | C199: 1229 | D199: 1231.95 | E199: 1217.05 | F199: 1205.10 | G199: 1190.20 | H199: 1243.90 | I199: 1258.80 | J199: 1270.75 | K199: 1246.85 | L199: 1220 | M199: 64.96771
A200: 190 | B200: HDFCLIFE | C200: 610.5 | D200: 612.80 | E200: 605.80 | F200: 601.10 | G200: 594.10 | H200: 617.50 | I200: 624.50 | J200: 629.20 | K200: 619.8 | L200: 608.1 | M200: 19.8225
A201: 191 | B201: HATHWAY | C201: 21.45 | D201: 21.43 | E201: 20.67 | F201: 19.88 | G201: 19.12 | H201: 22.22 | I201: 22.98 | J201: 23.77 | K201: 22.2 | L201: 20.65 | M201: 5.41407
A202: 192 | B202: HATSUN | C202: 578.95 | D202: 580.65 | E202: 566.30 | F202: 553.65 | G202: 539.30 | H202: 593.30 | I202: 607.65 | J202: 620.30 | K202: 595 | L202: 568 | M202: 0.10695
A203: 193 | B203: HAVELLS | C203: 664.8 | D203: 661.18 | E203: 653.62 | F203: 642.43 | G203: 634.87 | H203: 672.37 | I203: 679.93 | J203: 691.12 | K203: 668.75 | L203: 650 | M203: 9.31283
A204: 194 | B204: HEIDELBERG | C204: 188.7 | D204: 189.23 | E204: 186.47 | F204: 184.23 | G204: 181.47 | H204: 191.47 | I204: 194.23 | J204: 196.47 | K204: 192 | L204: 187 | M204: 3.16838
A205: 195 | B205: HERITGFOOD | C205: 305.9 | D205: 308.92 | E205: 301.98 | F205: 298.07 | G205: 291.13 | H205: 312.83 | I205: 319.77 | J205: 323.68 | K205: 315.85 | L205: 305 | M205: 0.20746
A206: 196 | B206: HEROMOTOCO | C206: 2657.55 | D206: 2665.18 | E206: 2622.37 | F206: 2587.18 | G206: 2544.37 | H206: 2700.37 | I206: 2743.18 | J206: 2778.37 | K206: 2708 | L206: 2630 | M206: 7.99469
... 320 more rows

Sheet Bulk Deals
E6: Back To Main Page
A7: Subject : | B7: BULK DEAL | D7: =Main!B10 -> 2019-10-27
A9: Date | B9: Scrip code | C9: Scrip Name | D9: Client Name | E9: Buy / Sell | F9: Quantity Traded | G9: Trade Price / Wt.Avg.trade price | H9: Exchange
A10: 2019-10-25 | B10: 511463 | C10: ALEXANDER | D10: KAHAR NIKLESH KANAIYABHAI | E10: BUY | F10: 54,076 | G10: 18.76 | H10: BSE
A11: 2019-10-25 | B11: 511463 | C11: ALEXANDER | D11: KAHAR NIKLESH KANAIYABHAI | E11: SELL | F11: 3,692 | G11: 18.66 | H11: BSE
A12: 2019-10-25 | B12: 539770 | C12: DARJEELING | D12: DEEPAK CHHANALAL SHAH (HUF) | E12: BUY | F12: 16,750 | G12: 86.62 | H12: BSE
A13: 2019-10-25 | B13: 539770 | C13: DARJEELING | D13: PINKYBEN KETANKUMAR TRIVEDI | E13: SELL | F13: 16,750 | G13: 86.62 | H13: BSE
A14: 2019-10-25 | B14: 542724 | C14: EARUM | D14: ATULKUMAR A PATEL | E14: SELL | F14: 33,000 | G14: 58.75 | H14: BSE
A15: 2019-10-25 | B15: 542724 | C15: EARUM | D15: YASH DEEPAKKUMAR JAIN | E15: SELL | F15: 33,000 | G15: 59.43 | H15: BSE
A16: 2019-10-25 | B16: 542446 | C16: JONJUA | D16: BADAMILAL BANSHILAL GARG | E16: BUY | F16: 31,200 | G16: 30.33 | H16: BSE
A17: 2019-10-25 | B17: 542446 | C17: JONJUA | D17: BADAMILAL BANSHILAL GARG | E17: SELL | F17: 31,200 | G17: 30.23 | H17: BSE
A18: 2019-10-25 | B18: 538765 | C18: JSHL | D18: VIVEK DWIVEDI | E18: BUY | F18: 80,000 | G18: 10.12 | H18: BSE
A19: 2019-10-25 | B19: 538765 | C19: JSHL | D19: VIVEK DWIVEDI | E19: SELL | F19: 70,000 | G19: 10.12 | H19: BSE
A20: 2019-10-25 | B20: 500245 | C20: KIRLFER | D20: HDFC MUTUAL FUND | E20: BUY | F20: 1,000,000 | G20: 60.22 | H20: BSE
A21: 2019-10-25 | B21: 540519 | C21: MEERA | D21: ARYAMAN BROKING LIMITED | E21: BUY | F21: 24,000 | G21: 144.06 | H21: BSE
A22: 2019-10-25 | B22: 540519 | C22: MEERA | D22: ARYAMAN BROKING LIMITED | E22: SELL | F22: 2,500 | G22: 143.30 | H22: BSE
A23: 2019-10-25 | B23: 542771 | C23: NOVATEOR | D23: JHAVERI TRADING & INVESTMENT PVT LTD | E23: BUY | F23: 48,000 | G23: 37.6 | H23: BSE
A24: 2019-10-25 | B24: 542771 | C24: NOVATEOR | D24: JHAVERI TRADING & INVESTMENT PVT LTD | E24: SELL | F24: 30,000 | G24: 39.21 | H24: BSE
A25: 2019-10-25 | B25: 542771 | C25: NOVATEOR | D25: N VENKATASWAMY NAIDU | E25: SELL | F25: 42,000 | G25: 36.84 | H25: BSE
A26: 2019-10-25 | B26: 542771 | C26: NOVATEOR | D26: JHAVERI TRADING AND INVESTMENT PVT LTD | E26: BUY | F26: 60,000 | G26: 39.18 | H26: BSE
A27: 2019-10-25 | B27: 542771 | C27: NOVATEOR | D27: JHAVERI TRADING AND INVESTMENT PVT LTD | E27: SELL | F27: 24,000 | G27: 37.76 | H27: BSE
A28: 2019-10-25 | B28: 540386 | C28: ONTIC | D28: SHRI SANJAY J SHAH HUF | E28: BUY | F28: 150,000 | G28: 7.4 | H28: BSE
A29: 2019-10-25 | B29: 540386 | C29: ONTIC | D29: BARAIYA MANISHBHAI GULABHAI | E29: SELL | F29: 150,000 | G29: 7.4 | H29: BSE
A30: 2019-10-25 | B30: IBULHSGFIN | C30: Indiabulls Hsg Fin Ltd | D30: TOWER RESEARCH CAPITAL MARKETS INDIA PRIVATE LIMITED | E30: BUY | F30: 3,960,584 | G30: 190.15 | H30: NSE
A31: 2019-10-25 | B31: RELCAPITAL | C31: Reliance Capital Limited | D31: ALPHA LEON ENTERPRISES LLP | E31: BUY | F31: 1,433,693 | G31: 15.61 | H31: NSE
A32: 2019-10-25 | B32: SOUTHWEST | C32: South West Pinnacle Ltd | D32: DHARINI PRIJESH KURANI | E32: BUY | F32: 300,125 | G32: 14.26 | H32: NSE
A33: 2019-10-25 | B33: YESBANK | C33: Yes Bank Limited | D33: SURJECTIVE RESEARCH CAPITAL LLP | E33: BUY | F33: 21,541,483 | G33: 48.84 | H33: NSE
A34: 2019-10-25 | B34: YESBANK | C34: Yes Bank Limited | D34: TOWER RESEARCH CAPITAL MARKETS INDIA PRIVATE LIMITED | E34: BUY | F34: 33,735,688 | G34: 47.93 | H34: NSE
A35: 2019-10-25 | B35: YESBANK | C35: Yes Bank Limited | D35: ALPHAGREP COMMODITIES PRIVATE LIMITED | E35: BUY | F35: 12,998,793 | G35: 49.92 | H35: NSE
A36: 2019-10-25 | B36: IBULHSGFIN | C36: Indiabulls Hsg Fin Ltd | D36: CALIFORNIA STATE TEACHERS RETIREMENT SYSTEM | E36: SELL | F36: 3,081,156 | G36: 191.03 | H36: NSE
A37: 2019-10-25 | B37: IBULHSGFIN | C37: Indiabulls Hsg Fin Ltd | D37: TOWER RESEARCH CAPITAL MARKETS INDIA PRIVATE LIMITED | E37: SELL | F37: 3,807,977 | G37: 190.19 | H37: NSE
A38: 2019-10-25 | B38: RELCAPITAL | C38: Reliance Capital Limited | D38: ALPHA LEON ENTERPRISES LLP | E38: SELL | F38: 1,508,693 | G38: 16.24 | H38: NSE
A39: 2019-10-25 | B39: SOUTHWEST | C39: South West Pinnacle Ltd | D39: HSBC MUTUAL FUND | E39: SELL | F39: 550,555 | G39: 14.26 | H39: NSE
A40: 2019-10-25 | B40: YESBANK | C40: Yes Bank Limited | D40: SURJECTIVE RESEARCH CAPITAL LLP | E40: SELL | F40: 21,542,620 | G40: 48.87 | H40: NSE
A41: 2019-10-25 | B41: YESBANK | C41: Yes Bank Limited | D41: TOWER RESEARCH CAPITAL MARKETS INDIA PRIVATE LIMITED | E41: SELL | F41: 34,166,705 | G41: 48 | H41: NSE
A42: 2019-10-25 | B42: YESBANK | C42: Yes Bank Limited | D42: ALPHAGREP COMMODITIES PRIVATE LIMITED | E42: SELL | F42: 12,998,793 | G42: 49.94 | H42: NSE

Sheet Call Tracker (Equity & F&O)
M5: Back To Main Page
A6: Retail Research Technical Calls & Fundamental Performance Report for the month of October-2019
M7: =Main!B10 -> 2019-10-27
B8: Positional Call
A9: Sr.no | B9: Date | D9: Company | E9: Rec | F9: Rec Price | G9: Stop Loss*** | H9: Call Closed At | I9: Target | J9: Remark | K9: Profit / Loss per Share | L9: Gain / Loss % | M9: Status | N9: Closed Date | O9: NSE Closed Price
A10: 1 | B10: 2019-08-30 | D10: BIOCON | E10: Buy{} | F10: 229.5 | G10: 214.3 | H10: 242.5 | I10: 255-260 | J10: Profit of Rs.13/- | K10: =H10-F10 -> 13 | L10: =K10/F10 -> 5.66% | M10: Successful | N10: 2019-10-10 | R10: R
A11: 2 | B11: 2019-09-09 | D11: TORNTPHARM | E11: Sell | F11: 1705 | G11: 1808 | H11: 1618 | I11: 1560-1540 | J11: Profit of Rs.87/- | K11: =F11-H11 -> 87 | L11: =K11/F11 -> 5.10% | M11: Successful | N11: 2019-10-01 | R11: R
A12: 3 | B12: 2019-09-25 | D12: AXISBANK | E12: Buy | F12: 695 | G12: 628 | H12: 730 | I12: 800-820 | J12: Profit of Rs.35/- | K12: =H12-F12 -> 35 | L12: 5.04% | M12: Successful | N12: 2019-10-23 | R12: H
A13: 4 | B13: 2019-09-26 | D13: HDFC | E13: Buy | F13: 2070 | G13: 1940 | H13: 2138 | I13: 2250-2300 | J13: Part Profit of Rs.68/- | K13: =H13-F13 -> 68 | L13: =K13/F13 -> 3.29% | M13: Successful | N13: 2019-10-22 | O13: =VLOOKUP(D13,Sheet2!A43:M1682,6,0) -> 2101.55 | R13: H
A14: 5 | B14: 2019-09-26 | D14: BANKBARODA | E14: Buy | F14: 96 | G14: 89 | H14: 89.5 | I14: 110-114 | J14: Loss of Rs.6.5/- | K14: =H14-F14 -> -6.5 | L14: =K14/F14 -> -6.77% | M14: UnSuccessful | N14: 2019-10-01 | R14: H
A15: 6 | B15: 2019-09-30 | D15: BPCL | E15: Sell | F15: 475 | G15: 510 | H15: 503 | I15: 420-410 | J15: Loss of Rs.28/- | K15: =F15-H15 -> -28 | L15: -5.89% | M15: UnSuccessful | N15: 2019-10-03 | R15: H
A16: 7 | B16: 2019-10-01 | D16: CUMMINSIND | E16: Buy | F16: 576.5 | G16: 530 | H16: 559.5 | I16: 640-660 | J16: Loss of Rs.17/- | K16: =H16-F16 -> -17 | L16: =K16/F16 -> -2.95% | M16: UnSuccessful | N16: 2019-10-24 | R16: H
A17: 8 | B17: 2019-10-01 | D17: UPL | E17: Buy | F17: 592-598 | G17: 564 | I17: 650-660 | J17: Open | O17: =VLOOKUP(D17,Sheet2!A47:M1686,6,0) -> 594.6 | R17: R
A18: 9 | B18: 2019-10-03 | D18: HEIDELBERG | E18: Buy | F18: 183 | G18: 169 | H18: 195 | I18: 205-210 | J18: Profit of Rs.12/- | K18: =H18-F18 -> 12 | L18: =K18/F18 -> 6.56% | M18: Successful | N18: 2019-10-18 | R18: H
A19: 10 | B19: 2019-10-03 | D19: APOLLOHOSP | E19: Buy{} | F19: 1378.5 | G19: 1286 | H19: 1448 | I19: 1550-1580 | J19: Profit of Rs.69.5/- | K19: =H19-F19 -> 69.5 | L19: =K19/F19 -> 5.04% | M19: Successful | N19: 2019-10-11 | R19: R
A20: 11 | B20: 2019-10-04 | D20: HDFCAMC | E20: Buy | F20: 2665 | G20: 2537 | H20: 2835 | I20: 2930-2960 | J20: Profit of Rs.170/- | K20: =H20-F20 -> 170 | L20: =K20/F20 -> 6.38% | M20: Successful | N20: 2019-10-18 | R20: R
A21: 12 | B21: 2019-10-07 | D21: PIDILITIND | E21: Buy | F21: 1365-1370 | G21: 1297 | I21: 1500-1520 | J21: Open | O21: =VLOOKUP(D21,Sheet2!A51:M1690,6,0) -> 1338.75 | R21: R
A22: 13 | B22: 2019-10-07 | D22: AMBUJACEM | E22: Buy | F22: 189 | G22: 179 | H22: 200.5 | I22: 205-210 | J22: Profit of Rs.11.5/- | K22: =H22-F22 -> 11.5 | L22: =K22/F22 -> 6.08% | M22: Successful | N22: 2019-10-16 | R22: R
A23: 14 | B23: 2019-10-09 | D23: ACC | E23: Buy | F23: 1440 | G23: 1345 | H23: 1537.5 | I23: 1600-1650 | J23: Profit of Rs.97.5/- | K23: =H23-F23 -> 97.5 | L23: =K23/F23 -> 6.77% | M23: Successful | N23: 2019-10-16 | R23: H
A24: 15 | B24: 2019-10-10 | D24: MOTHERSUMI | E24: Buy{} | F24: 94.5 | G24: 87.7 | H24: 100.5 | I24: 103-106 | J24: Profit of Rs.6/- | K24: =H24-F24 -> 6 | L24: =K24/F24 -> 6.35% | M24: Successful | N24: 2019-10-14 | R24: R
A25: 16 | B25: 2019-10-10 | D25: CIPLA | E25: Buy | F25: 425.5 | G25: 398 | H25: 398 | I25: 470-480 | J25: Loss of Rs.27.5/- | K25: -27.5 | L25: =K25/F25 -> -6.46% | M25: UnSuccessful | N25: 2019-10-11 | R25: R
A26: 17 | B26: 2019-10-10 | D26: POWERGRID | E26: Buy | F26: 197 | G26: 187 | H26: 207.5 | I26: 215-220 | J26: Profit of Rs.10.5/- | K26: =H26-F26 -> 10.5 | L26: 5.33% | M26: Successful | N26: 2019-10-22 | R26: R
A27: 18 | B27: 2019-10-16 | D27: INFY | E27: Buy | F27: 770 | G27: 736 | H27: 691.1 | I27: 835-845 | J27: Loss of Rs.78.90/- | K27: -78.9 | L27: =K27/F27 -> -10.25% | M27: UnSuccessful | N27: 2019-10-22 | R27: R
A28: 19 | B28: 2019-10-22 | D28: HEIDELBERG | E28: Buy | F28: 187.50-189.50 | G28: 178 | I28: 205-210 | J28: Open | O28: =VLOOKUP(D28,Sheet2!A58:M1697,6,0) -> 188.7 | R28: H
A29: 20 | B29: 2019-10-25 | D29: ABFRL | E29: Buy | F29: 200-202 | G29: 189.3 | I29: 222-226 | J29: Open
A35: CLBS = Closing Basis ***
A36: Dividend adjusted <> | F36: Reinitiated $
A37: Part book {} | F37: Revised stoploss #
B39: Momentum Call
A40: Sr.no | B40: Date | D40: Company | E40: Rec | F40: Rec Price | G40: Stop Loss | H40: Call Closed At | I40: Target | J40: Remark | K40: Profit / Loss per Share/Lot | L40: Gain / Loss % | M40: Gain / Loss per Lot | N40: Lot | O40: Status | P40: Closed Date
A41: 1 | B41: 2019-09-24 | D41: AMARAJABAT OCT FUT | E41: Buy | F41: 722 | G41: 703 | H41: 703.5 | I41: 750-760 | J41: Loss of Rs.18.5/- | K41: =H41-F41 -> -18.5 | M41: =N41*K41 -> -12950 | N41: 700 | O41: UnSuccessful | P41: 2019-10-01 | R41: N
A42: 2 | B42: 2019-09-30 | D42: IGL | E42: Sell | F42: 349 | G42: 361 | H42: 342 | I42: 330-325 | J42: Profit of Rs.7/- | K42: =F42-H42 -> 7 | L42: =K42/F42 -> 2.01% | O42: Successful | P42: 2019-10-01 | R42: H
A43: 3 | B43: 2019-09-30 | D43: ENGINERSIN | E43: Sell | F43: 119 | G43: 123.3 | H43: 116.5 | I43: 111-109 | J43: Profit of Rs.2.5/- | K43: =F43-H43 -> 2.5 | L43: =K43/F43 -> 2.10% | O43: Successful | P43: 2019-10-01 | R43: R
A44: 4 | B44: 2019-09-30 | D44: ADANIPORTS | E44: Sell | F44: 412.5 | G44: 425.3 | H44: 406 | I44: 395-390 | J44: Profit of Rs.6.5/- | K44: =F44-H44 -> 6.5 | L44: =K44/F44 -> 1.58% | O44: Successful | P44: 2019-10-01 | R44: H
A45: 5 | B45: 2019-10-01 | D45: HDFC | E45: Buy | F45: 1995 | G45: 1949 | H45: 2026 | I45: 2080-2100 | J45: Profit of Rs.31/- | K45: =H45-F45 -> 31 | L45: =K45/F45 -> 1.55% | O45: Successful | P45: 2019-10-01 | R45: H
A46: 6 | B46: 2019-10-01 | D46: POWERGRID OCT FUT | E46: Buy | F46: 196.75 | G46: 193.5 | H46: 198.75 | I46: 205 | J46: Profit of Rs.2/- | K46: =H46-F46 -> 2 | M46: =N46*K46 -> 8000 | N46: 4000 | O46: Successful | P46: 2019-10-03 | R46: N
A47: 7 | B47: 2019-10-01 | D47: NIFTY OCT FUT | E47: Buy | F47: 11430 | G47: 11340 | H47: 11350 | I47: 11570-11600 | J47: Loss of Rs.80/- | K47: =H47-F47 -> -80 | M47: =N47*K47 -> -6000 | N47: 75 | O47: UnSuccessful | P47: 2019-10-01 | R47: R
A48: 8 | B48: 2019-10-03 | D48: LT | E48: Buy | F48: 1440 | G48: 1390 | H48: 1474 | I48: 1500-1520 | J48: Profit of Rs.34/- | K48: 34 | L48: =K48/F48 -> 2.36% | O48: Successful | P48: 2019-10-03 | R48: H
A49: 9 | B49: 2019-10-03 | D49: TATASTEEL | E49: Buy | F49: 348 | G49: 338 | H49: 335 | I49: 370 | J49: Loss of Rs.13/- | K49: -13 | L49: -3.74% | O49: UnSuccessful | P49: 2019-10-04 | R49: R
A50: 10 | B50: 2019-10-03 | D50: CESC OCT FUT | E50: Buy | F50: 747 | G50: 734.7 | H50: 760.5 | I50: 770 | J50: Profit of Rs.13.5/- | K50: =H50-F50 -> 13.5 | M50: =N50*K50 -> 10800 | N50: 800 | O50: Successful | P50: 2019-10-04 | R50: R
A51: 11 | B51: 2019-10-03 | D51: MFSL OCT FUT | E51: Buy | F51: 417 | G51: 406 | H51: 417 | I51: 435 | J51: Neutral | K51: 0 | M51: 0 | N51: 1200 | O51: Neutral | P51: 2019-10-04 | R51: N
A52: 12 | B52: 2019-10-04 | D52: NIITTECH | E52: Buy | F52: 1355 | G52: 1319 | H52: 1377.5 | I52: 1420-1440 | J52: Profit of Rs.22.5/- | K52: =H52-F52 -> 22.5 | L52: =K52/F52 -> 1.66% | O52: Successful | P52: 2019-10-04 | R52: H
A53: 13 | B53: 2019-10-04 | D53: HINDALCO | E53: Buy | F53: 183.5 | G53: 179 | H53: 187.25 | I53: 192-195 | J53: Profit of Rs.3.75/- | K53: =H53-F53 -> 3.75 | L53: =K53/F53 -> 2.04% | O53: Successful | P53: 2019-10-11 | R53: R
A54: 14 | B54: 2019-10-04 | D54: TATAELXSI OCT FUT | E54: Buy | F54: 686.5 | G54: 666 | H54: 666 | I54: 710-720 | J54: Loss of Rs.20.5/- | K54: =H54-F54 -> -20.5 | M54: =N54*K54 -> -12300 | N54: 600 | O54: UnSuccessful | P54: 2019-10-09 | R54: N
A55: 15 | B55: 2019-10-03 | D55: CESC OCT FUT | E55: Buy | F55: 747 | G55: 734.7 | H55: 734.7 | I55: 770 | J55: Loss of Rs.12.3/- | K55: =H55-F55 -> -12.3 | M55: =N55*K55 -> -9840 | N55: 800 | O55: UnSuccessful | P55: 2019-10-04 | R55: R
A56: 16 | B56: 2019-10-04 | D56: AMARAJABAT OCT FUT | E56: Buy | F56: 699 | G56: 681 | H56: 681.5 | I56: 730 | J56: Loss of Rs.17.50/- | K56: =H56-F56 -> -17.5 | M56: =N56*K56 -> -12250 | N56: 700 | O56: UnSuccessful | P56: 2019-10-09 | R56: N
A57: 17 | B57: 2019-10-04 | D57: NIFTY OCT FUT | E57: Buy | F57: 11280 | G57: 11175 | H57: 11175 | I57: 11370 | J57: Loss of Rs.105/- | K57: =H57-F57 -> -105 | M57: =N57*K57 -> -7875 | N57: 75 | O57: UnSuccessful | P57: 2019-10-07 | R57: R
A58: 18 | B58: 2019-10-04 | D58: DABUR | E58: Buy | F58: 425.5 | G58: 411.7 | H58: 435.5 | I58: 448-453 | J58: Profit of Rs.10/- | K58: 10 | L58: =K58/F58 -> 2.35% | O58: Successful | P58: 2019-10-09 | R58: R
A59: 19 | B59: 2019-10-07 | D59: M&M OCT FUT | E59: Buy | F59: 558 | G59: 545 | H59: 566 | I59: 580 | J59: Profit of Rs.8/- | K59: =H59-F59 -> 8 | M59: =N59*K59 -> 8000 | N59: 1000 | O59: Successful | P59: 2019-10-08 | R59: N
A60: 20 | B60: 2019-10-07 | D60: JUBLFOOD OCT FUT | E60: Buy | F60: 1276.5 | G60: 1253 | H60: 1296 | I60: 1320-1330 | J60: Profit of Rs.19.5/- | K60: =H60-F60 -> 19.5 | M60: =N60*K60 -> 9750 | N60: 500 | O60: Successful | P60: 2019-10-07 | R60: R
A61: 21 | B61: 2019-10-07 | D61: VOLTAS OCT FUT | E61: Sell | F61: 666 | G61: 678 | H61: 677 | I61: 650 | J61: Loss of Rs.11/- | K61: =F61-H61 -> -11 | M61: =N61*K61 -> -11000 | N61: 1000 | O61: UnSuccessful | P61: 2019-10-09 | R61: N
A62: 22 | B62: 2019-10-09 | D62: GODREJCP | E62: Buy | F62: 661 | G62: 641.7 | H62: 674 | I62: 690-700 | J62: Profit of Rs.13/- | K62: 13 | L62: =K62/F62 -> 1.97% | O62: Successful | P62: 2019-10-09 | R62: R
A63: 23 | B63: 2019-10-09 | D63: GRASIM OCT FUT | E63: Sell | F63: 667 | G63: 685 | H63: 692.5 | I63: 635 | J63: Loss of Rs.25.50/- | K63: =F63-H63 -> -25.5 | M63: =N63*K63 -> -19125 | N63: 750 | O63: UnSuccessful | P63: 2019-10-10 | R63: N
A64: 24 | B64: 2019-10-10 | D64: NIITTECH | E64: Buy | F64: 1352.5 | G64: 1317 | H64: 1375.5 | I64: 1420-1440 | J64: Profit of Rs.23/- | K64: =H64-F64 -> 23 | L64: =K64/F64 -> 1.70% | O64: Successful | P64: 2019-10-10 | R64: H
A65: 25 | B65: 2019-10-10 | D65: MCDOWELL-N | E65: Buy | F65: 626.5 | G65: 608 | H65: 608 | I65: 660-670 | J65: Loss of Rs.18.50/- | K65: -18.5 | L65: -2.95% | O65: UnSuccessful | P65: 2019-10-11 | R65: R
A66: 26 | B66: 2019-10-10 | D66: KOTAKBANK OCT FUT | E66: Buy | F66: 1601.5 | G66: 1570 | H66: 1621.5 | I66: 1650 | J66: Profit of Rs.20/- | K66: =H66-F66 -> 20 | M66: =N66*K66 -> 8000 | N66: 400 | O66: Successful | P66: 2019-10-11 | R66: N
A67: 27 | B67: 2019-10-10 | D67: NIFTY OCT FUT | E67: Buy | F67: 11275 | G67: 11190 | H67: 11330 | I67: 11400-11450 | J67: Profit of Rs.55/- | K67: 55 | M67: =N67*K67 -> 4125 | N67: 75 | O67: Successful | P67: 2019-10-11 | R67: H
A68: 28 | B68: 2019-10-10 | D68: HINDUNILVR OCT FUT | E68: Buy | F68: 1937.5 | G68: 1897 | H68: 1962 | I68: 2000-2020 | J68: Profit of Rs.24.50/- | K68: =H68-F68 -> 24.5 | M68: =N68*K68 -> 7350 | N68: 300 | O68: Successful | P68: 2019-10-10 | R68: R
A69: 29 | B69: 2019-10-10 | D69: COLPAL OCT FU | E69: Buy | F69: 1495 | G69: 1476 | H69: 1508 | I69: 1530 | J69: Profit of Rs.13/- | K69: 13 | M69: =N69*K69 -> 9100 | N69: 700 | O69: Successful | P69: 2019-10-11 | R69: N
A70: 30 | B70: 2019-10-10 | D70: RAYMOND | E70: Sell | F70: 597 | G70: 607.3 | H70: 587 | I70: 575-570 | J70: Profit of Rs.10/- | K70: =F70-H70 -> 10 | L70: =K70/F70 -> 1.68% | O70: Successful | P70: 2019-10-10 | R70: R
A71: 31 | B71: 2019-10-10 | D71: MFSL OCT FUT | E71: Buy | F71: 408 | G71: 398 | H71: 416 | I71: 425 | J71: Profit of Rs.8/- | K71: =H71-F71 -> 8 | M71: =N71*K71 -> 9600 | N71: 1200 | O71: Successful | P71: 2019-10-14 | R71: N
A72: 32 | B72: 2019-10-11 | D72: AMBUJACEM OCT FUT | E72: Buy | F72: 188.5 | G72: 183 | H72: 191.75 | I72: 198 | J72: Profit of Rs.3.25/- | K72: =H72-F72 -> 3.25 | M72: =N72*K72 -> 8125 | N72: 2500 | O72: Successful | P72: 2019-10-14 | R72: N
A73: 33 | B73: 2019-10-11 | D73: KOTAKBANK OCT FUT | E73: Buy | F73: 1590 | G73: 1560 | H73: 1609 | I73: 1650 | J73: Profit of Rs.19/- | K73: =H73-F73 -> 19 | M73: =N73*K73 -> 7600 | N73: 400 | O73: Successful | P73: 2019-10-14 | R73: N
A74: 34 | B74: 2019-10-11 | D74: KALPATPOWR | E74: Buy | F74: 447 | G74: 434 | H74: 457 | I74: 470-480 | J74: Profit of Rs.10/- | K74: =H74-F74 -> 10 | L74: =K74/F74 -> 2.24% | O74: Successful | P74: 2019-10-22 | R74: H
A75: 35 | B75: 2019-10-11 | D75: M&M OCT FUT | E75: Buy | F75: 557 | G75: 544 | H75: 564.5 | I75: 580 | J75: Profit of Rs.7.5/- | K75: =H75-F75 -> 7.5 | M75: =N75*K75 -> 7500 | N75: 1000 | O75: Successful | P75: 2019-10-11 | R75: N
A76: 36 | B76: 2019-10-14 | D76: NIITTECH | E76: Buy | F76: 1405 | G76: 1378 | H76: 1438.5 | I76: 1440-1460 | J76: Profit of Rs.33.5/- | K76: 33.5 | L76: =K76/F76 -> 2.38% | O76: Successful | P76: 2019-10-15 | R76: H
A77: 37 | B77: 2019-10-14 | D77: KOTAKBANK OCT FUT | E77: Buy | F77: 1590 | G77: 1560 | H77: 1609 | I77: 1650 | J77: Profit of Rs.19/- | K77: =H77-F77 -> 19 | M77: =N77*K77 -> 7600 | N77: 400 | O77: Successful | P77: 2019-10-14 | R77: N
A78: 38 | B78: 2019-10-14 | D78: AMARAJABAT | E78: Buy | F78: 681.5 | G78: 659 | H78: 658 | I78: 715-720 | J78: Loss of Rs.23.50/- | K78: -23.5 | L78: =K78/F78 -> -3.45% | O78: UnSuccessful | P78: 2019-10-15 | R78: H
A79: 39 | B79: 2019-10-14 | D79: BATAINDIA OCT FUT | E79: Buy | F79: 1716 | G79: 1690 | H79: 1730 | I79: 1760 | J79: Profit of Rs.14/- | K79: 14 | M79: =N79*K79 -> 7700 | N79: 550 | O79: Successful | P79: 2019-10-17 | R79: N
A80: 40 | B80: 2019-10-14 | D80: CHOLAFIN | E80: Buy | F80: 284 | G80: 276.7 | H80: 273.5 | I80: 300-305 | J80: Loss of Rs.10.5/- | K80: =H80-F80 -> -10.5 | L80: =K80/F80 -> -3.70% | O80: UnSuccessful | P80: 2019-10-15 | R80: R
A81: 41 | B81: 2019-10-15 | D81: BHARATFORG OCT FUT | E81: Buy | F81: 429 | G81: 418 | H81: 435 | I81: 450 | J81: Profit of Rs.6/- | K81: =H81-F81 -> 6 | M81: =N81*K81 -> 7200 | N81: 1200 | O81: Successful | P81: 2019-10-15 | R81: N
A82: 42 | B82: 2019-10-15 | D82: SUNPHARMA | E82: Buy | F82: 396.5 | G82: 386.7 | H82: 405 | I82: 420-425 | J82: Profit of Rs.8.50/- | K82: 8.5 | L82: =K82/F82 -> 2.14% | O82: Successful | P82: 2019-10-18 | R82: R
A83: 43 | B83: 2019-10-15 | D83: LT | E83: Buy | F83: 1435-1445 | G83: 1390 | I83: 1500-1520 | J83: Open | R83: H
A84: 44 | B84: 2019-10-15 | D84: HAVELLS | E84: Buy | F84: 657.5 | G84: 639 | H84: 668.5 | I84: 690-700 | J84: Profit of Rs.11/- | K84: =H84-F84 -> 11 | L84: =K84/F84 -> 1.67% | O84: Successful | P84: 2019-10-15 | R84: H
A85: 45 | B85: 2019-10-15 | D85: INFRATEL OCT FUT | E85: Sell | F85: 260.5 | G85: 266.5 | H85: 257 | I85: 250-248 | J85: Profit of Rs.3.5/- | K85: =F85-H85 -> 3.5 | M85: =N85*K85 -> 7000 | N85: 2000 | O85: Successful | P85: 2019-10-15 | R85: N
A86: 46 | B86: 2019-10-15 | D86: HINDALCO | E86: Buy | F86: 190 | G86: 185 | H86: 194.5 | I86: 200 | J86: Profit of Rs.4.5/- | K86: =H86-F86 -> 4.5 | L86: =K86/F86 -> 2.37% | O86: Successful | P86: 2019-10-15 | R86: H
A87: 47 | B87: 2019-10-16 | D87: MFSL OCT FUT | E87: Buy | F87: 406 | G87: 396 | H87: 413 | I87: 425 | J87: Profit of Rs.7/- | K87: =H87-F87 -> 7 | M87: =N87*K87 -> 8400 | N87: 1200 | O87: Successful | P87: 2019-10-16 | R87: N
A88: 48 | B88: 2019-10-16 | D88: JUBLFOOD OCT FUT | E88: Buy | F88: 1328 | G88: 1305 | H88: 1305 | I88: 1370-1380 | J88: Loss of Rs.23/- | K88: =H88-F88 -> -23 | M88: =N88*K88 -> -11500 | N88: 500 | O88: UnSuccessful | P88: 2019-10-16 | R88: R
A89: 49 | B89: 2019-10-16 | D89: BIOCON | E89: Sell | F89: 259 | G89: 266.3 | H89: 254.5 | I89: 244-240 | J89: Profit of Rs.4.5/- | K89: =F89-H89 -> 4.5 | L89: =K89/F89 -> 1.74% | O89: Successful | P89: 2019-10-16 | R89: R
A90: 50 | B90: 2019-10-16 | D90: COLPAL OCT FUT | E90: Buy | F90: 1528 | G90: 1510 | H90: 1540 | I90: 1560 | J90: Profit of Rs.12/- | K90: =H90-F90 -> 12 | M90: =N90*K90 -> 8400 | N90: 700 | O90: Successful | P90: 2019-10-17 | R90: N
A91: 51 | B91: 2019-10-16 | D91: INFRATEL OCT FUT | E91: Sell | F91: 257 | G91: 263 | H91: 253.25 | I91: 248 | J91: Profit of Rs.3.75/- | K91: =F91-H91 -> 3.75 | M91: =N91*K91 -> 7500 | N91: 2000 | O91: Successful | P91: 2019-10-17 | R91: N
A92: 52 | B92: 2019-10-17 | D92: POWERGRID OCT FUT | E92: Buy | F92: 198.25 | G92: 195 | H92: 200.25 | I92: 205 | J92: Profit of Rs.2/- | K92: 2 | M92: =N92*K92 -> 8000 | N92: 4000 | O92: Successful | P92: 2019-10-18 | R92: N
A93: 53 | B93: 2019-10-17 | D93: ABFRL | E93: Buy | F93: 199 | G93: 194 | H93: 204 | I93: 212-216 | J93: Profit of Rs.5/- | K93: =H93-F93 -> 5 | L93: =K93/F93 -> 2.51% | O93: Successful | P93: 2019-10-17 | R93: R
A94: 54 | B94: 2019-10-17 | D94: RELIANCE | E94: Sell | F94: 1381.5 | G94: 1410 | H94: 1382 | I94: 1330-1320 | J94: Neutral | K94: =F94-H94 -> -0.5 | L94: =K94/F94 -> -0.04% | O94: Neutral | P94: 2019-10-17 | R94: H
A95: 55 | B95: 2019-10-17 | D95: NIITTECH | E95: Buy | F95: 1403 | G95: 1374 | H95: 1439 | I95: 1445-1465 | J95: Profit of Rs.36/- | K95: =H95-F95 -> 36 | L95: 2.57% | O95: Successful | P95: 2019-10-18 | R95: H
A96: 56 | B96: 2019-10-17 | D96: INDIGO | E96: Buy | F96: 1727.5 | G96: 1680 | H96: 1680 | I96: 1800 | J96: Loss of Rs.47.50/- | K96: -47.5 | L96: -2.75% | O96: UnSuccessful | P96: 2019-10-15 | R96: R
A97: 57 | B97: 2019-10-17 | D97: INFRATEL OCT FUT | E97: Sell | F97: 257 | G97: 263 | H97: 253 | I97: 248 | J97: Profit of Rs.4/- | K97: =F97-H97 -> 4 | M97: =N97*K97 -> 8000 | N97: 2000 | O97: Successful | P97: 2019-10-18 | R97: N
A98: 58 | B98: 2019-10-18 | D98: BEL | E98: Buy | F98: 117.5 | G98: 114.5 | H98: 114 | I98: 124-126 | J98: Loss of Rs.3.50/- | K98: =H98-F98 -> -3.5 | L98: =K98/F98 -> -2.98% | O98: UnSuccessful | P98: 2019-10-23 | R98: H
A99: 59 | B99: 2019-10-18 | D99: INFRATEL OCT FUT | E99: Sell | F99: 261 | G99: 267 | H99: 258.5 | I99: 248 | J99: Profit of Rs.2.50/- | K99: =F99-H99 -> 2.5 | M99: =N99*K99 -> 5000 | N99: 2000 | O99: Successful | P99: 2019-10-18 | R99: R
A100: 60 | B100: 2019-10-18 | D100: BHARATFORG OCT FUT | E100: Buy | F100: 449 | G100: 438 | H100: 455.5 | I100: 470 | J100: Profit of Rs.6.50/- | K100: =H100-F100 -> 6.5 | M100: 7800 | N100: 1200 | O100: Successful | P100: 2019-10-22 | R100: N
A101: 61 | B101: 2019-10-18 | D101: UBL OCT FUT | E101: Buy | F101: 1326 | G101: 1307 | H101: 1310 | I101: 1360 | J101: Loss of Rs.16/- | K101: =H101-F101 -> -16 | M101: -11200 | N101: 700 | O101: UnSuccessful | P101: 2019-10-22 | R101: N
A102: 62 | B102: 2019-10-22 | D102: CESC OCT FUT | E102: Buy | F102: 810 | G102: 794 | H102: 794 | I102: 835-840 | J102: Loss of Rs.16/- | K102: =H102-F102 -> -16 | M102: -12800 | N102: 800 | O102: UnSuccessful | P102: 2019-10-24 | R102: N
A103: 63 | B103: 2019-10-22 | D103: COLPAL OCT FUT | E103: Buy | F103: 1528 | G103: 1510 | H103: 1541 | I103: 1560 | J103: Profit of Rs.13/- | K103: =H103-F103 -> 13 | M103: 9100 | N103: 700 | O103: Successful | P103: 2019-10-22 | R103: N
A104: 64 | B104: 2019-10-22 | D104: BHARATFORG OCT FUT | E104: Buy | F104: 446 | G104: 435 | H104: 452.5 | I104: 465 | J104: Profit of Rs.6.50/- | K104: =H104-F104 -> 6.5 | M104: 7800 | N104: 1200 | O104: Successful | P104: 2019-10-23 | R104: N
A105: 65 | B105: 2019-10-22 | D105: SBIN | E105: Buy | F105: 272.5 | G105: 264 | H105: 266.5 | I105: 285 | J105: Loss of Rs.6/- | K105: -6 | L105: =K105/F105 -> -2.20% | O105: UnSuccessful | P105: 2019-10-24 | R105: H
A106: 66 | B106: 2019-10-23 | D106: BANKNIFTY OCT FUT | E106: Sell | F106: 29260 | G106: 29560 | H106: 29560 | I106: 28700 | J106: Loss of Rs.300/- | K106: =F106-H106 -> -300 | M106: =N106*K106 -> -6000 | N106: 20 | O106: UnSuccessful | P106: 2019-10-23 | R106: R
A107: 67 | B107: 2019-10-23 | D107: NIFTY OCT FUT | E107: Sell | F107: 11615 | G107: 11690 | H107: 11567.5 | I107: 11470-11450 | J107: Profit of Rs.47.50/- | K107: =F107-H107 -> 47.5 | M107: =N107*K107 -> 3562.5 | N107: 75 | O107: Successful | P107: 2019-10-24 | R107: R
A108: 68 | B108: 2019-10-23 | D108: VOLTAS | E108: Sell | F108: 701-705 | G108: 722 | I108: 670-660 | J108: Open | R108: H
A109: 69 | B109: 2019-10-23 | D109: HINDALCO | E109: Buy | F109: 184 | G109: 178.5 | H109: 184 | I109: 193-195 | J109: Neutral | K109: =F109-H109 -> 0 | L109: =K109/F109 -> 0.00% | O109: Neutral | P109: 2019-10-24 | R109: H
A110: 70 | B110: 2019-10-24 | D110: COALINDIA | E110: Sell | F110: 206-208 | G110: 213.3 | I110: 198-194 | J110: Open
A111: 71 | B111: 2019-10-24 | D111: BHARATFORG NOV FUT | E111: Buy | F111: 451-453 | G111: 442 | I111: 470 | J111: Open
A112: 72 | B112: 2019-10-25 | D112: ESCORTS | E112: Sell | F112: 650 | G112: 671.3 | H112: 636.5 | I112: 620-614 | J112: Profit of Rs.13.5/- | K112: =F112-H112 -> 13.5 | L112: =K112/F112 -> 2.08% | O112: Successful | P112: 2019-10-25
A113: 73 | B113: 2019-10-25 | D113: JUBLFOOD | E113: Buy | F113: 1507-1513 | G113: 1461.6 | I113: 1600-1620 | J113: Open
A114: 74 | B114: 2019-10-25 | D114: DLF | E114: Sell | F114: 179-181 | G114: 184.3 | I114: 170-167 | J114: Open
A115: 75 | B115: 2019-10-25 | D115: UBL OCT FUT | E115: Buy | F115: 1342-1344 | G115: 1324 | I115: 1375 | J115: Open
A116: 76
A118: CLBS = Closing Basis ***
A119: Dividend adjusted <> | F119: Reinitiated $
F120: Revised stoploss #
A122: Master Trade High Risk
A123: Sr.no | B123: Date | D123: Company | E123: Rec | F123: Rec Price | G123: Stop Loss | H123: Call Closed At | I123: Target | J123: Remark | K123: Profit / Loss per share | L123: Gain / Loss per Lot | M123: Lot | N123: Status | O123: Closed Date
A124: 1 | B124: 2019-10-01 | D124: HDFC OCT FUT | E124: Buy | F124: 1999 | G124: 1947 | H124: 2022 | I124: 2050 | J124: Profit of Rs.20/- | K124: =H124-F124 -> 23 | L124: =20*M124 -> 10000 | M124: 500 | N124: Successful | O124: 2019-10-04 | R124: H
D125: HDFC 2040 CE OCT | E125: Sell | F125: 52 | H125: 55 | K125: =F125-H125 -> -3 | R125: H
A126: 2 | B126: 2019-10-03 | D126: NIFTY OCT FUT | E126: Buy | F126: 11350 | G126: 11190 | H126: 11425 | I126: 11550 | J126: Profit of Rs.71.5/- | K126: =H126-F126 -> 75 | L126: =71.5*75 -> 5362.5 | M126: 75 | N126: Successful | O126: 2019-10-04 | R126: H
D127: Nifty 11450 CE 10-OCT | E127: Sell | F127: 75 | H127: 78.5 | K127: =F127-H127 -> -3.5 | R127: H
A128: 3 | B128: 2019-10-04 | D128: HDFC OCT FUT | E128: Buy | F128: 2002 | G128: 1947 | H128: 2023.5 | I128: 2050 | J128: Profit of Rs.26.5/- | K128: =H128-F128 -> 21.5 | L128: =M128*26.5 -> 13250 | M128: 500 | N128: Successful | O128: 2019-10-11 | R128: H
D129: HDFC 2040 CE OCT | E129: Sell | F129: 48 | H129: 43 | K129: =F129-H129 -> 5 | R129: H
A130: 4 | B130: 2019-10-04 | D130: HDFCBANK OCT FUT | E130: Buy | F130: 1202.5 | G130: 1169 | H130: 1222.5 | I130: 1250 | J130: Profit of Rs.16.5/- | K130: 20 | L130: =M130*16.5 -> 8250 | M130: 500 | N130: Successful | O130: 2019-10-11 | R130: H
D131: HDFCBANK 1240 CE OCT | E131: Sell | F131: 23.5 | H131: 27 | K131: =F131-H131 -> -3.5 | R131: H
A132: 5 | B132: 2019-10-11 | D132: HDFC OCT FUT | E132: Buy | F132: 1997.5 | G132: 1947 | H132: 2022 | I132: 2050 | J132: Profit of Rs.18/- | K132: =H132-F132 -> 24.5 | L132: =M132*18 -> 9000 | M132: 500 | N132: Successful | O132: 2019-10-11 | R132: H
D133: HDFC 2040 CE OCT | E133: Sell | F133: 36 | H133: 42.5 | K133: =F133-H133 -> -6.5 | R133: H
A134: 6 | B134: 2019-10-11 | D134: HDFCBANK OCT FUT | E134: Buy | F134: 1204 | G134: 1169 | H134: 1214 | I134: 1250 | J134: Profit of Rs.9/- | K134: =H134-F134 -> 10 | L134: =M134*9 -> 4500 | M134: 500 | N134: Successful | O134: 2019-10-14 | R134: H
D135: HDFCBANK 1240 CE OCT | E135: Sell | F135: 23 | H135: 24 | K135: =F135-H135 -> -1 | R135: H
A136: 7 | B136: 2019-10-16 | D136: NIFTY OCT FUT | E136: Sell | F136: 11467.5 | G136: 11630 | H136: 11590 | I136: 11250 | J136: Loss of Rs.81.50/- | K136: =F136-H136 -> -122.5 | L136: =-M136*81.5 -> -6112.5 | M136: 75 | N136: Unsuccessful | O136: 2019-10-17 | R136: H
D137: NIFTY 11300 PE 24-OCT | E137: Buy | F137: 57.50 | H137: 16.5 | K137: =F137-H137 -> 41 | R137: H
A138: 6 | B138: 2019-10-16 | D138: HAVELLS OCT FUT | E138: Buy | F138: 667 | G138: 649 | H138: 679.5 | I138: 690 | J138: Profit of Rs.9/- | K138: =H138-F138 -> 12.5 | L138: =M138*9 -> 9000 | M138: 1000 | N138: Successful | O138: 2019-10-17 | R138: H
D139: HAVELLS 690 CE | E139: Sell | F139: 13.50 | H139: 17 | K139: =F139-H139 -> -3.5 | R139: H
A140: 7 | B140: 2019-10-18 | D140: M&M OCT FUT | E140: Buy | F140: 587 | G140: 572 | H140: 597.5 | I140: 610-615 | J140: Profit of Rs.8.50/- | K140: =H140-F140 -> 10.5 | L140: =M140*8.5 -> 8500 | M140: 1000 | N140: Successful | O140: 2019-10-18 | R140: N
D141: M&M 610 CE OCT | E141: Sell | F141: 6 | H141: 8 | K141: =F141-H141 -> -2 | R141: N
A142: 8 | B142: 2019-10-23 | D142: UPL OCT FUT | E142: Buy | F142: 600-602 | G142: 585 | I142: 630-635 | J142: Open | R142: N
D143: UPL 620 CE OCT | E143: Sell | F143: 6.50-7.50 | R143: N
A144: 9 | B144: 2019-10-24 | D144: KOTAKBANK NOV FUT | E144: Buy | F144: 1626 | G144: 1585 | H144: 1585 | I144: 1660 | J144: Loss of Rs.33.50/- | K144: =H144-F144 -> -41 | L144: =33*-400 -> -13200 | M144: 400 | N144: Unsuccessful | O144: 2019-10-25
D145: KOTAKBANK 1660 CE OCT | E145: Sell | F145: 10 | H145: 2.5 | K145: =F145-H145 -> 7.5
A146: 10 | B146: 2019-10-24 | D146: TATAGLOBAL OCT FUT | E146: Sell | F146: 284 | G146: 291 | H146: 280.5 | I146: 270 | J146: Profit of Rs.2.75/- | K146: =F146-H146 -> 3.5 | L146: =2.75*2700 -> 7425 | M146: 2700 | N146: Successful | O146: 2019-10-24
D147: TATAGLOBAL 275 PE OCT | E147: Sell | F147: 3 | H147: 3.75 | K147: =F147-H147 -> -0.75
A148: 11 | B148: 2019-10-25 | D148: HAVELLS OCT FUT | E148: Buy | F148: 666-668 | G148: 645 | H148: 690 | J148: Open
D149: HAVELLS 680 CE OCT | E149: Sell | F149: 8-9
A150: 12 | B150: 2019-10-25 | D150: BATAINDIA OCT FUT | E150: Buy | F150: 1667-1670 | G150: 1735 | I150: 1820 | J150: Open
D151: BATAINDIA 1780 CE OCT | E151: Sell | F151: 17-20
A154: Master Trade Medium Risk
A155: Sr.no | B155: Date | D155: Company | E155: Rec | F155: Rec Price | G155: Stop Loss | H155: Call Closed At | I155: Target | J155: Remark | K155: Profit/ Loss per lot | L155: Gain / Loss per Lot | M155: Lot | N155: Status | O155: Closed Date
A156: 1 | B156: 2019-10-04 | D156: Nifty 11400 CE 10-OCT | E156: Buy | F156: 92 | H156: 0 | J156: Loss of Rs.38/- | K156: =H156-F156 -> -92 | L156: =-38*75 -> -2850 | M156: 75 | N156: Unsuccessful | O156: 2019-10-10 | R156: H
D157: NIFTY 11500 CE 10-OCT | E157: Sell | F157: 54 | H157: 0 | K157: =F157-H157 -> 54 | R157: H
A158: 2 | B158: 2019-10-10 | D158: TATASTEEL OCT 350 CE | E158: Buy | F158: 8.5 | G158: 3.9 | H158: 11.25 | I158: 15-17 | J158: Profit of Rs.2.75/- | K158: =H158-F158 -> 2.75 | L158: =M158*K158 -> 2917.75 | M158: 1061 | N158: Successful | O158: 2019-10-11 | R158: H
A159: 3 | B159: 2019-10-11 | D159: NIFTY 17-OCT 11350 CE | E159: Buy | F159: 44.5 | G159: 18 | H159: 64 | I159: 70-80 | J159: Profit of Rs.19.5/- | K159: =H159-F159 -> 19.5 | L159: =M159*K159 -> 1462.5 | M159: 75 | N159: Successful | O159: 2019-10-11 | R159: H
A160: 4 | B160: 2019-10-15 | D160: JSWSTEEL OCT 235 CE | E160: Buy | F160: 5.5 | G160: 3.5 | H160: 3.9 | I160: 9 | J160: Loss of Rs.1.60/- | K160: =H160-F160 -> -1.6 | L160: =M160*K160 -> -3200 | M160: 2000 | N160: Unsuccessful | O160: 2019-10-16 | R160: N
A161: 5 | B161: 2019-10-17 | D161: NIFTY OCT 24 11350 PE | E161: Buy | F161: 46 | G161: 29 | H161: 29 | I161: 75-85 | J161: Loss of Rs.17/- | K161: =H161-F161 -> -17 | L161: =M161*K161 -> -1275 | M161: 75 | N161: Unsuccessful | O161: 2019-10-17 | R161: H
A162: 6 | B162: 2019-10-22 | D162: DLF 31-OCT 170 PE | E162: Buy | F162: 2.60-2.80 | J162: Open | R162: R
D163: DLF 31-OCT 165 PE | E163: Sell | F163: 1.70-1.90 | R163: R
A164: 7 | B164: 2019-10-22 | D164: M&M OCT 610 CE | E164: Buy | F164: 7.75 | G164: 2.5 | H164: 3.15 | I164: 15 | J164: Loss of Rs.4.60/- | K164: =H164-F164 -> -4.6 | L164: =M164*K164 -> -4600 | M164: 1000 | N164: Unsuccessful | O164: 2019-10-24 | R164: N
A165: 8 | B165: 2019-10-22 | D165: EICHERMOT OCT 21000 CE | E165: Buy | F165: 200 | G165: 38 | H165: 255 | I165: 400-500 | J165: Profit of Rs.55/- | K165: =H165-F165 -> 55 | L165: =M165*K165 -> 1375 | M165: 25 | N165: Successful | O165: 2019-10-23 | R165: H
A166: 9 | B166: 2019-10-22 | D166: Nifty 31-OCT 11800 CE | E166: Buy | F166: 50.5 | G166: 34 | H166: 34 | I166: 80 | J166: Loss of Rs.16.50/- | K166: =H166-F166 -> -16.5 | L166: =M166*K166 -> -1237.5 | M166: 75 | N166: Unsuccessful | O166: 2019-10-23 | R166: H
A167: 10 | B167: 2019-10-23 | D167: CIPLA OCT 460 CE | E167: Buy | F167: 5.5 | G167: 1.5 | H167: 7.25 | I167: 12.00-14.00 | J167: Profit of Rs.1.75/- | K167: =H167-F167 -> 1.75 | L167: =M167*K167 -> 1750 | M167: 1000 | N167: Successful | O167: 2019-10-23 | R167: H
A168: 11 | B168: 2019-10-24 | D168: Nifty 11750 CE 31-OCT | E168: Buy | F168: 39 | G168: 18 | H168: 18 | I168: 80 | J168: Loss of Rs.21/- | K168: =H168-F168 -> -21 | L168: =M168*K168 -> -1575 | M168: 75 | N168: Unsuccessful | O168: 2019-10-25
A170: Techno -Funda (positional)
A171: Sr.no | B171: Date | D171: Company | E171: Rec | F171: Rec Price | G171: Stop Loss*** | H171: Call Closed At | I171: Target | J171: Remark | K171: Profit / Loss per Share | L171: Gain / Loss % | M171: Status | N171: Closed Date | O171: NSE Closed Price
A172: 1 | B172: 2019-08-13 | D172: ITC | E172: Buy | F172: 247 | G172: 228 | H172: 262.5 | I172: 290-300 | J172: Part Profit of Rs.15.5/- | K172: =H172-F172 -> 15.5 | L172: =K172/F172 -> 6.28% | M172: Successful | N172: 2019-10-01 | O172: =VLOOKUP(D172,Sheet2!A131:M1770,6,0) -> 247.7 | R172: H
A176: CLBS = Closing Basis *** | F176: Reinitiated $
A177: Dividend adjusted <> | F177: Revised stoploss #
B182: Investment Idea
A183: Sr.no | B183: Date | D183: Company | E183: Rec | F183: Rec Price | G183: Point of Review | H183: Close Rate | I183: Target | J183: Remark | K183: Profit / Loss per Share | L183: Gain / Loss % | M183: Status | N183: Closed Date
A184: 1 | B184: 2013-11-01 | D184: L&T Finance Holding | E184: Accu | F184: 82.00 | G184: - | H184: 100 | I184: 100.00 | J184: Target Achieved | K184: =H184-F184 -> 18.00 | L184: =K184/F184 -> 21.95% | M184: Successful | N184: 2016-10-14
A185: 2 | B185: 2014-06-04 | D185: Finolex Inds | E185: Buy | F185: 257.00 | G185: - | H185: 300 | I185: 300.00 | J185: Target Achieved | K185: =H185-F185 -> 43.00 | L185: 16.73% | M185: Successful | N185: 2014-07-02
A186: 3 | B186: 2014-07-08 | D186: JK Cement | E186: Buy | F186: 393.00 | G186: - | H186: 468 | I186: 468.00 | J186: Target Achieved | K186: =H186-F186 -> 75.00 | L186: 19.08% | M186: Successful | N186: 2014-08-12
A187: 4 | B187: 2014-08-06 | D187: Finolex Cables | E187: Buy | F187: 205.00 | G187: - | H187: 275 | I187: 250.00 | J187: Target Achieved | K187: 70.00 | L187: 34.15% | M187: Successful | N187: 2014-11-19
A188: 5 | B188: 2014-09-04 | D188: Exide Inds | E188: Buy | F188: 162.00 | G188: - | H188: 190 | I188: 190.00 | J188: Target Achieved | K188: 28.00 | L188: 17.28% | M188: Successful | N188: 2015-01-02
A189: 6 | B189: 2014-09-04 | D189: Deepak Nitrite | E189: Buy | F189: 75.00 | G189: - | H189: 91.5 | I189: 95-100 | J189: Profit of Rs.16.50/- | K189: 16.50 | L189: 22.00% | M189: Successful | N189: 2014-11-11
A190: 7 | B190: 2014-10-01 | D190: Mercks | E190: Buy | F190: 850.00 | G190: - | H190: 982.5 | I190: 1050.00 | J190: Profit of Rs.132.50/- | K190: 132.50 | L190: 15.59% | M190: Successful | N190: 2015-02-04
A191: 8 | B191: 2014-10-01 | D191: Grindwell Norton | E191: Buy | F191: 475.00 | G191: - | H191: 515 | I191: 600.00 | J191: Profit of Rs.40/- | K191: 40.00 | L191: 8.42% | M191: Successful | N191: 2014-10-27
A192: 9 | B192: 2014-10-01 | D192: Snowman Logistics | E192: Buy | F192: 86.00 | G192: - | H192: 99 | I192: 140.00 | J192: Profit of Rs.13.00/- | K192: 13.00 | L192: 15.12% | M192: Successful | N192: 2014-10-27
A193: 10 | B193: 2014-10-14 | D193: Birla Corp | E193: Buy | F193: 496.60 | G193: - | H193: 621 | I193: 580.00 | J193: Target Achieved | K193: 124.40 | L193: 25.05% | M193: Successful | N193: 2016-08-23
A194: 11 | B194: 2014-10-14 | D194: Ultratech Cem | E194: Buy | F194: 2481.90 | G194: - | H194: 2840 | I194: 2870.00 | J194: Profit of Rs.358.10/- | K194: 358.10 | L194: 14.43% | M194: Successful | N194: 2015-01-13
A195: 12 | B195: 2014-10-16 | D195: Sintex Inds | E195: Buy | F195: 84.50 | G195: - | H195: 93 | I195: 110.00 | J195: Profit of Rs.8.50/- | K195: 8.50 | L195: 10.06% | M195: Successful | N195: 2014-10-27
A196: 13 | B196: 2014-10-16 | D196: HSIL | E196: Buy | F196: 401.00 | G196: - | H196: 428 | I196: 450.00 | J196: Profit of Rs.27.00/- | K196: 27.00 | L196: 6.73% | M196: Successful | N196: 2015-01-16
A197: 14 | B197: 2014-10-16 | D197: Eveready Inds | E197: Buy | F197: 101.00 | G197: - | H197: 112 | I197: 120.00 | J197: Profit of Rs.11.00/- | K197: 11.00 | L197: 10.89% | M197: Successful | N197: 2014-10-27
A198: 15 | B198: 2014-11-11 | D198: Pennar Inds | E198: Buy | F198: 59.00 | G198: - | H198: 76 | I198: 76.00 | J198: Target Achieved | K198: 17.00 | L198: 28.81% | M198: Successful | N198: 2017-10-24
A199: 16 | B199: 2014-11-11 | D199: Snowman Logistics | E199: Buy | F199: 99.00 | G199: - | H199: 120 | I199: 120.00 | J199: Profit of Rs.21/- | K199: 21.00 | L199: 21.21% | M199: Successful | N199: 2014-11-17
A200: 17 | B200: 2014-11-13 | D200: Dharamsi Morarji Chem | E200: Buy | F200: 22.00 | G200: - | H200: 33.55 | I200: 32.00 | J200: Profit of Rs 11.55/- | K200: 11.55 | L200: 52.50% | M200: Successful | N200: 2015-07-03
A201: 18 | B201: 2014-12-03 | D201: Tatachem | E201: Buy | F201: 440.00 | G201: - | H201: 520 | I201: 520.00 | J201: Profit of Rs 80.00/- | K201: 80.00 | L201: 18.18% | M201: Successful | N201: 2015-07-23
A202: 19 | B202: 2014-12-03 | D202: Advanta | E202: Buy | F202: 360.00 | G202: - | H202: 427 | I202: 425.00 | J202: Profit of Rs.67.00/- | K202: 67.00 | L202: 18.61% | M202: Successful | N202: 2015-02-23
A203: 20 | B203: 2015-01-08 | D203: GDL | E203: Buy | F203: 360.00 | G203: - | H203: 455 | I203: 420.00 | J203: Profit of Rs.95.00/- | K203: 95.00 | L203: 26.39% | M203: Successful | N203: 2015-01-20
A204: 21 | B204: 2015-01-08 | D204: NRB Bearing | E204: Buy | F204: 130.00 | H204: 175.5 | I204: 165.00 | J204: Profit of Rs 45.50/- | K204: 45.50 | L204: 35.00% | M204: Successful | N204: 2017-12-19
A205: 22 | B205: 2015-02-05 | D205: GSFC | E205: Accu | F205: 98.00 | H205: 120 | I205: 120.00 | J205: Target Achieved | K205: 22.00 | L205: 22.45% | M205: Successful | N205: 2017-01-18
A206: 23 | B206: 2015-02-05 | D206: Sundrmfast | E206: Accu | F206: 196.00 | H206: 262 | I206: 255.00 | J206: Target Achieved | K206: 66.00 | L206: 33.67% | M206: Successful | N206: 2016-08-17
A207: 24 | B207: 2015-03-04 | D207: GPPL | E207: Accu | F207: 235 | H207: 77.00 | I207: 280-285 | J207: Loss of Rs.158/- | K207: -158.00 | L207: -67.23% | M207: Unsuccessful | N207: 2019-02-26
A208: 25 | B208: 2015-03-04 | D208: ORIENTCEM | E208: Accu | F208: 185.00 | H208: 224 | I208: 220-225 | J208: Target Achieved | K208: 39.00 | L208: 21.08% | M208: Successful | N208: 2016-10-04
A209: 26 | B209: 2015-03-27 | D209: PFS | E209: Accu | F209: 49.5 | H209: 15.85 | I209: 67.00 | J209: Loss of Rs.33.65/- | K209: -33.65 | L209: -68% | M209: Unsuccessful | N209: 2019-06-11
A210: 27 | B210: 2015-03-30 | D210: Walchandnagar Ind Ltd | E210: Accu | F210: 183.50 | H210: 219 | I210: 218.00 | J210: Profit of Rs.35.50/- | K210: 35.50 | L210: =K210/F210 -> 19.35% | M210: Successful | N210: 2015-04-09
A211: 28 | B211: 2015-04-20 | D211: Kalpataru Power Transmission Ltd | E211: Accu | F211: =(227+237)/2 -> 232.00 | H211: 298 | I211: 298.00 | J211: Target Achieved | K211: 66.00 | L211: 28.45% | M211: Successful | N211: 2017-03-29
A212: 29 | B212: 2015-05-04 | D212: Mastek Ltd | E212: Buy | F212: 385.00 | H212: =212.5+331 -> 543.5 | I212: 510.00 | J212: Profit of Rs 158.50/- | K212: 158.50 | L212: 41.17% | M212: Successful | N212: 2015-08-19
A213: 30 | B213: 2015-05-04 | D213: Suprajit Eng | E213: Buy | F213: 115.50 | H213: 146 | I213: 142.00 | J213: Profit of Rs 30.50/- | K213: 30.50 | L213: 26.41% | M213: Successful | N213: 2015-07-17
A214: 31 | B214: 2015-05-27 | D214: TCI | E214: Buy | F214: 237.50 | H214: 279.5 | I214: 278.00 | J214: Target Achieved | K214: 42.00 | L214: 17.68% | M214: Successful | N214: 2015-08-06
A215: 32 | B215: 2015-06-19 | D215: HSIL | E215: Accu | F215: 340.00 | H215: 448 | I215: 448.00 | J215: Target Achieved | K215: 108.00 | L215: 31.76% | M215: Successful | N215: 2017-10-10
A216: 33 | B216: 2015-07-06 | D216: Capital First | E216: Accu | F216: 390.00 | H216: 460 | I216: 460.00 | J216: Target Achieved | K216: 70.00 | L216: 17.95% | M216: Successful | N216: 2016-04-18
A217: 34 | B217: 2015-07-10 | D217: Dolphin OffShore | E217: Accu | F217: 122.5 | H217: 61.00 | I217: 172.00 | J217: Loss of Rs.61.50/- | K217: -61.50 | L217: -50.20% | M217: Unsuccessful | N217: 2018-08-21
A218: 35 | B218: 2015-08-03 | D218: Allcargo logistics | E218: Accu | F218: 297.50 | H218: 350 | I218: 360.00 | J218: Profit of Rs 52.50/- | K218: 52.50 | L218: 17.65% | M218: Successful | N218: 2015-08-16
A219: 36 | B219: 2015-08-03 | D219: Camline Fine | E219: Accu | F219: 115.50 | H219: 149 | I219: 140.00 | J219: Profit of Rs 33.50/- | K219: 33.50 | L219: 29.00% | M219: Successful | N219: 2017-01-05
A220: 37 | B220: 2015-09-04 | D220: TCI | E220: Accu | F220: 226.00 | H220: 292 | I220: 292.00 | J220: Target Achieved | K220: 66.00 | L220: 29.20% | M220: Successful | N220: 2015-10-09
A221: 38 | B221: 2015-09-07 | D221: Kalpataru Power Transmission Ltd | E221: Accu | F221: 232.50 | H221: 312.5 | I221: 310.00 | J221: Target Achieved | K221: 80.00 | L221: 34.41% | M221: Successful | N221: 2017-03-29
A222: 39 | B222: 2015-09-21 | D222: LLOYD ELECTRIC & ENG LTD | E222: Accu | F222: 196.50 | H222: 238 | I222: 238.00 | J222: Target Achieved | K222: 41.50 | L222: 21.12% | M222: Successful | N222: 2015-10-14
... 118 more rows

Sheet Sheet2 (hidden)
A1: SYMBOL | B1: SERIES | C1: OPEN | D1: HIGH | E1: LOW | F1: CLOSE | G1: LAST | H1: PREVCLOSE | I1: TOTTRDQTY | J1: TOTTRDVAL | K1: TIMESTAMP | L1: TOTALTRADES | M1: ISIN | N1: ISIN
A2: 20MICRONS | B2: EQ | C2: 37.55 | D2: 38.05 | E2: 36.1 | F2: 36.15 | G2: 36.15 | H2: 36.9 | I2: 59862 | J2: 2237315.75 | K2: 2019-10-25 | L2: 362 | M2: INE144J01027
A3: 21STCENMGM | B3: EQ | C3: 12.9 | D3: 12.9 | E3: 12.9 | F3: 12.9 | G3: 12.9 | H3: 12.9 | I3: 200 | J3: 2580 | K3: 2019-10-25 | L3: 1 | M3: INE253B01015
A4: 3IINFOTECH | B4: EQ | C4: 2 | D4: 2.05 | E4: 1.95 | F4: 1.95 | G4: 2 | H4: 2.05 | I4: 1254571 | J4: 2511358.1 | K4: 2019-10-25 | L4: 475 | M4: INE748C01020
A5: 3MINDIA | B5: EQ | C5: 21201 | D5: 22065 | E5: 20902.15 | F5: 21898.1 | G5: 21720 | H5: 21261.05 | I5: 4425 | J5: 95855480.25 | K5: 2019-10-25 | L5: 1827 | M5: INE470A01017
A6: 5PAISA | B6: EQ | C6: 162.3 | D6: 166.9 | E6: 159 | F6: 160.5 | G6: 161 | H6: 162.5 | I6: 3034 | J6: 487829 | K6: 2019-10-25 | L6: 233 | M6: INE618L01018
A7: 63MOONS | B7: EQ | C7: 119.25 | D7: 125.75 | E7: 118.1 | F7: 122.45 | G7: 122.4 | H7: 118.45 | I7: 187223 | J7: 22950517.3 | K7: 2019-10-25 | L7: 3227 | M7: INE111B01023
A8: A2ZINFRA | B8: EQ | C8: 8.9 | D8: 9.1 | E8: 8.45 | F8: 8.5 | G8: 8.45 | H8: 8.9 | I8: 469179 | J8: 4096627.5 | K8: 2019-10-25 | L8: 763 | M8: INE619I01012
A9: AARTIDRUGS | B9: EQ | C9: 528 | D9: 533.9 | E9: 519 | F9: 520.55 | G9: 520 | H9: 526.3 | I9: 15309 | J9: 8008487.6 | K9: 2019-10-25 | L9: 1528 | M9: INE767A01016
A10: AARTIIND | B10: EQ | C10: 870 | D10: 892 | E10: 855 | F10: 869.95 | G10: 869 | H10: 868.55 | I10: 121764 | J10: 105919607.8 | K10: 2019-10-25 | L10: 7199 | M10: INE769A01020
A11: AARVEEDEN | B11: EQ | C11: 14.65 | D11: 14.65 | E11: 13.95 | F11: 14.3 | G11: 14.3 | H11: 14.25 | I11: 1327 | J11: 18885.15 | K11: 2019-10-25 | L11: 18 | M11: INE273D01019
A12: AAVAS | B12: EQ | C12: 1659 | D12: 1659 | E12: 1585.7 | F12: 1624.1 | G12: 1588 | H12: 1632.25 | I12: 49684 | J12: 80752984.15 | K12: 2019-10-25 | L12: 4760 | M12: INE216P01012
A13: ABAN | B13: BE | C13: 24.8 | D13: 25.5 | E13: 24.4 | F13: 25.05 | G13: 25 | H13: 24.95 | I13: 19269 | J13: 482531.15 | K13: 2019-10-25 | L13: 207 | M13: INE421A01028
A14: ABB | B14: EQ | C14: 1520 | D14: 1528.15 | E14: 1481.6 | F14: 1495.25 | G14: 1495 | H14: 1513.9 | I14: 27316 | J14: 40972228.55 | K14: 2019-10-25 | L14: 2702 | M14: INE117A01022
A15: ABBOTINDIA | B15: EQ | C15: 11200 | D15: 11494 | E15: 11126 | F15: 11407.25 | G15: 11349.85 | H15: 11112.05 | I15: 15152 | J15: 172526048.9 | K15: 2019-10-25 | L15: 4349 | M15: INE358A01014
A16: ABCAPITAL | B16: EQ | C16: 81.5 | D16: 81.7 | E16: 78.75 | F16: 79.05 | G16: 79 | H16: 80.9 | I16: 1365709 | J16: 108616781.6 | K16: 2019-10-25 | L16: 22188 | M16: INE674K01013
A17: ABFRL | B17: EQ | C17: 203 | D17: 205.4 | E17: 201.3 | F17: 203.95 | G17: 204.15 | H17: 202.45 | I17: 277592 | J17: 56623113.8 | K17: 2019-10-25 | L17: 3535 | M17: INE647O01011
A18: ABSLNN50ET | B18: EQ | C18: 283.22 | D18: 283.22 | E18: 283 | F18: 283 | G18: 283 | H18: 282 | I18: 6 | J18: 1699.1 | K18: 2019-10-25 | L18: 2 | M18: INF209KB1B87
A19: ACC | B19: EQ | C19: 1524 | D19: 1524.95 | E19: 1501 | F19: 1518.4 | G19: 1519.5 | H19: 1519.1 | I19: 645397 | J19: 978401170 | K19: 2019-10-25 | L19: 23469 | M19: INE012A01025
A20: ACCELYA | B20: EQ | C20: 958.3 | D20: 976.4 | E20: 921.2 | F20: 934.85 | G20: 921.5 | H20: 949.8 | I20: 48254 | J20: 46003577.4 | K20: 2019-10-25 | L20: 2092 | M20: INE793A01012
A21: ACE | B21: EQ | C21: 80 | D21: 80.85 | E21: 80 | F21: 80.45 | G21: 80.7 | H21: 80 | I21: 50607 | J21: 4059367.2 | K21: 2019-10-25 | L21: 365 | M21: INE731H01025
A22: ADANIENT | B22: EQ | C22: 179.5 | D22: 183.7 | E22: 177.2 | F22: 181.3 | G22: 180.65 | H22: 179 | I22: 7857185 | J22: 1422963395 | K22: 2019-10-25 | L22: 42181 | M22: INE423A01024
A23: ADANIGAS | B23: EQ | C23: 145.8 | D23: 149.45 | E23: 144.75 | F23: 146.75 | G23: 146.65 | H23: 145.7 | I23: 712618 | J23: 105105416.3 | K23: 2019-10-25 | L23: 8585 | M23: INE399L01023
A24: ADANIGREEN | B24: EQ | C24: 85.9 | D24: 93.1 | E24: 85 | F24: 88.95 | G24: 89.4 | H24: 86.15 | I24: 3192580 | J24: 287241625 | K24: 2019-10-25 | L24: 22114 | M24: INE364U01010
A25: ADANIPORTS | B25: EQ | C25: 402.95 | D25: 402.95 | E25: 396.85 | F25: 398.95 | G25: 397.6 | H25: 399.15 | I25: 3272059 | J25: 1308219503 | K25: 2019-10-25 | L25: 27005 | M25: INE742F01042
A26: ADANIPOWER | B26: EQ | C26: 63.5 | D26: 65 | E26: 63.15 | F26: 64.2 | G26: 64.15 | H26: 63.45 | I26: 6767043 | J26: 434617125.8 | K26: 2019-10-25 | L26: 20900 | M26: INE814H01011
A27: ADANITRANS | B27: EQ | C27: 266.1 | D27: 273.7 | E27: 261 | F27: 262.55 | G27: 262.6 | H27: 265.35 | I27: 354670 | J27: 94409043.9 | K27: 2019-10-25 | L27: 7019 | M27: INE931S01010
A28: ADFFOODS | B28: EQ | C28: 252.3 | D28: 271.45 | E28: 250.1 | F28: 263.2 | G28: 269 | H28: 254 | I28: 60826 | J28: 15857374.3 | K28: 2019-10-25 | L28: 2961 | M28: INE982B01019
A29: ADHUNIKIND | B29: EQ | C29: 111.1 | D29: 114.9 | E29: 108.1 | F29: 113.7 | G29: 113.5 | H29: 111.05 | I29: 43137 | J29: 4794029.1 | K29: 2019-10-25 | L29: 1489 | M29: INE452L01012
A30: ADLABS | B30: EQ | C30: 2.1 | D30: 2.1 | E30: 2.1 | F30: 2.1 | G30: 2.1 | H30: 2 | I30: 15963 | J30: 33522.3 | K30: 2019-10-25 | L30: 21 | M30: INE172N01012
A31: ADORWELD | B31: EQ | C31: 306.05 | D31: 313.85 | E31: 306 | F31: 307.25 | G31: 307 | H31: 311.15 | I31: 1579 | J31: 488606.35 | K31: 2019-10-25 | L31: 105 | M31: INE045A01017
A32: ADROITINFO | B32: BE | C32: 6.55 | D32: 7.1 | E32: 6.55 | F32: 7.1 | G32: 7.1 | H32: 6.8 | I32: 832 | J32: 5574.05 | K32: 2019-10-25 | L32: 9 | M32: INE737B01033
A33: ADSL | B33: EQ | C33: 13.15 | D33: 13.35 | E33: 13.05 | F33: 13.15 | G33: 13.2 | H33: 13.25 | I33: 33206 | J33: 436847.7 | K33: 2019-10-25 | L33: 84 | M33: INE102I01027
A34: ADVANIHOTR | B34: EQ | C34: 54.1 | D34: 55.8 | E34: 54.1 | F34: 54.85 | G34: 54.6 | H34: 54.05 | I34: 1805 | J34: 99460.35 | K34: 2019-10-25 | L34: 38 | M34: INE199C01026
A35: ADVENZYMES | B35: EQ | C35: 161.4 | D35: 162.65 | E35: 157.05 | F35: 160.75 | G35: 160.75 | H35: 160.4 | I35: 50262 | J35: 8049425.3 | K35: 2019-10-25 | L35: 2278 | M35: INE837H01020
A36: AEGISCHEM | B36: EQ | C36: 171.5 | D36: 174.45 | E36: 162 | F36: 164.15 | G36: 167 | H36: 170.1 | I36: 186877 | J36: 31028397.9 | K36: 2019-10-25 | L36: 7174 | M36: INE208C01025
A37: AFFLE | B37: EQ | C37: 1370 | D37: 1438 | E37: 1360.5 | F37: 1420.75 | G37: 1435 | H37: 1362.95 | I37: 291922 | J37: 411350611.4 | K37: 2019-10-25 | L37: 19921 | M37: INE00WC01019
A38: AGARIND | B38: EQ | C38: 117 | D38: 119.25 | E38: 117 | F38: 118.25 | G38: 118.2 | H38: 115.25 | I38: 3923 | J38: 463733.25 | K38: 2019-10-25 | L38: 58 | M38: INE204E01012
A39: AGCNET | B39: BE | C39: 118.85 | D39: 118.85 | E39: 111 | F39: 115.85 | G39: 116.4 | H39: 115.35 | I39: 208 | J39: 24202.5 | K39: 2019-10-25 | L39: 13 | M39: INE676A01019
A40: AGRITECH | B40: EQ | C40: 48 | D40: 49.55 | E40: 47.5 | F40: 47.6 | G40: 47.5 | H40: 48.65 | I40: 7496 | J40: 361580.85 | K40: 2019-10-25 | L40: 146 | M40: INE449G01018
A41: AGROPHOS | B41: EQ | C41: 114.45 | D41: 115.3 | E41: 114.4 | F41: 114.9 | G41: 115 | H41: 114.15 | I41: 550571 | J41: 63309750.95 | K41: 2019-10-25 | L41: 48393 | M41: INE740V01019
A42: AHLEAST | B42: EQ | C42: 182 | D42: 182.95 | E42: 176.15 | F42: 178.05 | G42: 176.15 | H42: 177.95 | I42: 97 | J42: 17452.55 | K42: 2019-10-25 | L42: 67 | M42: INE926K01017
A43: AHLUCONT | B43: EQ | C43: 295.95 | D43: 297.7 | E43: 285.25 | F43: 294.9 | G43: 292 | H43: 289.3 | I43: 2395 | J43: 705753.9 | K43: 2019-10-25 | L43: 544 | M43: INE758C01029
A44: AHLWEST | B44: EQ | C44: 282 | D44: 295 | E44: 278 | F44: 291.65 | G44: 295 | H44: 280 | I44: 349 | J44: 99561.05 | K44: 2019-10-25 | L44: 108 | M44: INE915K01010
A45: AIAENG | B45: EQ | C45: 1661.3 | D45: 1680.7 | E45: 1641 | F45: 1672.7 | G45: 1672.5 | H45: 1661.3 | I45: 15163 | J45: 25311575.9 | K45: 2019-10-25 | L45: 9034 | M45: INE212H01026
A46: AIONJSW | B46: EQ | C46: 10.3 | D46: 10.3 | E46: 9.85 | F46: 9.95 | G46: 9.9 | H46: 10.05 | I46: 39258 | J46: 391785.5 | K46: 2019-10-25 | L46: 99 | M46: INE743C01021
A47: AIRAN | B47: EQ | C47: 13.6 | D47: 13.6 | E47: 12.75 | F47: 13 | G47: 13 | H47: 13 | I47: 7050 | J47: 90619.25 | K47: 2019-10-25 | L47: 19 | M47: INE645W01026
A48: AJANTPHARM | B48: EQ | C48: 1002.9 | D48: 1006.95 | E48: 982.7 | F48: 990.5 | G48: 992.9 | H48: 995.45 | I48: 29239 | J48: 29014575.2 | K48: 2019-10-25 | L48: 1911 | M48: INE031B01049
A49: AJMERA | B49: EQ | C49: 114.85 | D49: 115.7 | E49: 112.6 | F49: 114.05 | G49: 113.85 | H49: 114.95 | I49: 19473 | J49: 2222892.05 | K49: 2019-10-25 | L49: 526 | M49: INE298G01027
A50: AKASH | B50: EQ | C50: 58.25 | D50: 61.05 | E50: 58.25 | F50: 61.05 | G50: 61.05 | H50: 58.15 | I50: 2008 | J50: 117189 | K50: 2019-10-25 | L50: 10 | M50: INE737W01013
A51: AKSHARCHEM | B51: EQ | C51: 214.4 | D51: 214.4 | E51: 200.25 | F51: 201.75 | G51: 202 | H51: 207.55 | I51: 2009 | J51: 413260.05 | K51: 2019-10-25 | L51: 197 | M51: INE542B01011
A52: AKSHOPTFBR | B52: EQ | C52: 7.15 | D52: 7.3 | E52: 6.9 | F52: 7.15 | G52: 7.15 | H52: 7.05 | I52: 179708 | J52: 1275018.3 | K52: 2019-10-25 | L52: 373 | M52: INE523B01011
A53: AKZOINDIA | B53: EQ | C53: 2048.95 | D53: 2048.95 | E53: 2002.9 | F53: 2031.35 | G53: 2045 | H53: 2005.85 | I53: 7649 | J53: 15491326.3 | K53: 2019-10-25 | L53: 1330 | M53: INE133A01011
A54: ALANKIT | B54: EQ | C54: 12.95 | D54: 13.95 | E54: 12.1 | F54: 12.1 | G54: 12.1 | H54: 15.1 | I54: 886606 | J54: 11010730.85 | K54: 2019-10-25 | L54: 1458 | M54: INE914E01040
A55: ALBERTDAVD | B55: EQ | C55: 353.95 | D55: 359.9 | E55: 346.2 | F55: 351.5 | G55: 348 | H55: 359.25 | I55: 1593 | J55: 563518.3 | K55: 2019-10-25 | L55: 105 | M55: INE155C01010
A56: ALBK | B56: EQ | C56: 25.6 | D56: 25.85 | E56: 25 | F56: 25.25 | G56: 25.45 | H56: 25.8 | I56: 638143 | J56: 16188637.65 | K56: 2019-10-25 | L56: 4328 | M56: INE428A01015
A57: ALCHEM | B57: BE | C57: 0.8 | D57: 0.8 | E57: 0.7 | F57: 0.8 | G57: 0.8 | H57: 0.75 | I57: 2370 | J57: 1895.9 | K57: 2019-10-25 | L57: 9 | M57: INE964B01033
A58: ALEMBICLTD | B58: EQ | C58: 51.7 | D58: 52.4 | E58: 50 | F58: 50.8 | G58: 50.85 | H58: 50.8 | I58: 142228 | J58: 7249343.15 | K58: 2019-10-25 | L58: 1033 | M58: INE426A01027
A59: ALICON | B59: EQ | C59: 375.8 | D59: 383.95 | E59: 373.5 | F59: 377.6 | G59: 379 | H59: 383.3 | I59: 768 | J59: 290902.35 | K59: 2019-10-25 | L59: 51 | M59: INE062D01024
A60: ALKALI | B60: EQ | C60: 43.75 | D60: 44.5 | E60: 43.15 | F60: 43.35 | G60: 43.8 | H60: 43.55 | I60: 3460 | J60: 150504.1 | K60: 2019-10-25 | L60: 62 | M60: INE773I01017
A61: ALKEM | B61: EQ | C61: 1986.95 | D61: 1989.95 | E61: 1948.1 | F61: 1960.2 | G61: 1960 | H61: 1968.7 | I61: 13429 | J61: 26313602.6 | K61: 2019-10-25 | L61: 2641 | M61: INE540L01014
A62: ALKYLAMINE | B62: EQ | C62: 922.05 | D62: 922.05 | E62: 908 | F62: 917.8 | G62: 914 | H62: 922.9 | I62: 6272 | J62: 5750447.65 | K62: 2019-10-25 | L62: 549 | M62: INE150B01021
A63: ALLCARGO | B63: EQ | C63: 99.1 | D63: 99.75 | E63: 97.9 | F63: 98.45 | G63: 98.1 | H63: 99.25 | I63: 58826 | J63: 5795775.4 | K63: 2019-10-25 | L63: 997 | M63: INE418H01029
A64: ALLSEC | B64: EQ | C64: 302.95 | D64: 303 | E64: 294.95 | F64: 295.55 | G64: 295.55 | H64: 300.2 | I64: 4410 | J64: 1304501.35 | K64: 2019-10-25 | L64: 246 | M64: INE835G01018
A65: ALMONDZ | B65: EQ | C65: 9.85 | D65: 9.85 | E65: 9.85 | F65: 9.85 | G65: 9.85 | H65: 9.4 | I65: 1 | J65: 9.85 | K65: 2019-10-25 | L65: 1 | M65: INE326B01027
A66: ALOKTEXT | B66: EQ | C66: 1.5 | D66: 1.5 | E66: 1.45 | F66: 1.45 | G66: 1.5 | H66: 1.5 | I66: 3474556 | J66: 5120386.35 | K66: 2019-10-25 | L66: 921 | M66: INE270A01011
A67: ALPA | B67: EQ | C67: 14.35 | D67: 14.35 | E67: 13.9 | F67: 13.95 | G67: 14.2 | H67: 14.2 | I67: 19856 | J67: 279317.7 | K67: 2019-10-25 | L67: 223 | M67: INE385I01010
A68: ALPHAGEO | B68: EQ | C68: 182.45 | D68: 183.85 | E68: 178.1 | F68: 182.2 | G68: 181.4 | H68: 183.35 | I68: 5857 | J68: 1065396.55 | K68: 2019-10-25 | L68: 194 | M68: INE137C01018
A69: ALPSINDUS | B69: BE | C69: 0.45 | D69: 0.45 | E69: 0.35 | F69: 0.45 | G69: 0.45 | H69: 0.4 | I69: 23815 | J69: 10440.2 | K69: 2019-10-25 | L69: 23 | M69: INE093B01015
A70: AMARAJABAT | B70: EQ | C70: 655.15 | D70: 663.4 | E70: 648.7 | F70: 651.35 | G70: 649 | H70: 655.8 | I70: 172095 | J70: 112891457.8 | K70: 2019-10-25 | L70: 5695 | M70: INE885A01032
A71: AMBER | B71: EQ | C71: 992.95 | D71: 1024 | E71: 980.05 | F71: 991 | G71: 993.5 | H71: 986.3 | I71: 56031 | J71: 56183191.95 | K71: 2019-10-25 | L71: 3897 | M71: INE371P01015
A72: AMBIKCO | B72: EQ | C72: 919.95 | D72: 920.7 | E72: 909 | F72: 920 | G72: 916 | H72: 906.55 | I72: 2323 | J72: 2128333.35 | K72: 2019-10-25 | L72: 249 | M72: INE540G01014
A73: AMBUJACEM | B73: EQ | C73: 198.2 | D73: 199.1 | E73: 195.3 | F73: 197.45 | G73: 197.15 | H73: 197.65 | I73: 2875494 | J73: 568131653.5 | K73: 2019-10-25 | L73: 22940 | M73: INE079A01024
A74: AMDIND | B74: EQ | C74: 14.9 | D74: 15.2 | E74: 14.6 | F74: 14.95 | G74: 15 | H74: 14.95 | I74: 5337 | J74: 78910.8 | K74: 2019-10-25 | L74: 90 | M74: INE005I01014
A75: AMJLAND | B75: EQ | C75: 18 | D75: 19 | E75: 17.5 | F75: 18.75 | G75: 18.6 | H75: 18.45 | I75: 3102 | J75: 57179.25 | K75: 2019-10-25 | L75: 48 | M75: INE606A01024
A76: AMRUTANJAN | B76: EQ | C76: 405 | D76: 414 | E76: 394.75 | F76: 409.8 | G76: 410 | H76: 403.05 | I76: 58908 | J76: 23960396.4 | K76: 2019-10-25 | L76: 3002 | M76: INE098F01031
A77: ANANTRAJ | B77: EQ | C77: 31.4 | D77: 31.9 | E77: 31.4 | F77: 31.55 | G77: 31.55 | H77: 31.35 | I77: 142093 | J77: 4482790.7 | K77: 2019-10-25 | L77: 530 | M77: INE242C01024
A78: ANDHRABANK | B78: EQ | C78: 16.3 | D78: 16.3 | E78: 16.05 | F78: 16.1 | G78: 16.1 | H78: 16.15 | I78: 247562 | J78: 4000768.95 | K78: 2019-10-25 | L78: 1242 | M78: INE434A01013
A79: ANDHRACEMT | B79: BE | C79: 2.4 | D79: 2.4 | E79: 2.3 | F79: 2.3 | G79: 2.3 | H79: 2.4 | I79: 19730 | J79: 45380 | K79: 2019-10-25 | L79: 51 | M79: INE666E01012
A80: ANDHRSUGAR | B80: EQ | C80: 270.9 | D80: 271.75 | E80: 263.7 | F80: 264.1 | G80: 264.1 | H80: 267.25 | I80: 10781 | J80: 2863709.8 | K80: 2019-10-25 | L80: 688 | M80: INE715B01013
A81: ANIKINDS | B81: EQ | C81: 6.55 | D81: 6.7 | E81: 6.55 | F81: 6.6 | G81: 6.6 | H81: 6.4 | I81: 7832 | J81: 52331.05 | K81: 2019-10-25 | L81: 26 | M81: INE087B01017
A82: ANKITMETAL | B82: BE | C82: 0.4 | D82: 0.4 | E82: 0.35 | F82: 0.35 | G82: 0.35 | H82: 0.4 | I82: 6872 | J82: 2695.3 | K82: 2019-10-25 | L82: 14 | M82: INE106I01010
A83: ANSALAPI | B83: EQ | C83: 4.15 | D83: 4.2 | E83: 3.95 | F83: 4 | G83: 4.1 | H83: 4.15 | I83: 39424 | J83: 159283.3 | K83: 2019-10-25 | L83: 98 | M83: INE436A01026
A84: ANSALHSG | B84: EQ | C84: 4.45 | D84: 4.55 | E84: 4.25 | F84: 4.4 | G84: 4.45 | H84: 4.45 | I84: 10448 | J84: 45710.55 | K84: 2019-10-25 | L84: 96 | M84: INE880B01015
A85: ANTGRAPHIC | B85: BE | C85: 0.7 | D85: 0.75 | E85: 0.7 | F85: 0.7 | G85: 0.7 | H85: 0.75 | I85: 15894 | J85: 11377.55 | K85: 2019-10-25 | L85: 15 | M85: INE414B01021
A86: ANUP | B86: EQ | C86: 478.9 | D86: 491 | E86: 464.1 | F86: 470.25 | G86: 470 | H86: 475.5 | I86: 13895 | J86: 6590749.15 | K86: 2019-10-25 | L86: 909 | M86: INE294Z01018
A87: APARINDS | B87: EQ | C87: 512.2 | D87: 548 | E87: 512.2 | F87: 531.9 | G87: 535 | H87: 526.5 | I87: 13734 | J87: 7256997.5 | K87: 2019-10-25 | L87: 587 | M87: INE372A01015
A88: APCL | B88: EQ | C88: 138.25 | D88: 144.5 | E88: 138.2 | F88: 143.85 | G88: 144.3 | H88: 140.25 | I88: 1409 | J88: 201208.4 | K88: 2019-10-25 | L88: 79 | M88: INE071F01012
A89: APCOTEXIND | B89: EQ | C89: 174.2 | D89: 175.9 | E89: 171 | F89: 171.2 | G89: 171.3 | H89: 175.2 | I89: 26635 | J89: 4586880.65 | K89: 2019-10-25 | L89: 662 | M89: INE116A01032
A90: APEX | B90: EQ | C90: 233.55 | D90: 236.4 | E90: 228 | F90: 229.25 | G90: 230 | H90: 233.55 | I90: 38452 | J90: 8923039.65 | K90: 2019-10-25 | L90: 1204 | M90: INE346W01013
A91: APLAPOLLO | B91: EQ | C91: 1375 | D91: 1400 | E91: 1375 | F91: 1388.05 | G91: 1393 | H91: 1392.15 | I91: 9331 | J91: 12953768.6 | K91: 2019-10-25 | L91: 1627 | M91: INE702C01019
A92: APLLTD | B92: EQ | C92: 554.1 | D92: 564 | E92: 532.55 | F92: 539.65 | G92: 534.3 | H92: 542.9 | I92: 935420 | J92: 503654578.6 | K92: 2019-10-25 | L92: 10261 | M92: INE901L01018
A93: APOLLO | B93: EQ | C93: 66.8 | D93: 69.3 | E93: 66.7 | F93: 69.05 | G93: 69.2 | H93: 66.7 | I93: 23590 | J93: 1622940 | K93: 2019-10-25 | L93: 531 | M93: INE713T01010
A94: APOLLOHOSP | B94: EQ | C94: 1540 | D94: 1543.3 | E94: 1507.35 | F94: 1519.35 | G94: 1522.5 | H94: 1536.8 | I94: 289340 | J94: 439879802.2 | K94: 2019-10-25 | L94: 14672 | M94: INE437A01024
A95: APOLLOTYRE | B95: EQ | C95: 182.8 | D95: 184.2 | E95: 178.95 | F95: 181 | G95: 182 | H95: 181.7 | I95: 2541205 | J95: 461844840.6 | K95: 2019-10-25 | L95: 16538 | M95: INE438A01022
A96: APOLSINHOT | B96: EQ | C96: 771.05 | D96: 791.45 | E96: 771 | F96: 784.15 | G96: 785.9 | H96: 782.8 | I96: 431 | J96: 335623.6 | K96: 2019-10-25 | L96: 89 | M96: INE451F01024
A97: APTECHT | B97: EQ | C97: 173.8 | D97: 174.85 | E97: 155.7 | F97: 160.6 | G97: 160.2 | H97: 173.65 | I97: 368762 | J97: 60654983.85 | K97: 2019-10-25 | L97: 6732 | M97: INE266F01018
A98: ARCHIDPLY | B98: EQ | C98: 27.8 | D98: 28.5 | E98: 26.2 | F98: 26.4 | G98: 26.25 | H98: 27.3 | I98: 6698 | J98: 181012.55 | K98: 2019-10-25 | L98: 200 | M98: INE877I01016
A99: ARCHIES | B99: BE | C99: 18.2 | D99: 18.6 | E99: 17.8 | F99: 18.1 | G99: 18.4 | H99: 18.65 | I99: 21417 | J99: 389304.7 | K99: 2019-10-25 | L99: 81 | M99: INE731A01020
A100: ARCOTECH | B100: BE | C100: 1.55 | D100: 1.65 | E100: 1.55 | F100: 1.65 | G100: 1.65 | H100: 1.6 | I100: 13682 | J100: 22307.2 | K100: 2019-10-25 | L100: 35 | M100: INE574I01035
A101: ARIES | B101: EQ | C101: 59.8 | D101: 60.4 | E101: 58.3 | F101: 58.7 | G101: 58.45 | H101: 59.8 | I101: 5645 | J101: 333950.1 | K101: 2019-10-25 | L101: 241 | M101: INE298I01015
A102: ARIHANT | B102: EQ | C102: 17.1 | D102: 18.45 | E102: 17.1 | F102: 18.4 | G102: 18.4 | H102: 17.1 | I102: 87 | J102: 1519.15 | K102: 2019-10-25 | L102: 4 | M102: INE413D01011
A103: ARIHANTSUP | B103: BE | C103: 24.7 | D103: 26 | E103: 24.7 | F103: 24.7 | G103: 26 | H103: 26 | I103: 12220 | J103: 304855.3 | K103: 2019-10-25 | L103: 26 | M103: INE643K01018
A104: ARMANFIN | B104: EQ | C104: 531.45 | D104: 531.45 | E104: 519 | F104: 523.25 | G104: 520.4 | H104: 527.9 | I104: 3924 | J104: 2056205.45 | K104: 2019-10-25 | L104: 322 | M104: INE109C01017
A105: AROGRANITE | B105: EQ | C105: 43.45 | D105: 43.45 | E105: 38.15 | F105: 39.45 | G105: 39 | H105: 40.1 | I105: 6436 | J105: 257180.5 | K105: 2019-10-25 | L105: 103 | M105: INE210C01013
A106: ARROWGREEN | B106: EQ | C106: 55.75 | D106: 55.75 | E106: 50.8 | F106: 52.2 | G106: 52 | H106: 53.2 | I106: 1052 | J106: 55180.85 | K106: 2019-10-25 | L106: 63 | M106: INE570D01018
A107: ARROWTEX | B107: EQ | C107: 9.75 | D107: 10 | E107: 9.75 | F107: 9.75 | G107: 9.95 | H107: 9.7 | I107: 1655 | J107: 16151.1 | K107: 2019-10-25 | L107: 15 | M107: INE933J01015
A108: ARSHIYA | B108: EQ | C108: 18 | D108: 18.95 | E108: 17.9 | F108: 18.2 | G108: 18.1 | H108: 18.45 | I108: 15914 | J108: 286519.85 | K108: 2019-10-25 | L108: 52 | M108: INE968D01022
A109: ARSSINFRA | B109: EQ | C109: 22 | D109: 22.55 | E109: 22 | F109: 22 | G109: 22 | H109: 23.15 | I109: 12514 | J109: 276587.2 | K109: 2019-10-25 | L109: 88 | M109: INE267I01010
A110: ARVIND | B110: EQ | C110: 44.9 | D110: 47.5 | E110: 44.5 | F110: 45.6 | G110: 45.3 | H110: 45.45 | I110: 2075568 | J110: 95729911.7 | K110: 2019-10-25 | L110: 17682 | M110: INE034A01011
A111: ARVINDFASN | B111: EQ | C111: 454.8 | D111: 460 | E111: 439 | F111: 451.4 | G111: 451 | H111: 460 | I111: 18357 | J111: 8342345.65 | K111: 2019-10-25 | L111: 4132 | M111: INE955V01021
A112: ARVSMART | B112: EQ | C112: 95.75 | D112: 97.05 | E112: 92.4 | F112: 93.4 | G112: 93.1 | H112: 95.75 | I112: 6199 | J112: 580522.35 | K112: 2019-10-25 | L112: 320 | M112: INE034S01021
A113: ASAHIINDIA | B113: EQ | C113: 200.05 | D113: 203.6 | E113: 198.95 | F113: 200.6 | G113: 200.5 | H113: 202.1 | I113: 5894 | J113: 1180702.55 | K113: 2019-10-25 | L113: 237 | M113: INE439A01020
A114: ASAHISONG | B114: EQ | C114: 161 | D114: 162 | E114: 154 | F114: 155.05 | G114: 154 | H114: 159.55 | I114: 2579 | J114: 403775.85 | K114: 2019-10-25 | L114: 150 | M114: INE228I01012
A115: ASAL | B115: EQ | C115: 30.85 | D115: 30.9 | E115: 30.1 | F115: 30.1 | G115: 30.1 | H115: 30.25 | I115: 2526 | J115: 76703.75 | K115: 2019-10-25 | L115: 31 | M115: INE900C01027
A116: ASHAPURMIN | B116: BE | C116: 32.1 | D116: 33.3 | E116: 32.1 | F116: 32.85 | G116: 33.2 | H116: 32.7 | I116: 20626 | J116: 673204.2 | K116: 2019-10-25 | L116: 90 | M116: INE348A01023
A117: ASHIANA | B117: EQ | C117: 94.4 | D117: 94.4 | E117: 93.05 | F117: 93.3 | G117: 93.1 | H117: 93.2 | I117: 12640 | J117: 1180662.6 | K117: 2019-10-25 | L117: 590 | M117: INE365D01021
A118: ASHIMASYN | B118: EQ | C118: 7.15 | D118: 8.15 | E118: 7.15 | F118: 7.85 | G118: 7.8 | H118: 7.65 | I118: 42636 | J118: 324742.25 | K118: 2019-10-25 | L118: 199 | M118: INE440A01010
A119: ASHOKA | B119: EQ | C119: 105.5 | D119: 106.8 | E119: 102.15 | F119: 105.15 | G119: 104.75 | H119: 104.25 | I119: 205353 | J119: 21525497.45 | K119: 2019-10-25 | L119: 3101 | M119: INE442H01029
A120: ASHOKLEY | B120: EQ | C120: 75.6 | D120: 75.65 | E120: 73.15 | F120: 74.7 | G120: 74.65 | H120: 75.85 | I120: 21594910 | J120: 1603824161 | K120: 2019-10-25 | L120: 63474 | M120: INE208A01029
A121: ASIANHOTNR | B121: EQ | C121: 105 | D121: 105 | E121: 100 | F121: 100 | G121: 100 | H121: 101.7 | I121: 14 | J121: 1411 | K121: 2019-10-25 | L121: 9 | M121: INE363A01022
A122: ASIANPAINT | B122: EQ | C122: 1797 | D122: 1808.4 | E122: 1785.05 | F122: 1796.3 | G122: 1795.5 | H122: 1790.5 | I122: 1202154 | J122: 2161820478 | K122: 2019-10-25 | L122: 92434 | M122: INE021A01026
A123: ASIANTILES | B123: EQ | C123: 233.05 | D123: 250.6 | E123: 233.05 | F123: 241.25 | G123: 239.2 | H123: 237.25 | I123: 88521 | J123: 21377945.7 | K123: 2019-10-25 | L123: 3036 | M123: INE022I01019
A124: ASPINWALL | B124: EQ | C124: 139.85 | D124: 140 | E124: 135 | F124: 138 | G124: 138 | H124: 136.55 | I124: 1175 | J124: 163423.75 | K124: 2019-10-25 | L124: 57 | M124: INE991I01015
A125: ASSAMCO | B125: BE | C125: 0.45 | D125: 0.5 | E125: 0.45 | F125: 0.5 | G125: 0.5 | H125: 0.45 | I125: 179365 | J125: 89217.5 | K125: 2019-10-25 | L125: 39 | M125: INE442A01024
A126: ASTEC | B126: EQ | C126: 340.5 | D126: 395 | E126: 339.55 | F126: 367.75 | G126: 365.3 | H126: 344.95 | I126: 42814 | J126: 15977860.05 | K126: 2019-10-25 | L126: 2726 | M126: INE563J01010
A127: ASTERDM | B127: EQ | C127: 125.95 | D127: 126 | E127: 123.75 | F127: 125.55 | G127: 124.8 | H127: 124.95 | I127: 33737 | J127: 4219086.45 | K127: 2019-10-25 | L127: 536 | M127: INE914M01019
A128: ASTRAL | B128: EQ | C128: 1175 | D128: 1185 | E128: 1120 | F128: 1123.8 | G128: 1124 | H128: 1134.4 | I128: 243013 | J128: 277313953.1 | K128: 2019-10-25 | L128: 6559 | M128: INE006I01046
A129: ASTRAMICRO | B129: EQ | C129: 76.2 | D129: 77 | E129: 75.65 | F129: 76.1 | G129: 76 | H129: 76 | I129: 10372 | J129: 789528.85 | K129: 2019-10-25 | L129: 181 | M129: INE386C01029
A130: ASTRAZEN | B130: EQ | C130: 2461.9 | D130: 2535 | E130: 2454 | F130: 2504.4 | G130: 2493.25 | H130: 2455.5 | I130: 11174 | J130: 27890555.05 | K130: 2019-10-25 | L130: 2253 | M130: INE203A01020
A131: ASTRON | B131: EQ | C131: 95.4 | D131: 96.7 | E131: 91.8 | F131: 92.45 | G131: 92.25 | H131: 94.65 | I131: 410276 | J131: 38440240.3 | K131: 2019-10-25 | L131: 3852 | M131: INE646X01014
A132: ATFL | B132: EQ | C132: 571.3 | D132: 617 | E132: 560.3 | F132: 592.4 | G132: 591.2 | H132: 569.7 | I132: 40912 | J132: 24494147.8 | K132: 2019-10-25 | L132: 2819 | M132: INE209A01019
A133: ATLANTA | B133: BE | C133: 7.15 | D133: 7.15 | E133: 6.55 | F133: 6.95 | G133: 7.1 | H133: 6.85 | I133: 6400 | J133: 44214.3 | K133: 2019-10-25 | L133: 30 | M133: INE285H01022
A134: ATUL | B134: EQ | C134: 4312 | D134: 4347 | E134: 4221.2 | F134: 4251.6 | G134: 4250 | H134: 4306.1 | I134: 39154 | J134: 167466022.3 | K134: 2019-10-25 | L134: 8489 | M134: INE100A01010
A135: ATULAUTO | B135: EQ | C135: 226.35 | D135: 226.8 | E135: 220.5 | F135: 222.65 | G135: 221.35 | H135: 223.15 | I135: 6272 | J135: 1391742.25 | K135: 2019-10-25 | L135: 271 | M135: INE951D01028
A136: AUBANK | B136: EQ | C136: 680 | D136: 694.95 | E136: 673 | F136: 688.4 | G136: 690 | H136: 681.75 | I136: 486059 | J136: 333974149.1 | K136: 2019-10-25 | L136: 24748 | M136: INE949L01017
A137: AURIONPRO | B137: EQ | C137: 76.5 | D137: 79.7 | E137: 76.25 | F137: 76.65 | G137: 76.25 | H137: 78.95 | I137: 2003 | J137: 156846.05 | K137: 2019-10-25 | L137: 42 | M137: INE132H01018
A138: AUROPHARMA | B138: EQ | C138: 466.5 | D138: 475 | E138: 463 | F138: 470.75 | G138: 468.95 | H138: 469.3 | I138: 3181241 | J138: 1490121855 | K138: 2019-10-25 | L138: 41800 | M138: INE406A01037
A139: AUSOMENT | B139: EQ | C139: 29 | D139: 29 | E139: 27 | F139: 28.5 | G139: 28.5 | H139: 28.15 | I139: 343 | J139: 9525.15 | K139: 2019-10-25 | L139: 24 | M139: INE218C01016
A140: AUTOAXLES | B140: EQ | C140: 911.05 | D140: 938.4 | E140: 908 | F140: 911.8 | G140: 909 | H140: 911.15 | I140: 9027 | J140: 8327048.5 | K140: 2019-10-25 | L140: 836 | M140: INE449A01011
A141: AUTOIND | B141: EQ | C141: 22.25 | D141: 22.85 | E141: 22.2 | F141: 22.2 | G141: 22.3 | H141: 22.45 | I141: 14768 | J141: 329547.4 | K141: 2019-10-25 | L141: 70 | M141: INE718H01014
A142: AUTOLITIND | B142: EQ | C142: 21.15 | D142: 21.15 | E142: 19.45 | F142: 19.85 | G142: 19.65 | H142: 20.05 | I142: 1283 | J142: 25327.7 | K142: 2019-10-25 | L142: 46 | M142: INE448A01013
A143: AVADHSUGAR | B143: EQ | C143: 269.9 | D143: 269.9 | E143: 260 | F143: 263.65 | G143: 263 | H143: 268.65 | I143: 37588 | J143: 9924715.4 | K143: 2019-10-25 | L143: 1565 | M143: INE349W01017
A144: AVANTIFEED | B144: EQ | C144: 450.9 | D144: 450.9 | E144: 436.7 | F144: 440.9 | G144: 442 | H144: 446.25 | I144: 227282 | J144: 100709698.3 | K144: 2019-10-25 | L144: 8293 | M144: INE871C01038
A145: AVTNPL | B145: EQ | C145: 24.75 | D145: 25.4 | E145: 23.35 | F145: 23.8 | G145: 23.6 | H145: 25.2 | I145: 41547 | J145: 998571.25 | K145: 2019-10-25 | L145: 257 | M145: INE488D01021
A146: AXISBANK | B146: EQ | C146: 708 | D146: 711 | E146: 695 | F146: 708.6 | G146: 709.85 | H146: 707.7 | I146: 8226456 | J146: 5780012354 | K146: 2019-10-25 | L146: 119946 | M146: INE238A01034
A147: AXISCADES | B147: EQ | C147: 71.6 | D147: 73.5 | E147: 71.5 | F147: 72.2 | G147: 72 | H147: 72.25 | I147: 31359 | J147: 2271522 | K147: 2019-10-25 | L147: 675 | M147: INE555B01013
A148: AXISGOLD | B148: EQ | C148: 3356.55 | D148: 3420.05 | E148: 3356.55 | F148: 3412.15 | G148: 3410 | H148: 3350.9 | I148: 2143 | J148: 7276319.9 | K148: 2019-10-25 | L148: 479 | M148: INF846K01347
A149: AXISNIFTY | B149: EQ | C149: 1189.43 | D149: 1202.27 | E149: 1189.43 | F149: 1195.99 | G149: 1196 | H149: 1193.12 | I149: 336 | J149: 402175.43 | K149: 2019-10-25 | L149: 15 | M149: INF846K01ZL0
A150: AYMSYNTEX | B150: EQ | C150: 30 | D150: 32.5 | E150: 30 | F150: 32.5 | G150: 32.5 | H150: 31.5 | I150: 1674 | J150: 52790.55 | K150: 2019-10-25 | L150: 33 | M150: INE193B01039
A151: BAGFILMS | B151: EQ | C151: 1.7 | D151: 1.8 | E151: 1.7 | F151: 1.7 | G151: 1.7 | H151: 1.75 | I151: 183237 | J151: 314437.75 | K151: 2019-10-25 | L151: 117 | M151: INE116D01028
A152: BAJAJ-AUTO | B152: EQ | C152: 3187.15 | D152: 3187.15 | E152: 3110 | F152: 3129.65 | G152: 3133.75 | H152: 3167.85 | I152: 369730 | J152: 1159140023 | K152: 2019-10-25 | L152: 29691 | M152: INE917I01010
A153: BAJAJCON | B153: EQ | C153: 237.05 | D153: 246.4 | E153: 237 | F153: 239.05 | G153: 240.05 | H153: 238.1 | I153: 329242 | J153: 79041854.9 | K153: 2019-10-25 | L153: 5445 | M153: INE933K01021
A154: BAJAJELEC | B154: EQ | C154: 384.75 | D154: 386.9 | E154: 370 | F154: 375.7 | G154: 376.5 | H154: 382.75 | I154: 89674 | J154: 33833179.9 | K154: 2019-10-25 | L154: 4237 | M154: INE193E01025
A155: BAJAJFINSV | B155: EQ | C155: 8141 | D155: 8160 | E155: 7852 | F155: 7972.15 | G155: 7978 | H155: 8091 | I155: 354844 | J155: 2842925240 | K155: 2019-10-25 | L155: 40102 | M155: INE918I01018
A156: BAJAJHIND | B156: EQ | C156: 6.1 | D156: 6.2 | E156: 6 | F156: 6.05 | G156: 6.05 | H156: 6.05 | I156: 764902 | J156: 4643428.15 | K156: 2019-10-25 | L156: 666 | M156: INE306A01021
A157: BAJAJHLDNG | B157: EQ | C157: 3705 | D157: 3716 | E157: 3631 | F157: 3651.2 | G157: 3631 | H157: 3666.1 | I157: 11937 | J157: 43773839.2 | K157: 2019-10-25 | L157: 3131 | M157: INE118A01012
A158: BAJFINANCE | B158: EQ | C158: 4037.8 | D158: 4063.85 | E158: 3900 | F158: 3987.25 | G158: 3979 | H158: 4026.15 | I158: 1758098 | J158: 7018185804 | K158: 2019-10-25 | L158: 92133 | M158: INE296A01024
A159: BALAJITELE | B159: EQ | C159: 49.8 | D159: 49.8 | E159: 48.35 | F159: 48.85 | G159: 48.55 | H159: 48.35 | I159: 21772 | J159: 1065220.7 | K159: 2019-10-25 | L159: 237 | M159: INE794B01026
A160: BALAMINES | B160: EQ | C160: 333.7 | D160: 333.7 | E160: 317.95 | F160: 320.55 | G160: 320.25 | H160: 330.05 | I160: 13728 | J160: 4482052.7 | K160: 2019-10-25 | L160: 778 | M160: INE050E01027
A161: BALAXI | B161: EQ | C161: 86.95 | D161: 87 | E161: 78.95 | F161: 78.95 | G161: 78.95 | H161: 82.95 | I161: 362 | J161: 30693.75 | K161: 2019-10-25 | L161: 12 | M161: INE618N01014
A162: BALKRISHNA | B162: BE | C162: 19.8 | D162: 19.8 | E162: 18.5 | F162: 19.15 | G162: 19.15 | H162: 19.3 | I162: 4053 | J162: 76180.65 | K162: 2019-10-25 | L162: 27 | M162: INE875R01011
A163: BALKRISIND | B163: EQ | C163: 839 | D163: 850 | E163: 825 | F163: 839.65 | G163: 841.9 | H163: 835 | I163: 546606 | J163: 459825220.9 | K163: 2019-10-25 | L163: 12604 | M163: INE787D01026
A164: BALLARPUR | B164: EQ | C164: 0.45 | D164: 0.5 | E164: 0.45 | F164: 0.45 | G164: 0.5 | H164: 0.5 | I164: 3717221 | J164: 1704119.95 | K164: 2019-10-25 | L164: 547 | M164: INE294A01037
A165: BALMLAWRIE | B165: EQ | C165: 184 | D165: 184.85 | E165: 180.35 | F165: 181.5 | G165: 181.5 | H165: 182.85 | I165: 62226 | J165: 11377267.8 | K165: 2019-10-25 | L165: 1623 | M165: INE164A01016
A166: BALPHARMA | B166: EQ | C166: 37.35 | D166: 38.5 | E166: 37.25 | F166: 37.3 | G166: 37.3 | H166: 37.85 | I166: 4049 | J166: 151921.4 | K166: 2019-10-25 | L166: 68 | M166: INE083D01012
A167: BALRAMCHIN | B167: EQ | C167: 158.55 | D167: 158.65 | E167: 152.25 | F167: 153.75 | G167: 153.4 | H167: 157.55 | I167: 496080 | J167: 76901160 | K167: 2019-10-25 | L167: 11651 | M167: INE119A01028
A168: BANARBEADS | B168: EQ | C168: 30 | D168: 31.05 | E168: 30 | F168: 31.05 | G168: 31.05 | H168: 28.25 | I168: 5451 | J168: 168852.55 | K168: 2019-10-25 | L168: 47 | M168: INE655B01011
A169: BANARISUG | B169: EQ | C169: 1123.95 | D169: 1125 | E169: 1100 | F169: 1107.65 | G169: 1100 | H169: 1116.9 | I169: 173 | J169: 191647.15 | K169: 2019-10-25 | L169: 38 | M169: INE459A01010
A170: BANCOINDIA | B170: EQ | C170: 105.1 | D170: 109.4 | E170: 102.2 | F170: 103.7 | G170: 103.65 | H170: 104.1 | I170: 202694 | J170: 21401026.95 | K170: 2019-10-25 | L170: 4286 | M170: INE213C01025
A171: BANDHANBNK | B171: EQ | C171: 577.05 | D171: 599 | E171: 577.05 | F171: 594.85 | G171: 593.2 | H171: 570.55 | I171: 2512565 | J171: 1485070937 | K171: 2019-10-25 | L171: 49836 | M171: INE545U01014
A172: BANG | B172: EQ | C172: 19.5 | D172: 19.5 | E172: 16.8 | F172: 18 | G172: 18 | H172: 17.8 | I172: 2184 | J172: 39108.2 | K172: 2019-10-25 | L172: 121 | M172: INE863I01016
A173: BANKBARODA | B173: EQ | C173: 90 | D173: 92.15 | E173: 88.7 | F173: 91.55 | G173: 91.5 | H173: 89.9 | I173: 31767476 | J173: 2871178242 | K173: 2019-10-25 | L173: 64884 | M173: INE028A01039
A174: BANKBEES | B174: EQ | C174: 2992 | D174: 3010 | E174: 2957 | F174: 3006.61 | G174: 3004.79 | H174: 2975.6 | I174: 22455 | J174: 66705775.18 | K174: 2019-10-25 | L174: 602 | M174: INF732E01078
A175: BANKINDIA | B175: EQ | C175: 64.1 | D175: 66.45 | E175: 63.05 | F175: 65.85 | G175: 65.85 | H175: 64.05 | I175: 8463208 | J175: 548690547 | K175: 2019-10-25 | L175: 20403 | M175: INE084A01016
A176: BANSWRAS | B176: EQ | C176: 67.2 | D176: 69.75 | E176: 66.85 | F176: 68.85 | G176: 69.75 | H176: 68.05 | I176: 3203 | J176: 219141.65 | K176: 2019-10-25 | L176: 35 | M176: INE629D01012
A177: BARTRONICS | B177: BE | C177: 1.35 | D177: 1.4 | E177: 1.3 | F177: 1.3 | G177: 1.3 | H177: 1.35 | I177: 2804 | J177: 3651.55 | K177: 2019-10-25 | L177: 10 | M177: INE855F01034
A178: BASF | B178: EQ | C178: 968.7 | D178: 968.7 | E178: 951.05 | F178: 954.45 | G178: 955 | H178: 961.4 | I178: 5738 | J178: 5504713.6 | K178: 2019-10-25 | L178: 490 | M178: INE373A01013
A179: BASML | B179: EQ | C179: 151 | D179: 157.5 | E179: 147.2 | F179: 156.8 | G179: 157.1 | H179: 152.5 | I179: 859 | J179: 133606.85 | K179: 2019-10-25 | L179: 31 | M179: INE186H01014
A180: BATAINDIA | B180: EQ | C180: 1777.3 | D180: 1797 | E180: 1754.55 | F180: 1763.5 | G180: 1762.45 | H180: 1789.7 | I180: 594439 | J180: 1056908019 | K180: 2019-10-25 | L180: 24393 | M180: INE176A01028
A181: BAYERCROP | B181: EQ | C181: 3348 | D181: 3358 | E181: 3226 | F181: 3252 | G181: 3226 | H181: 3339.15 | I181: 4517 | J181: 14800378.15 | K181: 2019-10-25 | L181: 2411 | M181: INE462A01022
A182: BBL | B182: EQ | C182: 868.05 | D182: 880 | E182: 843 | F182: 857 | G182: 860 | H182: 870.25 | I182: 9478 | J182: 8108304.1 | K182: 2019-10-25 | L182: 1111 | M182: INE464A01028
A183: BBTC | B183: EQ | C183: 1182.15 | D183: 1196.4 | E183: 1160.1 | F183: 1168.25 | G183: 1170 | H183: 1185.05 | I183: 89312 | J183: 104812999.8 | K183: 2019-10-25 | L183: 4891 | M183: INE050A01025
A184: BCG | B184: EQ | C184: 2.5 | D184: 2.8 | E184: 2.5 | F184: 2.75 | G184: 2.75 | H184: 2.55 | I184: 918421 | J184: 2510460.1 | K184: 2019-10-25 | L184: 434 | M184: INE425B01027
A185: BCP | B185: EQ | C185: 7.8 | D185: 7.9 | E185: 7.8 | F185: 7.8 | G185: 7.8 | H185: 7.95 | I185: 19918 | J185: 155760.4 | K185: 2019-10-25 | L185: 33 | M185: INE905P01028
A186: BDL | B186: EQ | C186: 292.8 | D186: 299.95 | E186: 288.1 | F186: 296.75 | G186: 298.9 | H186: 290.65 | I186: 37571 | J186: 11123099.5 | K186: 2019-10-25 | L186: 1722 | M186: INE171Z01018
A187: BEARDSELL | B187: EQ | C187: 10.55 | D187: 10.85 | E187: 9.5 | F187: 10.1 | G187: 10.45 | H187: 10.2 | I187: 4140 | J187: 41141.35 | K187: 2019-10-25 | L187: 114 | M187: INE520H01022
A188: BEDMUTHA | B188: EQ | C188: 11 | D188: 11.25 | E188: 10.25 | F188: 11.15 | G188: 11.15 | H188: 11 | I188: 2841 | J188: 30745.15 | K188: 2019-10-25 | L188: 29 | M188: INE844K01012
A189: BEL | B189: EQ | C189: 116 | D189: 117.25 | E189: 114.65 | F189: 116.7 | G189: 116.15 | H189: 115.95 | I189: 7575021 | J189: 879918337.8 | K189: 2019-10-25 | L189: 37959 | M189: INE263A01024
A190: BEML | B190: EQ | C190: 947 | D190: 968 | E190: 936.3 | F190: 946.1 | G190: 945.75 | H190: 942.65 | I190: 637168 | J190: 607666556.7 | K190: 2019-10-25 | L190: 19475 | M190: INE258A01016
A191: BEPL | B191: EQ | C191: 48.9 | D191: 49.1 | E191: 47.2 | F191: 47.65 | G191: 47.45 | H191: 49.1 | I191: 343470 | J191: 16518492.75 | K191: 2019-10-25 | L191: 4436 | M191: INE922A01025
A192: BERGEPAINT | B192: EQ | C192: 489.95 | D192: 501.95 | E192: 486.4 | F192: 492.1 | G192: 491.8 | H192: 489.2 | I192: 2557982 | J192: 1263163330 | K192: 2019-10-25 | L192: 46480 | M192: INE463A01038
A193: BFINVEST | B193: EQ | C193: 297 | D193: 300.5 | E193: 288 | F193: 290.85 | G193: 291 | H193: 295.85 | I193: 77473 | J193: 22710151.4 | K193: 2019-10-25 | L193: 3011 | M193: INE878K01010
A194: BFUTILITIE | B194: EQ | C194: 216.6 | D194: 221.5 | E194: 208.9 | F194: 211.4 | G194: 212.25 | H194: 215.6 | I194: 422664 | J194: 90538254.8 | K194: 2019-10-25 | L194: 11530 | M194: INE243D01012
A195: BGLOBAL | B195: BE | C195: 1.85 | D195: 1.85 | E195: 1.75 | F195: 1.85 | G195: 1.85 | H195: 1.8 | I195: 6751 | J195: 12367.25 | K195: 2019-10-25 | L195: 20 | M195: INE224M01013
A196: BGRENERGY | B196: EQ | C196: 31.35 | D196: 31.8 | E196: 31 | F196: 31.15 | G196: 31.1 | H196: 31.45 | I196: 46189 | J196: 1441387.65 | K196: 2019-10-25 | L196: 470 | M196: INE661I01014
A197: BHAGERIA | B197: EQ | C197: 108.4 | D197: 108.4 | E197: 106.25 | F197: 106.55 | G197: 106.25 | H197: 107.4 | I197: 7685 | J197: 823650.7 | K197: 2019-10-25 | L197: 218 | M197: INE354C01027
A198: BHAGYANGR | B198: EQ | C198: 18.75 | D198: 19.55 | E198: 18.75 | F198: 19.05 | G198: 19 | H198: 19 | I198: 1696 | J198: 32354.9 | K198: 2019-10-25 | L198: 32 | M198: INE458B01036
A199: BHAGYAPROP | B199: EQ | C199: 19.1 | D199: 21.3 | E199: 18.3 | F199: 20 | G199: 20 | H199: 20.5 | I199: 961 | J199: 19236.7 | K199: 2019-10-25 | L199: 12 | M199: INE363W01018
A200: BHANDARI | B200: EQ | C200: 1.05 | D200: 1.1 | E200: 1.05 | F200: 1.05 | G200: 1.05 | H200: 1.1 | I200: 25652 | J200: 27188.45 | K200: 2019-10-25 | L200: 41 | M200: INE474E01029
... 1491 more rows

Sheet Sheet1 (hidden)

Sheet Sheet3 (hidden)

Sheet Sheet4 (hidden)

Sheet Sheet5 (hidden)
